Workbook

Sheet الواجهة
B3: المديريـة | D3: مديريـة التربيـة لولاية | AR3: 106
B4: المؤسســــــــــــة | D4: ثانويـــة الوادي | R4: 411
B5: البلديـــــــــــــــة | D5: الوادي
B6: السنـــــة الدراسيـــــــــة | D6: 2018/2017/
E7: رقم التسجيل | F7: الإسم واللقب | G7: تاريخ الميلاد | I7: الجنـــس
E8: 13 | F8: =IFERROR(VLOOKUP($E8,school2,3,FALSE)&" "&VLOOKUP($E8,school2,4,FALSE),"") -> مراد 13 فريدة13 | G8: =VLOOKUP($E$8,school2,9,FALSE) -> 12/2/2012 | I8: =VLOOKUP($E$8,school2,11,FALSE) -> ذ | ER8: 141
E10: مستشار التربية | F10: الناظــــــر | G10: المديـــــر
D22: أنجز هذا العمل المتواضع من طرف: حفوضة الصادق مشرف التربية بثانوية مفدي زكرياء - البياضة
D23: SADOKHAFOUDA@YAHOO.FR
I519: 2

Sheet الإشعارات

Sheet التقرير اليومي
B1: الجمهورية الجزائرية الديمقراطية الشعبية
F2: وزارة التربية الوطنية | N2: الرقـــم: | O2: 200 | AB2: ســبب الغيــاب | AC2: الاقسام | AD2: ايام الاسبوع | AE2: المواد | AG2: الاستاذ | AH2: المساعدين
C3: =الواجهة!D3 -> مديريـة التربيـة لولاية | U3: 1
C4: =الواجهة!D4 -> ثانويـــة الوادي | M4: السنة الدراسية: | O4: =الواجهة!D6 -> 2018/2017/ | U4: 2 | AB4: غياب غير مبرر | AC4: 1ع1 | AD4: الاحد | AE4: فلسفة | AF4: =IF(AG4<>"",1,"") -> 1 | AG4: دبابسية منية | AH4: صالح1 | AI4: =IF(AH4<>"",1,"") -> 1
C5: =الواجهة!D5 -> الوادي | M5: اليـوم: | N5: =O5 -> 2018-07-01 | O5: 2018-07-01 | U5: 3 | AB5: عطلة مرضية | AC5: 1ع2 | AD5: الاثنين | AE5: عربية | AF5: =IF(AG5<>"",1,"") -> 1 | AG5: ذياب | AH5: صالح2 | AI5: =IF(AH5<>"",1,"") -> 1
U6: 4 | AB6: عطلة امومة | AC6: 1ع3 | AD6: الثلاثاء | AE6: فيزياء | AF6: 1 | AG6: جديد نوال | AH6: صالح3 | AI6: 1
S7: =TODAY() -> 2018-07-21 | U7: 5 | AB7: عطلة ابوه | AC7: 1ع4 | AD7: الاربعاء | AE7: رياضيات | AF7: 1 | AG7: هقي | AH7: صالح4 | AI7: 1
U8: 6 | AB8: عطلة زفاف | AC8: 1آ1 | AD8: الخميس | AE8: إجتماعيات | AF8: 1 | AG8: العائبي حنان | AH8: صالح5 | AI8: 1
B9: 1- الدراســـة :1-1 – دروس لم تقدم: | C9: 1- الدراســـة :1-1 – دروس لم تقدم: | U9: 7 | AB9: عطلة ختان | AC9: 1آ2 | AD9: الجمعة | AE9: فرنسية | AF9: 1 | AG9: قادي | AH9: صالح6 | AI9: 1
C10: الفترة الصباحيــة | K10: الفترة المسائية | U10: 8 | AB10: عمـــرة | AC10: 2ريا | AD10: السبت | AE10: أنجليزيــــــة | AF10: 1 | AG10: مقيرحي | AH10: صالح7 | AI10: 1
C11: الأستــــاذ | E11: المادة | F11: 8 ـ 9 | G11: 9 ـ 10 | H11: 10 ـ 11 | I11: 11 ـ 12 | K11: 14 ـ 15 | L11: 15 ـ 16 | M11: 16 ـ 17 | N11: ملاحظات | U11: 9 | AB11: الحــــج | AC11: 2هط | AE11: تربية إسلامية | AF11: 1 | AG11: ربوح خيرة | AH11: صالح8 | AI11: 1
B12: =IF(C12<>"",1,"") -> 1 | C12: قابوسة | E12: فرنسية | F12: 1ع3 | N12: عمـــرة | U12: 10 | AB12: نــــدوة | AC12: 2تق | AE12: تكنولوجيا | AF12: 1 | AG12: سلاطنة إيمان
B13: =IF(C13<>"",1,"") -> 1 | C13: دبابسة | E13: كيميـــــاء | U13: 11 | AB13: إضراب | AC13: 2ع1 | AE13: تربية بدنية | AF13: 1 | AG13: دبابسة
B14: 1 | C14: دبابسية منية | H14: 1ع4 | U14: 12 | AB14: غياب بعــذر | AC14: 2ع2 | AE14: علوم طبيعية | AF14: 1 | AG14: بالهادي محمد
B15: 1 | C15: هقي | F15: 2ريا | L15: 2تق | N15: عمـــرة | U15: 13 | AB15: رخصة غياب | AC15: 2ع3 | AE15: كيميـــــاء | AF15: 1 | AG15: عروة
B16: 1 | C16: بوراس | F16: 1ع2 | I16: 1آ1 | N16: إضراب | U16: 14 | AB16: إزدياد مولود | AC16: 2آف | AF16: 1 | AG16: كرداس
B17: 1 | C17: بن عمر | F17: 1آ1 | L17: 2هط | N17: الحــــج | U17: 15 | AC17: 3آف | AF17: 1 | AG17: نايلي
B18: 1 | C18: سبوعي | U18: 16 | AC18: 3ع1 | AF18: 1 | AG18: عبيد نفيسة
B19: 1 | C19: حميداتو | U19: 17 | AC19: 3ع2 | AF19: 1 | AG19: بن عائشة فتيحة
AC20: 3هط | AF20: 1 | AG20: لطوفة
C21: 2 ـ اجراءات متخذة : | E21: .......................................................................................................................................................................................................................................................................................................................... | AC21: 3ريا | AF21: 1 | AG21: شعباني
C22: ............................................................................................................................................................................................................................................................................................................................................................................... | AC22: 3تق | AF22: 1 | AG22: بن خليفة عبد الباقي
C23: 2 - 1 – غيابات التلاميــــذ | AF23: 1 | AG23: ظريف
C24: الثالثة | E24: الأقسام | F24: 3ر | G24: 3هط | H24: 3تق | I24: 3ع1 | J24: 3ع2 | K24: 3أف | P24: Σ | AF24: 1 | AG24: قيطة
E25: التعـداد | F25: 17 | G25: 15 | H25: 34 | I25: 32 | J25: 32 | K25: 21 | P25: =SUM(F25:K25) -> 151 | AF25: 1 | AG25: دودي عبد الستار
E26: الغائبون | H26: 6 | P26: =SUM(F26:K26) -> 6 | AF26: 1 | AG26: منصر
AF27: 1 | AG27: قادي
C28: الثانية | E28: الأقسام | F28: 2ر | G28: 2هط | H28: 2تق | I28: 2ع1 | J28: 2ع2 | K28: 2ع3 | L28: 2آف | P28: Σ | AF28: 1 | AG28: صحراوي كريمة
E29: التعـداد | F29: 13 | G29: 29 | H29: 29 | I29: 28 | J29: 29 | K29: 33 | L29: 24 | P29: =SUM(F29:L29) -> 185 | AF29: 1 | AG29: لطرش عبد الوهاب
E30: الغائبون | K30: 5 | P30: =IFERROR((SUM(F30:L30)),"") -> 5 | AF30: 1 | AG30: حاج عمارة
AF31: 1 | AG31: جبالي
C32: الأولى | E32: الأقسام | F32: 1ع1 | G32: 1ع2 | H32: 1ع3 | I32: 1ع4 | J32: 1 آ1 | K32: 1 آ2 | P32: Σ | AF32: 1 | AG32: نوري
E33: التعـداد | F33: 38 | G33: 41 | H33: 37 | I33: 36 | J33: 30 | K33: 27 | P33: =SUM(F33:K33) -> 209 | AF33: 1 | AG33: حريز عبد القادر
E34: الغائبون | I34: 3 | P34: =SUM(F34:K34) -> 3 | AF34: 1 | AG34: مصباحي
AF35: 1 | AG35: نيد
A36: 2-2- ملاحظات: | E36: ...................................................................................................................................................................................................................................................................................................................... | AF36: 1 | AG36: صحراوي
C37: .............................................................................................................................................................................................................................................................................................................................................................................. | AF37: 1 | AG37: نسيب
C38: 3 - تغيبات وتخلفات المساعدين التربويين | H38: ـ 4 ــ الخلاصــــــــــــــة | AF38: 1 | AG38: خليل
C39: صباحا | E39: مساء | G39: ملاحظات | AF39: 1 | AG39: عازب الشيخ
B40: =IF(C40<>"",1,"") ->  | E40: صالح2 | G40: نــــدوة | K40: التلاميذ | M40: الأساتذة | O40: المساعدين | AF40: 1 | AG40: جديد
B41: =IF(C41<>"",1,"") -> 1 | C41: صالح6 | G41: رخصة غياب | I41: المجموع | K41: =P33+P29+P25 -> 545 | M41: =SUM(AF4:AF53) -> 50 | O41: =SUM(AI4:AI8) -> 5 | AF41: 1 | AG41: مريقة
B42: =IF(C42<>"",1,"") -> 1 | C42: صالح6 | G42: إزدياد مولود | I42: الغائبون | K42: =(P34+P30+P26) -> 14 | M42: =COUNTA(C12:C19) -> 8 | O42: =COUNTA(C40:C44) -> 3 | AF42: 1 | AG42: قابوسة
B43: =IF(C43<>"",1,"") ->  | G43: عطلة زفاف | I43: الحاضرون | K43: =K41-K42 -> 531 | M43: =M41-M42 -> 42 | O43: =O41-O42 -> 2 | AF43: 1 | AG43: تومي
B44: =IF(C44<>"",1,"") -> 1 | C44: صالح4 | G44: عمـــرة | AF44: 1 | AG44: سبوعي
C45: ـ 5 ــ ملاحظــــــات مختلفـــــة | H45: ـ 6 ــ ملاحظـــــــات الناظــــــــــــــر | AF45: 1 | AG45: قعري
AF46: 1 | AG46: بن حضري
AF47: 1 | AG47: خضير
AF48: 1 | AG48: حميداتو
AF49: 1 | AG49: باسي
AF50: 1 | AG50: قابوسة
AF51: =IF(AG51<>"",1,"") -> 1 | AG51: بن عمر
AF52: 1 | AG52: حميدي
AF53: 1 | AG53: بوراس
AF54: =SUM(AF4:AF53) -> 50
B56: .... / ....

Sheet غيابات التلاميذ
A1: 7ـ غيـابــات التلاميـــذ حسـب الأقســـــام
A2: الرقم | B2: ر.ت | C2: لقب و اسم التلميذ | D2: القسم | E2: الغياب | G2: الرقم | H2: ر.ت | I2: لقب و اسم التلميذ | J2: القسم | K2: الغياب | W2: مدة الغياب
A3: =IFERROR(IF(B3<>"",1,""),"") ->  | C3: =IFERROR(VLOOKUP($B3,school2,3,FALSE)&" "&VLOOKUP($B3,school2,4,FALSE),"") ->  | D3: =IFERROR(VLOOKUP($B3,school2,8,FALSE),"") ->  | G3: =IFERROR(IF(H3<>"",A32+1,""),"") ->  | I3: =IFERROR(VLOOKUP($H3,school2,3,FALSE)&" "&VLOOKUP($H3,school2,4,FALSE),"") ->  | J3: =IFERROR(VLOOKUP($H3,school2,8,FALSE),"") -> 
A4: =IFERROR(IF(B4<>"",A3+1,""),"") ->  | E4: حصتين | G4: =IFERROR(IF(H4<>"",G3+1,""),"") ->  | K4: مساءا | W4: حصــــة
A5: =IFERROR(IF(B5<>"",A4+1,""),"") ->  | G5: =IFERROR(IF(H5<>"",G4+1,""),"") ->  | W5: حصتين
P6: 49 | Q6: =IFERROR(VLOOKUP($P6,school2,2,FALSE)&" "&VLOOKUP($P6,school2,3,FALSE),"") -> 49 مراد 49 | S6: =IFERROR(VLOOKUP($P6,school2,8,FALSE),"") -> 1آف2 | T6: =IFERROR(VLOOKUP($P6,school2,7,FALSE),"") -> 2 | U6: =IFERROR(VLOOKUP($P6,school2,10,FALSE),"") -> البياضة | W6: ثلاث حصص
W7: صباحا
W8: مساءا
W9: يوم كامل
K11: يوم كامل
G31: =IFERROR(IF(H31<>"",G30+1,""),"") -> 
A32: =IFERROR(IF(B32<>"",A31+1,""),"") -> 
A34: المستـــــــــــــــــــــــــــوى | D34: 1 ثانوي | F34: 2 ثانوي | I34: 3 ثانوي | J34: المجموع
A35: المسجلون في اليوم السابق | D35: 209 | F35: 185 | I35: 151 | J35: =SUM(D35:I35) -> 545
A36: دخــــــول اليـــــــــــــــــوم | I36: 0
A37: خـــــــروج اليـــــــــــــــوم | I37: 0
A38: عـــــــــدد التـلاميــــــــــــذ | D38: =D35+(D36)-(D37) -> 209 | F38: =F35+(F36)-(F37) -> 185 | I38: =I35+(I36)-(I37) -> 151 | J38: =J35+(J36)-(J37) -> 545
A39: 9ـ ملاحظات مدير المؤسسة
A40: .........................................................................................................................................................................................
A41: .........................................................................................................................................................................................
A42: .........................................................................................................................................................................................
B43: مستشارالتربية | E43: الناظـــــــر | J43: المديـــــــــر
B44: =الواجهة!E16 -> 0 | E44: =الواجهة!F16 -> 0 | J44: =الواجهة!G16 -> 0

Sheet تعداد التلاميذ
A1: القسم | B1: عمود2 | C1: عدد التلاميذ | D1: عمود1
A2: =IFERROR(VLOOKUP($D2,school2,5,FALSE)&" "&(VLOOKUP($D2,school2,6,FALSE)&" "&(VLOOKUP($D2,school2,7,FALSE))),"") -> أولى جدع مشترك آداب 1 | B2: =IFERROR(VLOOKUP($D2,school2,8,FALSE),"") -> 1آف1 | C2: =COUNTIF(ALL!$H$6:$H$1005,"1آف1") -> 29 | D2: 1
A3: =IFERROR(VLOOKUP($D3,school2,5,FALSE)&" "&(VLOOKUP($D3,school2,6,FALSE)&" "&(VLOOKUP($D3,school2,7,FALSE))),"") -> أولى جدع مشترك آداب 2 | B3: =IFERROR(VLOOKUP($D3,school2,8,FALSE),"") -> 1آف2 | C3: =COUNTIF(ALL!$H$6:$H$1005,"1آف2") -> 27 | D3: 30
A4: أولى جذع مشترك علوم وتكنولوجيا 1 | B4: =IFERROR(VLOOKUP($D4,school2,8,FALSE),"") -> 1ع1 | C4: =COUNTIF(ALL!$H$6:$H$1005,"1ع1") -> 39 | D4: 80
A5: أولى جذع مشترك علوم وتكنولوجيا 2 | B5: 1ع2 | C5: =COUNTIF(ALL!$H$6:$H$1005,"1ع2") -> 41 | D5: 113
A6: أولى جذع مشترك علوم وتكنولوجيا 3 | B6: 1ع3 | C6: =COUNTIF(ALL!$H$6:$H$1005,"1ع3") -> 37 | D6: 140
A7: أولى جذع مشترك علوم وتكنولوجيا 4 | B7: 1ع4 | C7: =COUNTIF(ALL!$H$6:$H$1005,"1ع4") -> 36 | D7: 180
A8: ثانية آداب وفلسفة 1 | B8: 2آف1 | C8: =COUNTIF(ALL!$H$6:$H$1005,"2أف1") -> 23 | D8: 220
A9: ثانية علوم تجريبية 1 | B9: 2ع1 | C9: =COUNTIF(ALL!$H$6:$H$1005,"2ع1") -> 28 | D9: 235
A10: ثانية علوم تجريبية 2 | B10: 2ع2 | C10: =COUNTIF(ALL!$H$6:$H$1005,"2ع2") -> 29 | D10: 270
A11: ثانية علوم تجريبية 3 | B11: 2ع3 | C11: =COUNTIF(ALL!$H$6:$H$1005,"2ع3") -> 33 | D11: 300
A12: ثانية تسيير واقتصاد 1 | B12: 2تق1 | C12: =COUNTIF(ALL!$H$6:$H$1005,"2تق1") -> 30 | D12: 330
A13: ثانية رياضيات 1 | B13: 2ريا1 | C13: =COUNTIF(ALL!$H$6:$H$1005,"2ريا1") -> 12 | D13: 360
A14: ثانية تقني رياضي 1 | B14: 2هط1 | C14: =COUNTIF(ALL!$H$6:$H$1005,"2هط1") -> 28 | D14: 390
A15: ثالثة آداب وفلسفة 1 | B15: 3آف1 | C15: =COUNTIF(ALL!$H$6:$H$1005,"3آف1") -> 21 | D15: 400
A16: ثالثة علوم تجريبية 1 | B16: 3ع1 | C16: =COUNTIF(ALL!$H$6:$H$1005,"3ع1") -> 32 | D16: 420
A17: ثالثة علوم تجريبية 2 | B17: 3ع2 | C17: =COUNTIF(ALL!$H$6:$H$1005,"3ع2") -> 32 | D17: 450
A18: ثالثة تسيير واقتصاد 1 | B18: 3تق1 | C18: =COUNTIF(ALL!$H$6:$H$1005,"3تق1") -> 34 | D18: 500
A19: ثالثة رياضيات 1 | B19: 3ريا1 | C19: =COUNTIF(ALL!$H$6:$H$1005,"3ريا1") -> 17 | D19: 520
A20: ثالثة تقني رياضي 1 | B20: 3هط1 | C20: =COUNTIF(ALL!$H$6:$H$1005,"3هط1") -> 15 | D20: 540

Sheet ALL
A1: 1 | B1: 2 | C1: 3 | D1: 4 | E1: 5 | F1: 6 | G1: 7 | H1: 8 | I1: 9 | J1: 10 | K1: 11 | L1: 12 | M1: 13 | N1: 14 | O1: 15 | P1: 16 | Q1: 17 | R1: 18 | S1: 19 | T1: 20 | U1: 21 | V1: 22 | W1: 23 | X1: 24 | Y1: 25 | Z1: 26 | AA1: 27 | AB1: 28 | AC1: 29 | AD1: 30 | AE1: 31 | AF1: 32 | AG1: 33 | AH1: 34 | AI1: 35 | AJ1: 36
D2: قائمة التلاميذ -- حالة أول أكتوبر | I2: البحث عن إسم | L2: الوادي
D3: عـــــدد التلاميـــــذ | G3: =COUNTA(D6:D2001) -> 600 | L3: =IFERROR(IF($L$2="","",SEARCH($L$2,$A6&" "&$C6&" "&$D6&" "&$E6&" "&$F6&" "&$G6&" "&$H6&" "&$I6&" "&$J6&" "&$K6&" "&$L6&" "&$M6&" "&$N6&" "&$O6&" "&$P6&" "&$Q6&" "&$R6&" "&$S6&" "&$T6&" "&$U6&" "&$V6&" "&$W6&" "&$X6)),"") -> 
A5: رقم التسجيل | B5: الرقم التسلسلي | C5: الإسم | D5: اللقب | E5: السنة | F5: الشعبة | G5: القسم | H5: القسم مختصر | I5: تاريخ الميلاد | J5: مكان الميلاد | K5: الجنس | L5: إسم الأب | M5: العنوان | N5: أول يوم غياب | O5: إشعار1 | P5: رقمــه | Q5: إشعار2 | R5: رقمــه | S5: إعـــــذار | T5: رقمـــه | U5: الشطـــب | V5: حركة التلاميذ | W5: تاريخ الدخول | X5: تاريخ الحروج | Y5: أ
A6: 1 | B6: =IF(C6="","",MAX($B$5:B5)+1) -> 1 | C6: مراد 1 | D6: فريدة1 | E6: أولى | F6: جدع مشترك آداب | G6: 1 | H6: 1آف1 | I6: 12/2/2000 | J6: البياضة | K6: ذ | L6: محمد علي1 | M6: حي الإزدهار - البياضة | N6: 2018-04-12 | O6: 2018-02-12 | P6: 1 | Q6: 2018-03-12 | R6: 5 | S6: 2019-01-06 | T6: 8 | V6: دخـــول | W6: 2018-01-12 | Y6: ذ | Z6: =IF($V$2="","",SEARCH($V$2,$A6&""&#REF!&""&$D6&""&$F6&""&$I6&""&$J6&""&$K6)) ->  | AA6: =IF($X$2="","",SEARCH($X$2,$A6&" "&#REF!&" "&$D6&" "&$F6&" "&$I6&" "&$J6&" "&$K6&" "&$O6&" "&$Q6&" "&#REF!&" "&$U6&" "&$V6&" "&$W6&" "&$X6)) ->  | AB6: =IF($L$2="","",SEARCH($L$2,$A6&" "&$D6&" "&$E6&" "&$F6&" "&$G6&" "&$H6&" "&$I6&" "&$J6&" "&$K6&" "&$L6&" "&$N6&" "&$O6&" "&$P6&" "&$Q6&" "&$R6&" "&$S6&" "&$T6&" "&$U6&" "&$V6&" "&$W6&" "&$X6)) -> 
A7: 2 | B7: =IF(C7="","",MAX($B$5:B6)+1) -> 2 | C7: مراد 2 | D7: فريدة2 | E7: أولى | F7: جدع مشترك آداب | G7: 1 | H7: 1آف1 | I7: 12/2/2001 | J7: البياضة | K7: ذ | L7: محمد علي2 | M7: حي السلام -البياضة | N7: 2018-04-13 | O7: 2018-02-13 | P7: 2 | Q7: 2018-03-13 | R7: 6 | S7: 2019-01-07 | T7: 9 | U7: 2018-02-02 | V7: خـــروج | X7: 2018-01-13 | Z7: =IF($V$2="","",SEARCH($V$2,$A7&""&#REF!&""&$D7&""&$F7&""&$I7&""&$J7&""&$K7)) ->  | AA7: =IF($X$2="","",SEARCH($X$2,$A7&" "&#REF!&" "&$D7&" "&$F7&" "&$I7&" "&$J7&" "&$K7&" "&$O7&" "&$Q7&" "&$S6&" "&$U7&" "&$V7&" "&$W7&" "&$X7)) ->  | AB7: =IF($L$2="","",SEARCH($L$2,$A7&" "&$D7&" "&$E7&" "&$F7&" "&$G7&" "&$H7&" "&$I7&" "&$J7&" "&$K7&" "&$L7&" "&$N7&" "&$O7&" "&$P7&" "&$Q7&" "&$R7&" "&$S7&" "&$T7&" "&$U7&" "&$V7&" "&$W7&" "&$X7)) -> 
A8: 3 | B8: =IF(C8="","",MAX($B$5:B7)+1) -> 3 | C8: مراد 3 | D8: فريدة3 | E8: أولى | F8: جدع مشترك آداب | G8: 1 | H8: 1آف1 | I8: 12/2/2002 | J8: البياضة | K8: ذ | L8: محمد علي3 | M8: حي الإزدهار - البياضة | N8: 2018-04-14 | O8: 2018-02-14 | P8: 3 | Q8: 2018-03-14 | R8: 7 | S8: 2019-01-08 | T8: 10 | Y8: دخـــول | Z8: =IF($V$2="","",SEARCH($V$2,$A8&""&#REF!&""&$D8&""&$F8&""&$I8&""&$J8&""&$K8)) ->  | AA8: =IF($X$2="","",SEARCH($X$2,$A8&" "&#REF!&" "&$D8&" "&$F8&" "&$I8&" "&$J8&" "&$K8&" "&$O8&" "&$Q8&" "&$S8&" "&$U8&" "&$V8&" "&$W8&" "&$X8)) -> 
A9: 4 | B9: =IF(C9="","",MAX($B$5:B8)+1) -> 4 | C9: مراد 4 | D9: فريدة4 | E9: أولى | F9: جدع مشترك آداب | G9: 1 | H9: 1آف1 | I9: 12/2/2003 | J9: البياضة | K9: أ | L9: محمد علي4 | M9: حي السلام -البياضة | N9: 2018-04-15 | O9: 2018-02-15 | P9: 4 | Q9: 2018-03-15 | R9: 8 | S9: 2019-01-09 | T9: 11 | Y9: خـــروج | Z9: =IF($V$2="","",SEARCH($V$2,$A9&""&#REF!&""&$D9&""&$F9&""&$I9&""&$J9&""&$K9)) ->  | AA9: =IF($X$2="","",SEARCH($X$2,$A9&" "&#REF!&" "&$D9&" "&$F9&" "&$I9&" "&$J9&" "&$K9&" "&$O9&" "&$Q9&" "&$S9&" "&$U9&" "&$V9&" "&$W9&" "&$X9)) -> 
A10: 5 | B10: =IF(C10="","",MAX($B$5:B9)+1) -> 5 | C10: مراد 5 | D10: فريدة5 | E10: أولى | F10: جدع مشترك آداب | G10: 1 | H10: 1آف1 | I10: 12/2/2004 | J10: البياضة | K10: ذ | L10: محمد علي5 | M10: حي الإزدهار - البياضة | N10: 2018-04-16 | O10: 2018-02-16 | P10: 5 | Q10: 2018-03-16 | R10: 9 | S10: 2019-01-10 | T10: 12 | Z10: =IF($V$2="","",SEARCH($V$2,$A10&""&#REF!&""&$D10&""&$F10&""&$I10&""&$J10&""&$K10)) ->  | AA10: =IF($X$2="","",SEARCH($X$2,$A10&" "&#REF!&" "&$D10&" "&$F10&" "&$I10&" "&$J10&" "&$K10&" "&$O10&" "&$Q10&" "&$S10&" "&$U10&" "&$V10&" "&$W10&" "&$X10)) -> 
A11: 6 | B11: =IF(C11="","",MAX($B$5:B10)+1) -> 6 | C11: مراد 6 | D11: فريدة6 | E11: أولى | F11: جدع مشترك آداب | G11: 1 | H11: 1آف1 | I11: 12/2/2005 | J11: البياضة | K11: أ | L11: محمد علي6 | M11: حي السلام -البياضة | N11: 2018-04-17 | O11: 2018-02-17 | P11: 6 | Q11: 2018-03-17 | R11: 10 | S11: 2019-01-11 | T11: 13 | Z11: =IF($V$2="","",SEARCH($V$2,$A11&""&#REF!&""&$D11&""&$F11&""&$I11&""&$J11&""&$K11)) ->  | AA11: =IF($X$2="","",SEARCH($X$2,$A11&" "&#REF!&" "&$D11&" "&$F11&" "&$I11&" "&$J11&" "&$K11&" "&$O11&" "&$Q11&" "&$S11&" "&$U11&" "&$V11&" "&$W11&" "&$X11)) -> 
A12: 7 | B12: =IF(C12="","",MAX($B$5:B11)+1) -> 7 | C12: مراد 7 | D12: فريدة7 | E12: أولى | F12: جدع مشترك آداب | G12: 1 | H12: 1آف1 | I12: 12/2/2006 | J12: البياضة | K12: ذ | L12: محمد علي7 | M12: حي الإزدهار - البياضة | N12: 2018-04-18 | O12: 2018-02-18 | P12: 7 | Q12: 2018-03-18 | R12: 11 | S12: 2019-01-12 | T12: 14 | Z12: =IF($V$2="","",SEARCH($V$2,$A12&""&#REF!&""&$D12&""&$F12&""&$I12&""&$J12&""&$K12)) ->  | AA12: =IF($X$2="","",SEARCH($X$2,$A12&" "&#REF!&" "&$D12&" "&$F12&" "&$I12&" "&$J12&" "&$K12&" "&$O12&" "&$Q12&" "&$S12&" "&$U12&" "&$V12&" "&$W12&" "&$X12)) -> 
A13: 8 | B13: =IF(C13="","",MAX($B$5:B12)+1) -> 8 | C13: مراد 8 | D13: فريدة8 | E13: أولى | F13: جدع مشترك آداب | G13: 1 | H13: 1آف1 | I13: 12/2/2007 | J13: البياضة | K13: ذ | L13: محمد علي8 | M13: حي السلام -البياضة | N13: 2018-04-19 | O13: 2018-02-19 | P13: 8 | Q13: 2018-03-19 | R13: 12 | S13: 2019-01-13 | T13: 15 | Z13: =IF($V$2="","",SEARCH($V$2,$A13&""&#REF!&""&$D13&""&$F13&""&$I13&""&$J13&""&$K13)) ->  | AA13: =IF($X$2="","",SEARCH($X$2,$A13&" "&#REF!&" "&$D13&" "&$F13&" "&$I13&" "&$J13&" "&$K13&" "&$O13&" "&$Q13&" "&$S13&" "&$U13&" "&$V13&" "&$W13&" "&$X13)) -> 
A14: 9 | B14: =IF(C14="","",MAX($B$5:B13)+1) -> 9 | C14: مراد 9 | D14: فريدة9 | E14: أولى | F14: جدع مشترك آداب | G14: 1 | H14: 1آف1 | I14: 12/2/2008 | J14: البياضة | K14: ذ | L14: محمد علي9 | M14: حي الإزدهار - البياضة | N14: 2018-04-20 | O14: 2018-02-20 | P14: 9 | Q14: 2018-03-20 | R14: 13 | S14: 2019-01-14 | T14: 16 | V14: دخـــول | Z14: =IF($V$2="","",SEARCH($V$2,$A14&""&#REF!&""&$D14&""&$F14&""&$I14&""&$J14&""&$K14)) ->  | AA14: =IF($X$2="","",SEARCH($X$2,$A14&" "&#REF!&" "&$D14&" "&$F14&" "&$I14&" "&$J14&" "&$K14&" "&$O14&" "&$Q14&" "&$S14&" "&$U14&" "&$V14&" "&$W14&" "&$X14)) -> 
A15: 10 | B15: =IF(C15="","",MAX($B$5:B14)+1) -> 10 | C15: مراد 10 | D15: فريدة10 | E15: أولى | F15: جدع مشترك آداب | G15: 1 | H15: 1آف1 | I15: 12/2/2009 | J15: البياضة | K15: ذ | L15: محمد علي10 | M15: حي السلام -البياضة | N15: 2018-04-21 | O15: 2018-02-21 | P15: 10 | Q15: 2018-03-21 | R15: 14 | S15: 2019-01-15 | T15: 17 | Z15: =IF($V$2="","",SEARCH($V$2,$A15&""&#REF!&""&$D15&""&$F15&""&$I15&""&$J15&""&$K15)) ->  | AA15: =IF($X$2="","",SEARCH($X$2,$A15&" "&#REF!&" "&$D15&" "&$F15&" "&$I15&" "&$J15&" "&$K15&" "&$O15&" "&$Q15&" "&$S15&" "&$U15&" "&$V15&" "&$W15&" "&$X15)) -> 
A16: 11 | B16: =IF(C16="","",MAX($B$5:B15)+1) -> 11 | C16: مراد 11 | D16: فريدة11 | E16: أولى | F16: جدع مشترك آداب | G16: 1 | H16: 1آف1 | I16: 12/2/2010 | J16: البياضة | K16: ذ | L16: محمد علي11 | M16: حي الإزدهار - البياضة | N16: 2018-04-22 | O16: 2018-02-22 | P16: 11 | Q16: 2018-03-22 | R16: 15 | S16: 2019-01-16 | T16: 18 | Z16: =IF($V$2="","",SEARCH($V$2,$A16&""&#REF!&""&$D16&""&$F16&""&$I16&""&$J16&""&$K16)) ->  | AA16: =IF($X$2="","",SEARCH($X$2,$A16&" "&#REF!&" "&$D16&" "&$F16&" "&$I16&" "&$J16&" "&$K16&" "&$O16&" "&$Q16&" "&$S16&" "&$U16&" "&$V16&" "&$W16&" "&$X16)) -> 
A17: 12 | B17: =IF(C17="","",MAX($B$5:B16)+1) -> 12 | C17: مراد 12 | D17: فريدة12 | E17: أولى | F17: جدع مشترك آداب | G17: 1 | H17: 1آف1 | I17: 12/2/2011 | J17: البياضة | K17: ذ | L17: محمد علي12 | M17: حي السلام -البياضة | N17: 2018-04-23 | O17: 2018-02-23 | P17: 12 | Q17: 2018-03-23 | R17: 16 | S17: 2019-01-17 | T17: 19 | Z17: =IF($V$2="","",SEARCH($V$2,$A17&""&#REF!&""&$D17&""&$F17&""&$I17&""&$J17&""&$K17)) ->  | AA17: =IF($X$2="","",SEARCH($X$2,$A17&" "&#REF!&" "&$D17&" "&$F17&" "&$I17&" "&$J17&" "&$K17&" "&$O17&" "&$Q17&" "&$S17&" "&$U17&" "&$V17&" "&$W17&" "&$X17)) -> 
A18: 13 | B18: =IF(C18="","",MAX($B$5:B17)+1) -> 13 | C18: مراد 13 | D18: فريدة13 | E18: أولى | F18: جدع مشترك آداب | G18: 1 | H18: 1آف1 | I18: 12/2/2012 | J18: البياضة | K18: ذ | L18: محمد علي13 | M18: حي الإزدهار - البياضة | N18: 2018-04-24 | O18: 2018-02-24 | P18: 13 | Q18: 2018-03-24 | R18: 17 | S18: 2019-01-18 | T18: 20 | Z18: =IF($V$2="","",SEARCH($V$2,$A18&""&#REF!&""&$D18&""&$F18&""&$I18&""&$J18&""&$K18)) ->  | AA18: =IF($X$2="","",SEARCH($X$2,$A18&" "&#REF!&" "&$D18&" "&$F18&" "&$I18&" "&$J18&" "&$K18&" "&$O18&" "&$Q18&" "&$S18&" "&$U18&" "&$V18&" "&$W18&" "&$X18)) -> 
A19: 14 | B19: =IF(C19="","",MAX($B$5:B18)+1) -> 14 | C19: مراد 14 | D19: فريدة14 | E19: أولى | F19: جدع مشترك آداب | G19: 1 | H19: 1آف1 | I19: 12/2/2013 | J19: البياضة | K19: ذ | L19: محمد علي14 | M19: حي السلام -البياضة | N19: 2018-04-25 | O19: 2018-02-25 | P19: 14 | Q19: 2018-03-25 | R19: 18 | S19: 2019-01-19 | T19: 21 | Z19: =IF($V$2="","",SEARCH($V$2,$A19&""&#REF!&""&$D19&""&$F19&""&$I19&""&$J19&""&$K19)) ->  | AA19: =IF($X$2="","",SEARCH($X$2,$A19&" "&#REF!&" "&$D19&" "&$F19&" "&$I19&" "&$J19&" "&$K19&" "&$O19&" "&$Q19&" "&$S19&" "&$U19&" "&$V19&" "&$W19&" "&$X19)) -> 
A20: 15 | B20: =IF(C20="","",MAX($B$5:B19)+1) -> 15 | C20: مراد 15 | D20: فريدة15 | E20: أولى | F20: جدع مشترك آداب | G20: 1 | H20: 1آف1 | I20: 12/2/2014 | J20: الدبيلة | K20: ذ | L20: محمد علي15 | M20: حي الإزدهار - البياضة | N20: 2018-04-26 | O20: 2018-02-26 | P20: 15 | Q20: 2018-03-26 | R20: 19 | S20: 2019-01-20 | T20: 22 | Z20: =IF($V$2="","",SEARCH($V$2,$A20&""&#REF!&""&$D20&""&$F20&""&$I20&""&$J20&""&$K20)) ->  | AA20: =IF($X$2="","",SEARCH($X$2,$A20&" "&#REF!&" "&$D20&" "&$F20&" "&$I20&" "&$J20&" "&$K20&" "&$O20&" "&$Q20&" "&$S20&" "&$U20&" "&$V20&" "&$W20&" "&$X20)) -> 
A21: 16 | B21: =IF(C21="","",MAX($B$5:B20)+1) -> 16 | C21: مراد 16 | D21: فريدة16 | E21: أولى | F21: جدع مشترك آداب | G21: 1 | H21: 1آف1 | I21: 12/2/2015 | J21: البياضة | K21: ذ | L21: محمد علي16 | M21: حي السلام -البياضة | N21: 2018-04-27 | O21: 2018-02-27 | P21: 16 | Q21: 2018-03-27 | R21: 20 | S21: 2019-01-21 | T21: 23 | Z21: =IF($V$2="","",SEARCH($V$2,$A21&""&#REF!&""&$D21&""&$F21&""&$I21&""&$J21&""&$K21)) ->  | AA21: =IF($X$2="","",SEARCH($X$2,$A21&" "&#REF!&" "&$D21&" "&$F21&" "&$I21&" "&$J21&" "&$K21&" "&$O21&" "&$Q21&" "&$S21&" "&$U21&" "&$V21&" "&$W21&" "&$X21)) -> 
A22: 17 | B22: =IF(C22="","",MAX($B$5:B21)+1) -> 17 | C22: مراد 17 | D22: فريدة17 | E22: أولى | F22: جدع مشترك آداب | G22: 1 | H22: 1آف1 | I22: 12/2/2016 | J22: البياضة | K22: ذ | L22: محمد علي17 | M22: حي الإزدهار - البياضة | N22: 2018-04-28 | O22: 2018-02-28 | P22: 17 | Q22: 2018-03-28 | R22: 21 | S22: 2019-01-22 | T22: 24 | Z22: =IF($V$2="","",SEARCH($V$2,$A22&""&#REF!&""&$D22&""&$F22&""&$I22&""&$J22&""&$K22)) ->  | AA22: =IF($X$2="","",SEARCH($X$2,$A22&" "&#REF!&" "&$D22&" "&$F22&" "&$I22&" "&$J22&" "&$K22&" "&$O22&" "&$Q22&" "&$S22&" "&$U22&" "&$V22&" "&$W22&" "&$X22)) -> 
A23: 18 | B23: =IF(C23="","",MAX($B$5:B22)+1) -> 18 | C23: مراد 18 | D23: فريدة18 | E23: أولى | F23: جدع مشترك آداب | G23: 1 | H23: 1آف1 | I23: 12/2/2017 | J23: البياضة | K23: ذ | L23: محمد علي18 | M23: حي السلام -البياضة | N23: 2018-04-29 | O23: 2018-03-01 | P23: 18 | Q23: 2018-03-29 | R23: 22 | S23: 2019-01-23 | T23: 25 | Z23: =IF($V$2="","",SEARCH($V$2,$A23&""&#REF!&""&$D23&""&$F23&""&$I23&""&$J23&""&$K23)) ->  | AA23: =IF($X$2="","",SEARCH($X$2,$A23&" "&#REF!&" "&$D23&" "&$F23&" "&$I23&" "&$J23&" "&$K23&" "&$O23&" "&$Q23&" "&$S23&" "&$U23&" "&$V23&" "&$W23&" "&$X23)) -> 
A24: 19 | B24: =IF(C24="","",MAX($B$5:B23)+1) -> 19 | C24: مراد 19 | D24: فريدة19 | E24: أولى | F24: جدع مشترك آداب | G24: 1 | H24: 1آف1 | I24: 12/2/2018 | J24: البياضة | K24: ذ | L24: محمد علي19 | M24: حي الإزدهار - البياضة | N24: 2018-04-30 | O24: 2018-03-02 | P24: 19 | Q24: 2018-03-30 | R24: 23 | S24: 2019-01-24 | T24: 26 | Z24: =IF($V$2="","",SEARCH($V$2,$A24&""&#REF!&""&$D24&""&$F24&""&$I24&""&$J24&""&$K24)) ->  | AA24: =IF($X$2="","",SEARCH($X$2,$A24&" "&#REF!&" "&$D24&" "&$F24&" "&$I24&" "&$J24&" "&$K24&" "&$O24&" "&$Q24&" "&$S24&" "&$U24&" "&$V24&" "&$W24&" "&$X24)) -> 
A25: 20 | B25: =IF(C25="","",MAX($B$5:B24)+1) -> 20 | C25: مراد 20 | D25: فريدة20 | E25: أولى | F25: جدع مشترك آداب | G25: 1 | H25: 1آف1 | I25: 12/2/2019 | J25: البياضة | K25: ذ | L25: محمد علي20 | M25: حي السلام -البياضة | N25: 2018-05-01 | O25: 2018-03-03 | P25: 20 | Q25: 2018-03-31 | R25: 24 | S25: 2019-01-25 | T25: 27 | Z25: =IF($V$2="","",SEARCH($V$2,$A25&""&#REF!&""&$D25&""&$F25&""&$I25&""&$J25&""&$K25)) ->  | AA25: =IF($X$2="","",SEARCH($X$2,$A25&" "&#REF!&" "&$D25&" "&$F25&" "&$I25&" "&$J25&" "&$K25&" "&$O25&" "&$Q25&" "&$S25&" "&$U25&" "&$V25&" "&$W25&" "&$X25)) -> 
A26: 21 | B26: =IF(C26="","",MAX($B$5:B25)+1) -> 21 | C26: مراد 21 | D26: فريدة21 | E26: أولى | F26: جدع مشترك آداب | G26: 1 | H26: 1آف1 | I26: 12/2/2020 | J26: بن ناصر | K26: ذ | L26: محمد علي21 | M26: حي الإزدهار - البياضة | N26: 2018-05-02 | O26: 2018-03-04 | P26: 21 | Q26: 2018-04-01 | R26: 25 | S26: 2019-01-26 | T26: 28 | Z26: =IF($V$2="","",SEARCH($V$2,$A26&""&#REF!&""&$D26&""&$F26&""&$I26&""&$J26&""&$K26)) ->  | AA26: =IF($X$2="","",SEARCH($X$2,$A26&" "&#REF!&" "&$D26&" "&$F26&" "&$I26&" "&$J26&" "&$K26&" "&$O26&" "&$Q26&" "&$S26&" "&$U26&" "&$V26&" "&$W26&" "&$X26)) -> 
A27: 22 | B27: =IF(C27="","",MAX($B$5:B26)+1) -> 22 | C27: مراد 22 | D27: فريدة22 | E27: أولى | F27: جدع مشترك آداب | G27: 1 | H27: 1آف1 | I27: 12/2/2021 | J27: المقارين | K27: ذ | L27: محمد علي22 | M27: حي السلام -البياضة | N27: 2018-05-03 | O27: 2018-03-05 | P27: 22 | Q27: 2018-04-02 | R27: 26 | S27: 2019-01-27 | T27: 29 | Z27: =IF($V$2="","",SEARCH($V$2,$A27&""&#REF!&""&$D27&""&$F27&""&$I27&""&$J27&""&$K27)) ->  | AA27: =IF($X$2="","",SEARCH($X$2,$A27&" "&#REF!&" "&$D27&" "&$F27&" "&$I27&" "&$J27&" "&$K27&" "&$O27&" "&$Q27&" "&$S27&" "&$U27&" "&$V27&" "&$W27&" "&$X27)) -> 
A28: 23 | B28: =IF(C28="","",MAX($B$5:B27)+1) -> 23 | C28: مراد 23 | D28: فريدة23 | E28: أولى | F28: جدع مشترك آداب | G28: 1 | H28: 1آف1 | I28: 12/2/2022 | J28: الوادي | K28: ذ | L28: محمد علي23 | M28: حي الإزدهار - البياضة | N28: 2018-05-04 | O28: 2018-03-06 | P28: 23 | Q28: 2018-04-03 | R28: 27 | S28: 2019-01-28 | T28: 30 | Z28: =IF($V$2="","",SEARCH($V$2,$A28&""&#REF!&""&$D28&""&$F28&""&$I28&""&$J28&""&$K28)) ->  | AA28: =IF($X$2="","",SEARCH($X$2,$A28&" "&#REF!&" "&$D28&" "&$F28&" "&$I28&" "&$J28&" "&$K28&" "&$O28&" "&$Q28&" "&$S28&" "&$U28&" "&$V28&" "&$W28&" "&$X28)) ->  | AB28: 49
A29: 24 | B29: =IF(C29="","",MAX($B$5:B28)+1) -> 24 | C29: مراد 24 | D29: فريدة24 | E29: أولى | F29: جدع مشترك آداب | G29: 1 | H29: 1آف1 | I29: 12/2/2023 | J29: البياضة | K29: ذ | L29: محمد علي24 | M29: حي السلام -البياضة | N29: 2018-05-05 | O29: 2018-03-07 | P29: 24 | Q29: 2018-04-04 | R29: 28 | S29: 2019-01-29 | T29: 31 | Z29: =IF($V$2="","",SEARCH($V$2,$A29&""&#REF!&""&$D29&""&$F29&""&$I29&""&$J29&""&$K29)) ->  | AA29: =IF($X$2="","",SEARCH($X$2,$A29&" "&#REF!&" "&$D29&" "&$F29&" "&$I29&" "&$J29&" "&$K29&" "&$O29&" "&$Q29&" "&$S29&" "&$U29&" "&$V29&" "&$W29&" "&$X29)) -> 
A30: 25 | B30: =IF(C30="","",MAX($B$5:B29)+1) -> 25 | C30: مراد 25 | D30: فريدة25 | E30: أولى | F30: جدع مشترك آداب | G30: 1 | H30: 1آف1 | I30: 12/2/2024 | J30: البياضة | K30: ذ | L30: محمد علي25 | M30: حي الإزدهار - البياضة | N30: 2018-05-06 | O30: 2018-03-08 | P30: 25 | Q30: 2018-04-05 | R30: 29 | S30: 2019-01-30 | T30: 32 | Z30: =IF($V$2="","",SEARCH($V$2,$A30&""&#REF!&""&$D30&""&$F30&""&$I30&""&$J30&""&$K30)) ->  | AA30: =IF($X$2="","",SEARCH($X$2,$A30&" "&#REF!&" "&$D30&" "&$F30&" "&$I30&" "&$J30&" "&$K30&" "&$O30&" "&$Q30&" "&$S30&" "&$U30&" "&$V30&" "&$W30&" "&$X30)) -> 
A31: 26 | B31: =IF(C31="","",MAX($B$5:B30)+1) -> 26 | C31: مراد 26 | D31: فريدة26 | E31: أولى | F31: جدع مشترك آداب | G31: 1 | H31: 1آف1 | I31: 12/2/2025 | J31: البياضة | K31: ذ | L31: محمد علي26 | M31: حي السلام -البياضة | N31: 2018-05-07 | O31: 2018-03-09 | P31: 26 | Q31: 2018-04-06 | R31: 30 | S31: 2019-01-31 | T31: 33 | Z31: =IF($V$2="","",SEARCH($V$2,$A31&""&#REF!&""&$D31&""&$F31&""&$I31&""&$J31&""&$K31)) ->  | AA31: =IF($X$2="","",SEARCH($X$2,$A31&" "&#REF!&" "&$D31&" "&$F31&" "&$I31&" "&$J31&" "&$K31&" "&$O31&" "&$Q31&" "&$S31&" "&$U31&" "&$V31&" "&$W31&" "&$X31)) -> 
A32: 27 | B32: =IF(C32="","",MAX($B$5:B31)+1) -> 27 | C32: مراد 27 | D32: فريدة27 | E32: أولى | F32: جدع مشترك آداب | G32: 1 | H32: 1آف1 | I32: 12/2/2026 | J32: البياضة | K32: ذ | L32: محمد علي27 | M32: حي الإزدهار - البياضة | N32: 2018-05-08 | O32: 2018-03-10 | P32: 27 | Q32: 2018-04-07 | R32: 31 | S32: 2019-02-01 | T32: 34 | Z32: =IF($V$2="","",SEARCH($V$2,$A32&""&#REF!&""&$D32&""&$F32&""&$I32&""&$J32&""&$K32)) ->  | AA32: =IF($X$2="","",SEARCH($X$2,$A32&" "&#REF!&" "&$D32&" "&$F32&" "&$I32&" "&$J32&" "&$K32&" "&$O32&" "&$Q32&" "&$S32&" "&$U32&" "&$V32&" "&$W32&" "&$X32)) -> 
A33: 28 | B33: =IF(C33="","",MAX($B$5:B32)+1) -> 28 | C33: مراد 28 | D33: فريدة28 | E33: أولى | F33: جدع مشترك آداب | G33: 1 | H33: 1آف1 | I33: 12/2/2027 | J33: البياضة | K33: ذ | L33: محمد علي28 | M33: حي السلام -البياضة | N33: 2018-05-09 | O33: 2018-03-11 | P33: 28 | Q33: 2018-04-08 | R33: 32 | S33: 2019-02-02 | T33: 35 | Z33: =IF($V$2="","",SEARCH($V$2,$A33&""&#REF!&""&$D33&""&$F33&""&$I33&""&$J33&""&$K33)) ->  | AA33: =IF($X$2="","",SEARCH($X$2,$A33&" "&#REF!&" "&$D33&" "&$F33&" "&$I33&" "&$J33&" "&$K33&" "&$O33&" "&$Q33&" "&$S33&" "&$U33&" "&$V33&" "&$W33&" "&$X33)) -> 
A34: 29 | B34: =IF(C34="","",MAX($B$5:B33)+1) -> 29 | C34: مراد 29 | D34: فريدة29 | E34: أولى | F34: جدع مشترك آداب | G34: 1 | H34: 1آف1 | I34: 12/2/2028 | J34: البياضة | K34: ذ | L34: محمد علي29 | M34: حي الإزدهار - البياضة | N34: 2018-05-10 | O34: 2018-03-12 | P34: 29 | Q34: 2018-04-09 | R34: 33 | S34: 2019-02-03 | T34: 36 | Z34: =IF($V$2="","",SEARCH($V$2,$A34&""&#REF!&""&$D34&""&$F34&""&$I34&""&$J34&""&$K34)) ->  | AA34: =IF($X$2="","",SEARCH($X$2,$A34&" "&#REF!&" "&$D34&" "&$F34&" "&$I34&" "&$J34&" "&$K34&" "&$O34&" "&$Q34&" "&$S34&" "&$U34&" "&$V34&" "&$W34&" "&$X34)) -> 
A35: 30 | B35: =IF(C35="","",MAX($B$5:B34)+1) -> 30 | C35: مراد 30 | D35: فريدة30 | E35: أولى | F35: جدع مشترك آداب | G35: 2 | H35: 1آف2 | I35: 12/2/2029 | J35: البياضة | K35: ذ | L35: محمد علي30 | M35: حي السلام -البياضة | N35: 2018-05-11 | O35: 2018-03-13 | P35: 30 | Q35: 2018-04-10 | R35: 34 | S35: 2019-02-04 | T35: 37 | Z35: =IF($V$2="","",SEARCH($V$2,$A35&""&#REF!&""&$D35&""&$F35&""&$I35&""&$J35&""&$K35)) ->  | AA35: =IF($X$2="","",SEARCH($X$2,$A35&" "&#REF!&" "&$D35&" "&$F35&" "&$I35&" "&$J35&" "&$K35&" "&$O35&" "&$Q35&" "&$S35&" "&$U35&" "&$V35&" "&$W35&" "&$X35)) -> 
A36: 31 | B36: =IF(C36="","",MAX($B$5:B35)+1) -> 31 | C36: مراد 31 | D36: فريدة31 | E36: أولى | F36: جدع مشترك آداب | G36: 2 | H36: 1آف2 | I36: 12/2/2030 | J36: تبسة | K36: ذ | L36: محمد علي31 | M36: حي الإزدهار - البياضة | N36: 2018-05-12 | O36: 2018-03-14 | P36: 31 | Q36: 2018-04-11 | R36: 35 | S36: 2019-02-05 | T36: 38 | Z36: =IF($V$2="","",SEARCH($V$2,$A36&""&#REF!&""&$D36&""&$F36&""&$I36&""&$J36&""&$K36)) ->  | AA36: =IF($X$2="","",SEARCH($X$2,$A36&" "&#REF!&" "&$D36&" "&$F36&" "&$I36&" "&$J36&" "&$K36&" "&$O36&" "&$Q36&" "&$S36&" "&$U36&" "&$V36&" "&$W36&" "&$X36)) -> 
A37: 32 | B37: =IF(C37="","",MAX($B$5:B36)+1) -> 32 | C37: مراد 32 | D37: فريدة32 | E37: أولى | F37: جدع مشترك آداب | G37: 2 | H37: 1آف2 | I37: 12/2/2031 | J37: البياضه | K37: ذ | L37: محمد علي32 | M37: حي السلام -البياضة | N37: 2018-05-13 | O37: 2018-03-15 | P37: 32 | Q37: 2018-04-12 | R37: 36 | S37: 2019-02-06 | T37: 39 | Z37: =IF($V$2="","",SEARCH($V$2,$A37&""&#REF!&""&$D37&""&$F37&""&$I37&""&$J37&""&$K37)) ->  | AA37: =IF($X$2="","",SEARCH($X$2,$A37&" "&#REF!&" "&$D37&" "&$F37&" "&$I37&" "&$J37&" "&$K37&" "&$O37&" "&$Q37&" "&$S37&" "&$U37&" "&$V37&" "&$W37&" "&$X37)) -> 
A38: 33 | B38: =IF(C38="","",MAX($B$5:B37)+1) -> 33 | C38: مراد 33 | D38: فريدة33 | E38: أولى | F38: جدع مشترك آداب | G38: 2 | H38: 1آف2 | I38: 12/2/2032 | J38: البياضة | K38: ذ | L38: محمد علي33 | M38: حي الإزدهار - البياضة | N38: 2018-05-14 | O38: 2018-03-16 | P38: 33 | Q38: 2018-04-13 | R38: 37 | S38: 2019-02-07 | T38: 40 | Z38: =IF($V$2="","",SEARCH($V$2,$A38&""&#REF!&""&$D38&""&$F38&""&$I38&""&$J38&""&$K38)) ->  | AA38: =IF($X$2="","",SEARCH($X$2,$A38&" "&#REF!&" "&$D38&" "&$F38&" "&$I38&" "&$J38&" "&$K38&" "&$O38&" "&$Q38&" "&$S38&" "&$U38&" "&$V38&" "&$W38&" "&$X38)) -> 
A39: 34 | B39: =IF(C39="","",MAX($B$5:B38)+1) -> 34 | C39: مراد 34 | D39: فريدة34 | E39: أولى | F39: جدع مشترك آداب | G39: 2 | H39: 1آف2 | I39: 12/2/2033 | J39: البياضة | K39: ذ | L39: محمد علي34 | M39: حي السلام -البياضة | N39: 2018-05-15 | O39: 2018-03-17 | P39: 34 | Q39: 2018-04-14 | R39: 38 | S39: 2019-02-08 | T39: 41 | Z39: =IF($V$2="","",SEARCH($V$2,$A39&""&#REF!&""&$D39&""&$F39&""&$I39&""&$J39&""&$K39)) ->  | AA39: =IF($X$2="","",SEARCH($X$2,$A39&" "&#REF!&" "&$D39&" "&$F39&" "&$I39&" "&$J39&" "&$K39&" "&$O39&" "&$Q39&" "&$S39&" "&$U39&" "&$V39&" "&$W39&" "&$X39)) -> 
A40: 35 | B40: =IF(C40="","",MAX($B$5:B39)+1) -> 35 | C40: مراد 35 | D40: فريدة35 | E40: أولى | F40: جدع مشترك آداب | G40: 2 | H40: 1آف2 | I40: 12/2/2034 | J40: الوادي | K40: ذ | L40: محمد علي35 | M40: حي الإزدهار - البياضة | N40: 2018-05-16 | O40: 2018-03-18 | P40: 35 | Q40: 2018-04-15 | R40: 39 | S40: 2019-02-09 | T40: 42 | Z40: =IF($V$2="","",SEARCH($V$2,$A40&""&#REF!&""&$D40&""&$F40&""&$I40&""&$J40&""&$K40)) ->  | AA40: =IF($X$2="","",SEARCH($X$2,$A40&" "&#REF!&" "&$D40&" "&$F40&" "&$I40&" "&$J40&" "&$K40&" "&$O40&" "&$Q40&" "&$S40&" "&$U40&" "&$V40&" "&$W40&" "&$X40)) ->  | AB40: 49
A41: 36 | B41: =IF(C41="","",MAX($B$5:B40)+1) -> 36 | C41: مراد 36 | D41: فريدة36 | E41: أولى | F41: جدع مشترك آداب | G41: 2 | H41: 1آف2 | I41: 12/2/2035 | J41: الرقيبة | K41: ذ | L41: محمد علي36 | M41: حي السلام -البياضة | N41: 2018-05-17 | O41: 2018-03-19 | P41: 36 | Q41: 2018-04-16 | R41: 40 | S41: 2019-02-10 | T41: 43 | Z41: =IF($V$2="","",SEARCH($V$2,$A41&""&#REF!&""&$D41&""&$F41&""&$I41&""&$J41&""&$K41)) ->  | AA41: =IF($X$2="","",SEARCH($X$2,$A41&" "&#REF!&" "&$D41&" "&$F41&" "&$I41&" "&$J41&" "&$K41&" "&$O41&" "&$Q41&" "&$S41&" "&$U41&" "&$V41&" "&$W41&" "&$X41)) -> 
A42: 37 | B42: =IF(C42="","",MAX($B$5:B41)+1) -> 37 | C42: مراد 37 | D42: فريدة37 | E42: أولى | F42: جدع مشترك آداب | G42: 2 | H42: 1آف2 | I42: 12/2/2036 | J42: البياضة | K42: ذ | L42: محمد علي37 | M42: حي الإزدهار - البياضة | N42: 2018-05-18 | O42: 2018-03-20 | P42: 37 | Q42: 2018-04-17 | R42: 41 | S42: 2019-02-11 | T42: 44 | Z42: =IF($V$2="","",SEARCH($V$2,$A42&""&#REF!&""&$D42&""&$F42&""&$I42&""&$J42&""&$K42)) ->  | AA42: =IF($X$2="","",SEARCH($X$2,$A42&" "&#REF!&" "&$D42&" "&$F42&" "&$I42&" "&$J42&" "&$K42&" "&$O42&" "&$Q42&" "&$S42&" "&$U42&" "&$V42&" "&$W42&" "&$X42)) -> 
A43: 38 | B43: =IF(C43="","",MAX($B$5:B42)+1) -> 38 | C43: مراد 38 | D43: فريدة38 | E43: أولى | F43: جدع مشترك آداب | G43: 2 | H43: 1آف2 | I43: 12/2/2037 | J43: الوادي | K43: ذ | L43: محمد علي38 | M43: حي السلام -البياضة | N43: 2018-05-19 | O43: 2018-03-21 | P43: 38 | Q43: 2018-04-18 | R43: 42 | S43: 2019-02-12 | T43: 45 | Z43: =IF($V$2="","",SEARCH($V$2,$A43&""&#REF!&""&$D43&""&$F43&""&$I43&""&$J43&""&$K43)) ->  | AA43: =IF($X$2="","",SEARCH($X$2,$A43&" "&#REF!&" "&$D43&" "&$F43&" "&$I43&" "&$J43&" "&$K43&" "&$O43&" "&$Q43&" "&$S43&" "&$U43&" "&$V43&" "&$W43&" "&$X43)) ->  | AB43: 49
A44: 39 | B44: =IF(C44="","",MAX($B$5:B43)+1) -> 39 | C44: مراد 39 | D44: فريدة39 | E44: أولى | F44: جدع مشترك آداب | G44: 2 | H44: 1آف2 | I44: 12/2/2038 | J44: البياضة | K44: ذ | L44: محمد علي39 | M44: حي الإزدهار - البياضة | N44: 2018-05-20 | O44: 2018-03-22 | P44: 39 | Q44: 2018-04-19 | R44: 43 | S44: 2019-02-13 | T44: 46 | Z44: =IF($V$2="","",SEARCH($V$2,$A44&""&#REF!&""&$D44&""&$F44&""&$I44&""&$J44&""&$K44)) ->  | AA44: =IF($X$2="","",SEARCH($X$2,$A44&" "&#REF!&" "&$D44&" "&$F44&" "&$I44&" "&$J44&" "&$K44&" "&$O44&" "&$Q44&" "&$S44&" "&$U44&" "&$V44&" "&$W44&" "&$X44)) -> 
A45: 40 | B45: =IF(C45="","",MAX($B$5:B44)+1) -> 40 | C45: مراد 40 | D45: فريدة40 | E45: أولى | F45: جدع مشترك آداب | G45: 2 | H45: 1آف2 | I45: 12/2/2039 | J45: البياضة | K45: ذ | L45: محمد علي40 | M45: حي السلام -البياضة | N45: 2018-05-21 | O45: 2018-03-23 | P45: 40 | Q45: 2018-04-20 | R45: 44 | S45: 2019-02-14 | T45: 47 | Z45: =IF($V$2="","",SEARCH($V$2,$A45&""&#REF!&""&$D45&""&$F45&""&$I45&""&$J45&""&$K45)) ->  | AA45: =IF($X$2="","",SEARCH($X$2,$A45&" "&#REF!&" "&$D45&" "&$F45&" "&$I45&" "&$J45&" "&$K45&" "&$O45&" "&$Q45&" "&$S45&" "&$U45&" "&$V45&" "&$W45&" "&$X45)) -> 
A46: 41 | B46: =IF(C46="","",MAX($B$5:B45)+1) -> 41 | C46: مراد 41 | D46: فريدة41 | E46: أولى | F46: جدع مشترك آداب | G46: 2 | H46: 1آف2 | I46: 12/2/2040 | J46: البياضة | K46: ذ | L46: محمد علي41 | M46: حي الإزدهار - البياضة | N46: 2018-05-22 | O46: 2018-03-24 | P46: 41 | Q46: 2018-04-21 | R46: 45 | S46: 2019-02-15 | T46: 48 | Z46: =IF($V$2="","",SEARCH($V$2,$A46&""&#REF!&""&$D46&""&$F46&""&$I46&""&$J46&""&$K46)) ->  | AA46: =IF($X$2="","",SEARCH($X$2,$A46&" "&#REF!&" "&$D46&" "&$F46&" "&$I46&" "&$J46&" "&$K46&" "&$O46&" "&$Q46&" "&$S46&" "&$U46&" "&$V46&" "&$W46&" "&$X46)) -> 
A47: 42 | B47: =IF(C47="","",MAX($B$5:B46)+1) -> 42 | C47: مراد 42 | D47: فريدة42 | E47: أولى | F47: جدع مشترك آداب | G47: 2 | H47: 1آف2 | I47: 12/2/2041 | J47: البياضة | K47: ذ | L47: محمد علي42 | M47: حي السلام -البياضة | N47: 2018-05-23 | O47: 2018-03-25 | P47: 42 | Q47: 2018-04-22 | R47: 46 | S47: 2019-02-16 | T47: 49 | Z47: =IF($V$2="","",SEARCH($V$2,$A47&""&#REF!&""&$D47&""&$F47&""&$I47&""&$J47&""&$K47)) ->  | AA47: =IF($X$2="","",SEARCH($X$2,$A47&" "&#REF!&" "&$D47&" "&$F47&" "&$I47&" "&$J47&" "&$K47&" "&$O47&" "&$Q47&" "&$S47&" "&$U47&" "&$V47&" "&$W47&" "&$X47)) -> 
A48: 43 | B48: =IF(C48="","",MAX($B$5:B47)+1) -> 43 | C48: مراد 43 | D48: فريدة43 | E48: أولى | F48: جدع مشترك آداب | G48: 2 | H48: 1آف2 | I48: 12/2/2042 | J48: البياضة | K48: ذ | L48: محمد علي43 | M48: حي الإزدهار - البياضة | N48: 2018-05-24 | O48: 2018-03-26 | P48: 43 | Q48: 2018-04-23 | R48: 47 | S48: 2019-02-17 | T48: 50 | Z48: =IF($V$2="","",SEARCH($V$2,$A48&""&#REF!&""&$D48&""&$F48&""&$I48&""&$J48&""&$K48)) ->  | AA48: =IF($X$2="","",SEARCH($X$2,$A48&" "&#REF!&" "&$D48&" "&$F48&" "&$I48&" "&$J48&" "&$K48&" "&$O48&" "&$Q48&" "&$S48&" "&$U48&" "&$V48&" "&$W48&" "&$X48)) -> 
A49: 44 | B49: =IF(C49="","",MAX($B$5:B48)+1) -> 44 | C49: مراد 44 | D49: فريدة44 | E49: أولى | F49: جدع مشترك آداب | G49: 2 | H49: 1آف2 | I49: 12/2/2043 | J49: الوادي | K49: ذ | L49: محمد علي44 | M49: حي السلام -البياضة | N49: 2018-05-25 | O49: 2018-03-27 | P49: 44 | Q49: 2018-04-24 | R49: 48 | S49: 2019-02-18 | T49: 51 | Z49: =IF($V$2="","",SEARCH($V$2,$A49&""&#REF!&""&$D49&""&$F49&""&$I49&""&$J49&""&$K49)) ->  | AA49: =IF($X$2="","",SEARCH($X$2,$A49&" "&#REF!&" "&$D49&" "&$F49&" "&$I49&" "&$J49&" "&$K49&" "&$O49&" "&$Q49&" "&$S49&" "&$U49&" "&$V49&" "&$W49&" "&$X49)) ->  | AB49: 49
A50: 45 | B50: =IF(C50="","",MAX($B$5:B49)+1) -> 45 | C50: مراد 45 | D50: فريدة45 | E50: أولى | F50: جدع مشترك آداب | G50: 2 | H50: 1آف2 | I50: 12/2/2044 | J50: البياضة | K50: ذ | L50: محمد علي45 | M50: حي الإزدهار - البياضة | N50: 2018-05-26 | O50: 2018-03-28 | P50: 45 | Q50: 2018-04-25 | R50: 49 | S50: 2019-02-19 | T50: 52 | Z50: =IF($V$2="","",SEARCH($V$2,$A50&""&#REF!&""&$D50&""&$F50&""&$I50&""&$J50&""&$K50)) ->  | AA50: =IF($X$2="","",SEARCH($X$2,$A50&" "&#REF!&" "&$D50&" "&$F50&" "&$I50&" "&$J50&" "&$K50&" "&$O50&" "&$Q50&" "&$S50&" "&$U50&" "&$V50&" "&$W50&" "&$X50)) -> 
A51: 46 | B51: =IF(C51="","",MAX($B$5:B50)+1) -> 46 | C51: مراد 46 | D51: فريدة46 | E51: أولى | F51: جدع مشترك آداب | G51: 2 | H51: 1آف2 | I51: 12/2/2045 | J51: البياضة | K51: ذ | L51: محمد علي46 | M51: حي السلام -البياضة | N51: 2018-05-27 | O51: 2018-03-29 | P51: 46 | Q51: 2018-04-26 | R51: 50 | S51: 2019-02-20 | T51: 53 | Z51: =IF($V$2="","",SEARCH($V$2,$A51&""&#REF!&""&$D51&""&$F51&""&$I51&""&$J51&""&$K51)) ->  | AA51: =IF($X$2="","",SEARCH($X$2,$A51&" "&#REF!&" "&$D51&" "&$F51&" "&$I51&" "&$J51&" "&$K51&" "&$O51&" "&$Q51&" "&$S51&" "&$U51&" "&$V51&" "&$W51&" "&$X51)) -> 
A52: 47 | B52: =IF(C52="","",MAX($B$5:B51)+1) -> 47 | C52: مراد 47 | D52: فريدة47 | E52: أولى | F52: جدع مشترك آداب | G52: 2 | H52: 1آف2 | I52: 12/2/2046 | J52: البياضة | K52: ذ | L52: محمد علي47 | M52: حي الإزدهار - البياضة | N52: 2018-05-28 | O52: 2018-03-30 | P52: 47 | Q52: 2018-04-27 | R52: 51 | S52: 2019-02-21 | T52: 54 | Z52: =IF($V$2="","",SEARCH($V$2,$A52&""&#REF!&""&$D52&""&$F52&""&$I52&""&$J52&""&$K52)) ->  | AA52: =IF($X$2="","",SEARCH($X$2,$A52&" "&#REF!&" "&$D52&" "&$F52&" "&$I52&" "&$J52&" "&$K52&" "&$O52&" "&$Q52&" "&$S52&" "&$U52&" "&$V52&" "&$W52&" "&$X52)) -> 
A53: 48 | B53: =IF(C53="","",MAX($B$5:B52)+1) -> 48 | C53: مراد 48 | D53: فريدة48 | E53: أولى | F53: جدع مشترك آداب | G53: 2 | H53: 1آف2 | I53: 12/2/2047 | J53: البياضة | K53: ذ | L53: محمد علي48 | M53: حي السلام -البياضة | N53: 2018-05-29 | O53: 2018-03-31 | P53: 48 | Q53: 2018-04-28 | R53: 52 | S53: 2019-02-22 | T53: 55 | Z53: =IF($V$2="","",SEARCH($V$2,$A53&""&#REF!&""&$D53&""&$F53&""&$I53&""&$J53&""&$K53)) ->  | AA53: =IF($X$2="","",SEARCH($X$2,$A53&" "&#REF!&" "&$D53&" "&$F53&" "&$I53&" "&$J53&" "&$K53&" "&$O53&" "&$Q53&" "&$S53&" "&$U53&" "&$V53&" "&$W53&" "&$X53)) -> 
A54: 49 | B54: =IF(C54="","",MAX($B$5:B53)+1) -> 49 | C54: مراد 49 | D54: فريدة49 | E54: أولى | F54: جدع مشترك آداب | G54: 2 | H54: 1آف2 | I54: 12/2/2048 | J54: البياضة | K54: ذ | L54: محمد علي49 | M54: حي الإزدهار - البياضة | N54: 2018-05-30 | O54: 2018-04-01 | P54: 49 | Q54: 2018-04-29 | R54: 53 | S54: 2019-02-23 | T54: 56 | Z54: =IF($V$2="","",SEARCH($V$2,$A54&""&#REF!&""&$D54&""&$F54&""&$I54&""&$J54&""&$K54)) ->  | AA54: =IF($X$2="","",SEARCH($X$2,$A54&" "&#REF!&" "&$D54&" "&$F54&" "&$I54&" "&$J54&" "&$K54&" "&$O54&" "&$Q54&" "&$S54&" "&$U54&" "&$V54&" "&$W54&" "&$X54)) -> 
A55: 50 | B55: =IF(C55="","",MAX($B$5:B54)+1) -> 50 | C55: مراد 50 | D55: فريدة50 | E55: أولى | F55: جدع مشترك آداب | G55: 2 | H55: 1آف2 | I55: 12/2/2049 | J55: البياضة | K55: ذ | L55: محمد علي50 | M55: حي السلام -البياضة | N55: 2018-05-31 | O55: 2018-04-02 | P55: 50 | Q55: 2018-04-30 | R55: 54 | S55: 2019-02-24 | T55: 57 | Z55: =IF($V$2="","",SEARCH($V$2,$A55&""&#REF!&""&$D55&""&$F55&""&$I55&""&$J55&""&$K55)) ->  | AA55: =IF($X$2="","",SEARCH($X$2,$A55&" "&#REF!&" "&$D55&" "&$F55&" "&$I55&" "&$J55&" "&$K55&" "&$O55&" "&$Q55&" "&$S55&" "&$U55&" "&$V55&" "&$W55&" "&$X55)) -> 
A56: 51 | B56: =IF(C56="","",MAX($B$5:B55)+1) -> 51 | C56: مراد 51 | D56: فريدة51 | E56: أولى | F56: جدع مشترك آداب | G56: 2 | H56: 1آف2 | I56: 12/2/2050 | J56: الوادي | K56: ذ | L56: محمد علي51 | M56: حي الإزدهار - البياضة | N56: 2018-06-01 | O56: 2018-04-03 | P56: 51 | Q56: 2018-05-01 | R56: 55 | S56: 2019-02-25 | T56: 58 | Z56: =IF($V$2="","",SEARCH($V$2,$A56&""&#REF!&""&$D56&""&$F56&""&$I56&""&$J56&""&$K56)) ->  | AA56: =IF($X$2="","",SEARCH($X$2,$A56&" "&#REF!&" "&$D56&" "&$F56&" "&$I56&" "&$J56&" "&$K56&" "&$O56&" "&$Q56&" "&$S56&" "&$U56&" "&$V56&" "&$W56&" "&$X56)) ->  | AB56: 49
A57: 52 | B57: =IF(C57="","",MAX($B$5:B56)+1) -> 52 | C57: مراد 52 | D57: فريدة52 | E57: أولى | F57: جدع مشترك آداب | G57: 2 | H57: 1آف2 | I57: 12/2/2051 | J57: الوادي | K57: ذ | L57: محمد علي52 | M57: حي السلام -البياضة | N57: 2018-06-02 | O57: 2018-04-04 | P57: 52 | Q57: 2018-05-02 | R57: 56 | S57: 2019-02-26 | T57: 59 | Z57: =IF($V$2="","",SEARCH($V$2,$A57&""&#REF!&""&$D57&""&$F57&""&$I57&""&$J57&""&$K57)) ->  | AA57: =IF($X$2="","",SEARCH($X$2,$A57&" "&#REF!&" "&$D57&" "&$F57&" "&$I57&" "&$J57&" "&$K57&" "&$O57&" "&$Q57&" "&$S57&" "&$U57&" "&$V57&" "&$W57&" "&$X57)) ->  | AB57: 49
A58: 53 | B58: =IF(C58="","",MAX($B$5:B57)+1) -> 53 | C58: مراد 53 | D58: فريدة53 | E58: أولى | F58: جدع مشترك آداب | G58: 2 | H58: 1آف2 | I58: 12/2/2052 | J58: البياضة | K58: ذ | L58: محمد علي53 | M58: حي الإزدهار - البياضة | N58: 2018-06-03 | O58: 2018-04-05 | P58: 53 | Q58: 2018-05-03 | R58: 57 | S58: 2019-02-27 | T58: 60 | Z58: =IF($V$2="","",SEARCH($V$2,$A58&""&#REF!&""&$D58&""&$F58&""&$I58&""&$J58&""&$K58)) ->  | AA58: =IF($X$2="","",SEARCH($X$2,$A58&" "&#REF!&" "&$D58&" "&$F58&" "&$I58&" "&$J58&" "&$K58&" "&$O58&" "&$Q58&" "&$S58&" "&$U58&" "&$V58&" "&$W58&" "&$X58)) -> 
A59: 54 | B59: =IF(C59="","",MAX($B$5:B58)+1) -> 54 | C59: مراد 54 | D59: فريدة54 | E59: أولى | F59: جدع مشترك آداب | G59: 2 | H59: 1آف2 | I59: 12/2/2053 | J59: البياضة | K59: ذ | L59: محمد علي54 | M59: حي السلام -البياضة | N59: 2018-06-04 | O59: 2018-04-06 | P59: 54 | Q59: 2018-05-04 | R59: 58 | S59: 2019-02-28 | T59: 61 | Z59: =IF($V$2="","",SEARCH($V$2,$A59&""&#REF!&""&$D59&""&$F59&""&$I59&""&$J59&""&$K59)) ->  | AA59: =IF($X$2="","",SEARCH($X$2,$A59&" "&#REF!&" "&$D59&" "&$F59&" "&$I59&" "&$J59&" "&$K59&" "&$O59&" "&$Q59&" "&$S59&" "&$U59&" "&$V59&" "&$W59&" "&$X59)) -> 
A60: 55 | B60: =IF(C60="","",MAX($B$5:B59)+1) -> 55 | C60: مراد 55 | D60: فريدة55 | E60: أولى | F60: جدع مشترك آداب | G60: 2 | H60: 1آف2 | I60: 12/2/2054 | J60: البياضة | K60: ذ | L60: محمد علي55 | M60: حي الإزدهار - البياضة | N60: 2018-06-05 | O60: 2018-04-07 | P60: 55 | Q60: 2018-05-05 | R60: 59 | S60: 2019-03-01 | T60: 62 | Z60: =IF($V$2="","",SEARCH($V$2,$A60&""&#REF!&""&$D60&""&$F60&""&$I60&""&$J60&""&$K60)) ->  | AA60: =IF($X$2="","",SEARCH($X$2,$A60&" "&#REF!&" "&$D60&" "&$F60&" "&$I60&" "&$J60&" "&$K60&" "&$O60&" "&$Q60&" "&$S60&" "&$U60&" "&$V60&" "&$W60&" "&$X60)) -> 
A61: 56 | B61: =IF(C61="","",MAX($B$5:B60)+1) -> 56 | C61: مراد 56 | D61: فريدة56 | E61: أولى | F61: جدع مشترك آداب | G61: 2 | H61: 1آف2 | I61: 12/2/2055 | J61: البياضة | K61: ذ | L61: محمد علي56 | M61: حي السلام -البياضة | N61: 2018-06-06 | O61: 2018-04-08 | P61: 56 | Q61: 2018-05-06 | R61: 60 | S61: 2019-03-02 | T61: 63 | Z61: =IF($V$2="","",SEARCH($V$2,$A61&""&#REF!&""&$D61&""&$F61&""&$I61&""&$J61&""&$K61)) ->  | AA61: =IF($X$2="","",SEARCH($X$2,$A61&" "&#REF!&" "&$D61&" "&$F61&" "&$I61&" "&$J61&" "&$K61&" "&$O61&" "&$Q61&" "&$S61&" "&$U61&" "&$V61&" "&$W61&" "&$X61)) -> 
A62: 57 | B62: =IF(C62="","",MAX($B$5:B61)+1) -> 57 | C62: مراد 57 | D62: فريدة57 | E62: أولى | F62: جذع مشترك علوم وتكنولوجيا | G62: 1 | H62: 1ع1 | I62: 12/2/2056 | J62: البياضة | K62: ذ | L62: محمد علي57 | M62: حي الإزدهار - البياضة | N62: 2018-06-07 | O62: 2018-04-09 | P62: 57 | Q62: 2018-05-07 | R62: 61 | S62: 2019-03-03 | T62: 64 | Z62: =IF($V$2="","",SEARCH($V$2,$A62&""&#REF!&""&$D62&""&$F62&""&$I62&""&$J62&""&$K62)) ->  | AA62: =IF($X$2="","",SEARCH($X$2,$A62&" "&#REF!&" "&$D62&" "&$F62&" "&$I62&" "&$J62&" "&$K62&" "&$O62&" "&$Q62&" "&$S62&" "&$U62&" "&$V62&" "&$W62&" "&$X62)) -> 
A63: 58 | B63: =IF(C63="","",MAX($B$5:B62)+1) -> 58 | C63: مراد 58 | D63: فريدة58 | E63: أولى | F63: جذع مشترك علوم وتكنولوجيا | G63: 1 | H63: 1ع1 | I63: 12/2/2057 | J63: البياضة | K63: ذ | L63: محمد علي58 | M63: حي السلام -البياضة | N63: 2018-06-08 | O63: 2018-04-10 | P63: 58 | Q63: 2018-05-08 | R63: 62 | S63: 2019-03-04 | T63: 65 | Z63: =IF($V$2="","",SEARCH($V$2,$A63&""&#REF!&""&$D63&""&$F63&""&$I63&""&$J63&""&$K63)) ->  | AA63: =IF($X$2="","",SEARCH($X$2,$A63&" "&#REF!&" "&$D63&" "&$F63&" "&$I63&" "&$J63&" "&$K63&" "&$O63&" "&$Q63&" "&$S63&" "&$U63&" "&$V63&" "&$W63&" "&$X63)) -> 
A64: 59 | B64: =IF(C64="","",MAX($B$5:B63)+1) -> 59 | C64: مراد 59 | D64: فريدة59 | E64: أولى | F64: جذع مشترك علوم وتكنولوجيا | G64: 1 | H64: 1ع1 | I64: 12/2/2058 | J64: البياضة | K64: ذ | L64: محمد علي59 | M64: حي الإزدهار - البياضة | N64: 2018-06-09 | O64: 2018-04-11 | P64: 59 | Q64: 2018-05-09 | R64: 63 | S64: 2019-03-05 | T64: 66 | Z64: =IF($V$2="","",SEARCH($V$2,$A64&""&#REF!&""&$D64&""&$F64&""&$I64&""&$J64&""&$K64)) ->  | AA64: =IF($X$2="","",SEARCH($X$2,$A64&" "&#REF!&" "&$D64&" "&$F64&" "&$I64&" "&$J64&" "&$K64&" "&$O64&" "&$Q64&" "&$S64&" "&$U64&" "&$V64&" "&$W64&" "&$X64)) -> 
A65: 60 | B65: =IF(C65="","",MAX($B$5:B64)+1) -> 60 | C65: مراد 60 | D65: فريدة60 | E65: أولى | F65: جذع مشترك علوم وتكنولوجيا | G65: 1 | H65: 1ع1 | I65: 12/2/2059 | J65: الرباح | K65: ذ | L65: محمد علي60 | M65: حي السلام -البياضة | N65: 2018-06-10 | O65: 2018-04-12 | P65: 60 | Q65: 2018-05-10 | R65: 64 | S65: 2019-03-06 | T65: 67 | Z65: =IF($V$2="","",SEARCH($V$2,$A65&""&#REF!&""&$D65&""&$F65&""&$I65&""&$J65&""&$K65)) ->  | AA65: =IF($X$2="","",SEARCH($X$2,$A65&" "&#REF!&" "&$D65&" "&$F65&" "&$I65&" "&$J65&" "&$K65&" "&$O65&" "&$Q65&" "&$S65&" "&$U65&" "&$V65&" "&$W65&" "&$X65)) -> 
A66: 61 | B66: =IF(C66="","",MAX($B$5:B65)+1) -> 61 | C66: مراد 61 | D66: فريدة61 | E66: أولى | F66: جذع مشترك علوم وتكنولوجيا | G66: 1 | H66: 1ع1 | I66: 12/2/2060 | J66: بوثلجة | K66: ذ | L66: محمد علي61 | M66: حي الإزدهار - البياضة | N66: 2018-06-11 | O66: 2018-04-13 | P66: 61 | Q66: 2018-05-11 | R66: 65 | S66: 2019-03-07 | T66: 68 | Z66: =IF($V$2="","",SEARCH($V$2,$A66&""&#REF!&""&$D66&""&$F66&""&$I66&""&$J66&""&$K66)) ->  | AA66: =IF($X$2="","",SEARCH($X$2,$A66&" "&#REF!&" "&$D66&" "&$F66&" "&$I66&" "&$J66&" "&$K66&" "&$O66&" "&$Q66&" "&$S66&" "&$U66&" "&$V66&" "&$W66&" "&$X66)) -> 
A67: 62 | B67: =IF(C67="","",MAX($B$5:B66)+1) -> 62 | C67: مراد 62 | D67: فريدة62 | E67: أولى | F67: جذع مشترك علوم وتكنولوجيا | G67: 1 | H67: 1ع1 | I67: 12/2/2061 | J67: البياضة | K67: ذ | L67: محمد علي62 | M67: حي السلام -البياضة | N67: 2018-06-12 | O67: 2018-04-14 | P67: 62 | Q67: 2018-05-12 | R67: 66 | S67: 2019-03-08 | T67: 69 | Z67: =IF($V$2="","",SEARCH($V$2,$A67&""&#REF!&""&$D67&""&$F67&""&$I67&""&$J67&""&$K67)) ->  | AA67: =IF($X$2="","",SEARCH($X$2,$A67&" "&#REF!&" "&$D67&" "&$F67&" "&$I67&" "&$J67&" "&$K67&" "&$O67&" "&$Q67&" "&$S67&" "&$U67&" "&$V67&" "&$W67&" "&$X67)) -> 
A68: 63 | B68: =IF(C68="","",MAX($B$5:B67)+1) -> 63 | C68: مراد 63 | D68: فريدة63 | E68: أولى | F68: جذع مشترك علوم وتكنولوجيا | G68: 1 | H68: 1ع1 | I68: 12/2/2062 | J68: الوادي | K68: ذ | L68: محمد علي63 | M68: حي الإزدهار - البياضة | N68: 2018-06-13 | O68: 2018-04-15 | P68: 63 | Q68: 2018-05-13 | R68: 67 | S68: 2019-03-09 | T68: 70 | Z68: =IF($V$2="","",SEARCH($V$2,$A68&""&#REF!&""&$D68&""&$F68&""&$I68&""&$J68&""&$K68)) ->  | AA68: =IF($X$2="","",SEARCH($X$2,$A68&" "&#REF!&" "&$D68&" "&$F68&" "&$I68&" "&$J68&" "&$K68&" "&$O68&" "&$Q68&" "&$S68&" "&$U68&" "&$V68&" "&$W68&" "&$X68)) ->  | AB68: 59
A69: 64 | B69: =IF(C69="","",MAX($B$5:B68)+1) -> 64 | C69: مراد 64 | D69: فريدة64 | E69: أولى | F69: جذع مشترك علوم وتكنولوجيا | G69: 1 | H69: 1ع1 | I69: 12/2/2063 | J69: البياضة | K69: ذ | L69: محمد علي64 | M69: حي السلام -البياضة | N69: 2018-06-14 | O69: 2018-04-16 | P69: 64 | Q69: 2018-05-14 | R69: 68 | S69: 2019-03-10 | T69: 71 | Z69: =IF($V$2="","",SEARCH($V$2,$A69&""&#REF!&""&$D69&""&$F69&""&$I69&""&$J69&""&$K69)) ->  | AA69: =IF($X$2="","",SEARCH($X$2,$A69&" "&#REF!&" "&$D69&" "&$F69&" "&$I69&" "&$J69&" "&$K69&" "&$O69&" "&$Q69&" "&$S69&" "&$U69&" "&$V69&" "&$W69&" "&$X69)) -> 
A70: 65 | B70: =IF(C70="","",MAX($B$5:B69)+1) -> 65 | C70: مراد 65 | D70: فريدة65 | E70: أولى | F70: جذع مشترك علوم وتكنولوجيا | G70: 1 | H70: 1ع1 | I70: 12/2/2064 | J70: البياضة | K70: ذ | L70: محمد علي65 | M70: حي الإزدهار - البياضة | N70: 2018-06-15 | O70: 2018-04-17 | P70: 65 | Q70: 2018-05-15 | R70: 69 | S70: 2019-03-11 | T70: 72 | Z70: =IF($V$2="","",SEARCH($V$2,$A70&""&#REF!&""&$D70&""&$F70&""&$I70&""&$J70&""&$K70)) ->  | AA70: =IF($X$2="","",SEARCH($X$2,$A70&" "&#REF!&" "&$D70&" "&$F70&" "&$I70&" "&$J70&" "&$K70&" "&$O70&" "&$Q70&" "&$S70&" "&$U70&" "&$V70&" "&$W70&" "&$X70)) -> 
A71: 66 | B71: =IF(C71="","",MAX($B$5:B70)+1) -> 66 | C71: مراد 66 | D71: فريدة66 | E71: أولى | F71: جذع مشترك علوم وتكنولوجيا | G71: 1 | H71: 1ع1 | I71: 12/2/2065 | J71: البياضة | K71: ذ | L71: محمد علي66 | M71: حي السلام -البياضة | N71: 2018-06-16 | O71: 2018-04-18 | P71: 66 | Q71: 2018-05-16 | R71: 70 | S71: 2019-03-12 | T71: 73 | Z71: =IF($V$2="","",SEARCH($V$2,$A71&""&#REF!&""&$D71&""&$F71&""&$I71&""&$J71&""&$K71)) ->  | AA71: =IF($X$2="","",SEARCH($X$2,$A71&" "&#REF!&" "&$D71&" "&$F71&" "&$I71&" "&$J71&" "&$K71&" "&$O71&" "&$Q71&" "&$S71&" "&$U71&" "&$V71&" "&$W71&" "&$X71)) ->  | AB71: =IF($L$2="","",SEARCH($L$2,$A71&" "&$D71&" "&$E71&" "&$F71&" "&$G71&" "&$H71&" "&$I71&" "&$J71&" "&$K71&" "&$L71&" "&$N71&" "&$O71&" "&$P71&" "&$Q71&" "&$R71&" "&$S71&" "&$T71&" "&$U71&" "&$V71&" "&$W71&" "&$X71)) -> 
A72: 67 | B72: =IF(C72="","",MAX($B$5:B71)+1) -> 67 | C72: مراد 67 | D72: فريدة67 | E72: أولى | F72: جذع مشترك علوم وتكنولوجيا | G72: 1 | H72: 1ع1 | I72: 12/2/2066 | J72: البياضة | K72: ذ | L72: محمد علي67 | M72: حي الإزدهار - البياضة | N72: 2018-06-17 | O72: 2018-04-19 | P72: 67 | Q72: 2018-05-17 | R72: 71 | S72: 2019-03-13 | T72: 74 | Z72: =IF($V$2="","",SEARCH($V$2,$A72&""&#REF!&""&$D72&""&$F72&""&$I72&""&$J72&""&$K72)) ->  | AA72: =IF($X$2="","",SEARCH($X$2,$A72&" "&#REF!&" "&$D72&" "&$F72&" "&$I72&" "&$J72&" "&$K72&" "&$O72&" "&$Q72&" "&$S72&" "&$U72&" "&$V72&" "&$W72&" "&$X72)) -> 
A73: 68 | B73: =IF(C73="","",MAX($B$5:B72)+1) -> 68 | C73: مراد 68 | D73: فريدة68 | E73: أولى | F73: جذع مشترك علوم وتكنولوجيا | G73: 1 | H73: 1ع1 | I73: 12/2/2067 | J73: الوادي | K73: ذ | L73: محمد علي68 | M73: حي السلام -البياضة | N73: 2018-06-18 | O73: 2018-04-20 | P73: 68 | Q73: 2018-05-18 | R73: 72 | S73: 2019-03-14 | T73: 75 | Z73: =IF($V$2="","",SEARCH($V$2,$A73&""&#REF!&""&$D73&""&$F73&""&$I73&""&$J73&""&$K73)) ->  | AA73: =IF($X$2="","",SEARCH($X$2,$A73&" "&#REF!&" "&$D73&" "&$F73&" "&$I73&" "&$J73&" "&$K73&" "&$O73&" "&$Q73&" "&$S73&" "&$U73&" "&$V73&" "&$W73&" "&$X73)) ->  | AB73: 59
A74: 69 | B74: =IF(C74="","",MAX($B$5:B73)+1) -> 69 | C74: مراد 69 | D74: فريدة69 | E74: أولى | F74: جذع مشترك علوم وتكنولوجيا | G74: 1 | H74: 1ع1 | I74: 12/2/2068 | J74: البياضة | K74: ذ | L74: محمد علي69 | M74: حي الإزدهار - البياضة | N74: 2018-06-19 | O74: 2018-04-21 | P74: 69 | Q74: 2018-05-19 | R74: 73 | S74: 2019-03-15 | T74: 76 | Z74: =IF($V$2="","",SEARCH($V$2,$A74&""&#REF!&""&$D74&""&$F74&""&$I74&""&$J74&""&$K74)) ->  | AA74: =IF($X$2="","",SEARCH($X$2,$A74&" "&#REF!&" "&$D74&" "&$F74&" "&$I74&" "&$J74&" "&$K74&" "&$O74&" "&$Q74&" "&$S74&" "&$U74&" "&$V74&" "&$W74&" "&$X74)) -> 
A75: 70 | B75: =IF(C75="","",MAX($B$5:B74)+1) -> 70 | C75: مراد 70 | D75: فريدة70 | E75: أولى | F75: جذع مشترك علوم وتكنولوجيا | G75: 1 | H75: 1ع1 | I75: 12/2/2069 | J75: البياضة | K75: ذ | L75: محمد علي70 | M75: حي السلام -البياضة | N75: 2018-06-20 | O75: 2018-04-22 | P75: 70 | Q75: 2018-05-20 | R75: 74 | S75: 2019-03-16 | T75: 77 | Z75: =IF($V$2="","",SEARCH($V$2,$A75&""&#REF!&""&$D75&""&$F75&""&$I75&""&$J75&""&$K75)) ->  | AA75: =IF($X$2="","",SEARCH($X$2,$A75&" "&#REF!&" "&$D75&" "&$F75&" "&$I75&" "&$J75&" "&$K75&" "&$O75&" "&$Q75&" "&$S75&" "&$U75&" "&$V75&" "&$W75&" "&$X75)) -> 
A76: 71 | B76: =IF(C76="","",MAX($B$5:B75)+1) -> 71 | C76: مراد 71 | D76: فريدة71 | E76: أولى | F76: جذع مشترك علوم وتكنولوجيا | G76: 1 | H76: 1ع1 | I76: 12/2/2070 | J76: البياضة | K76: ذ | L76: محمد علي71 | M76: حي الإزدهار - البياضة | N76: 2018-06-21 | O76: 2018-04-23 | P76: 71 | Q76: 2018-05-21 | R76: 75 | S76: 2019-03-17 | T76: 78 | Z76: =IF($V$2="","",SEARCH($V$2,$A76&""&#REF!&""&$D76&""&$F76&""&$I76&""&$J76&""&$K76)) ->  | AA76: =IF($X$2="","",SEARCH($X$2,$A76&" "&#REF!&" "&$D76&" "&$F76&" "&$I76&" "&$J76&" "&$K76&" "&$O76&" "&$Q76&" "&$S76&" "&$U76&" "&$V76&" "&$W76&" "&$X76)) -> 
A77: 72 | B77: =IF(C77="","",MAX($B$5:B76)+1) -> 72 | C77: مراد 72 | D77: فريدة72 | E77: أولى | F77: جذع مشترك علوم وتكنولوجيا | G77: 1 | H77: 1ع1 | I77: 12/2/2071 | J77: البياضة | K77: ذ | L77: محمد علي72 | M77: حي السلام -البياضة | N77: 2018-06-22 | O77: 2018-04-24 | P77: 72 | Q77: 2018-05-22 | R77: 76 | S77: 2019-03-18 | T77: 79 | Z77: =IF($V$2="","",SEARCH($V$2,$A77&""&#REF!&""&$D77&""&$F77&""&$I77&""&$J77&""&$K77)) ->  | AA77: =IF($X$2="","",SEARCH($X$2,$A77&" "&#REF!&" "&$D77&" "&$F77&" "&$I77&" "&$J77&" "&$K77&" "&$O77&" "&$Q77&" "&$S77&" "&$U77&" "&$V77&" "&$W77&" "&$X77)) -> 
A78: 73 | B78: =IF(C78="","",MAX($B$5:B77)+1) -> 73 | C78: مراد 73 | D78: فريدة73 | E78: أولى | F78: جذع مشترك علوم وتكنولوجيا | G78: 1 | H78: 1ع1 | I78: 12/2/2072 | J78: البياضة | K78: ذ | L78: محمد علي73 | M78: حي الإزدهار - البياضة | O78: 2018-04-25 | P78: 73 | Q78: 2018-05-23 | R78: 77 | S78: 2019-03-19 | T78: 80 | Z78: =IF($V$2="","",SEARCH($V$2,$A78&""&#REF!&""&$D78&""&$F78&""&$I78&""&$J78&""&$K78)) ->  | AA78: =IF($X$2="","",SEARCH($X$2,$A78&" "&#REF!&" "&$D78&" "&$F78&" "&$I78&" "&$J78&" "&$K78&" "&$O78&" "&$Q78&" "&$S78&" "&$U78&" "&$V78&" "&$W78&" "&$X78)) -> 
A79: 74 | B79: =IF(C79="","",MAX($B$5:B78)+1) -> 74 | C79: مراد 74 | D79: فريدة74 | E79: أولى | F79: جذع مشترك علوم وتكنولوجيا | G79: 1 | H79: 1ع1 | I79: 12/2/2073 | J79: البياضة | K79: ذ | L79: محمد علي74 | M79: حي السلام -البياضة | O79: 2018-04-26 | P79: 74 | Q79: 2018-05-24 | R79: 78 | S79: 2019-03-20 | T79: 81 | Z79: =IF($V$2="","",SEARCH($V$2,$A79&""&#REF!&""&$D79&""&$F79&""&$I79&""&$J79&""&$K79)) ->  | AA79: =IF($X$2="","",SEARCH($X$2,$A79&" "&#REF!&" "&$D79&" "&$F79&" "&$I79&" "&$J79&" "&$K79&" "&$O79&" "&$Q79&" "&$S79&" "&$U79&" "&$V79&" "&$W79&" "&$X79)) -> 
A80: 75 | B80: =IF(C80="","",MAX($B$5:B79)+1) -> 75 | C80: مراد 75 | D80: فريدة75 | E80: أولى | F80: جذع مشترك علوم وتكنولوجيا | G80: 1 | H80: 1ع1 | I80: 12/2/2074 | J80: الرباح | K80: ذ | L80: محمد علي75 | M80: حي الإزدهار - البياضة | O80: 2018-04-27 | P80: 75 | Q80: 2018-05-25 | R80: 79 | S80: 2019-03-21 | T80: 82 | Z80: =IF($V$2="","",SEARCH($V$2,$A80&""&#REF!&""&$D80&""&$F80&""&$I80&""&$J80&""&$K80)) ->  | AA80: =IF($X$2="","",SEARCH($X$2,$A80&" "&#REF!&" "&$D80&" "&$F80&" "&$I80&" "&$J80&" "&$K80&" "&$O80&" "&$Q80&" "&$S80&" "&$U80&" "&$V80&" "&$W80&" "&$X80)) -> 
A81: 76 | B81: =IF(C81="","",MAX($B$5:B80)+1) -> 76 | C81: مراد 76 | D81: فريدة76 | E81: أولى | F81: جذع مشترك علوم وتكنولوجيا | G81: 1 | H81: 1ع1 | I81: 12/2/2075 | J81: البياضة | K81: ذ | L81: محمد علي76 | M81: حي السلام -البياضة | O81: 2018-04-28 | P81: 76 | Q81: 2018-05-26 | R81: 80 | S81: 2019-03-22 | T81: 83 | Z81: =IF($V$2="","",SEARCH($V$2,$A81&""&#REF!&""&$D81&""&$F81&""&$I81&""&$J81&""&$K81)) ->  | AA81: =IF($X$2="","",SEARCH($X$2,$A81&" "&#REF!&" "&$D81&" "&$F81&" "&$I81&" "&$J81&" "&$K81&" "&$O81&" "&$Q81&" "&$S81&" "&$U81&" "&$V81&" "&$W81&" "&$X81)) -> 
A82: 77 | B82: =IF(C82="","",MAX($B$5:B81)+1) -> 77 | C82: مراد 77 | D82: فريدة77 | E82: أولى | F82: جذع مشترك علوم وتكنولوجيا | G82: 1 | H82: 1ع1 | I82: 12/2/2076 | J82: الرباح | K82: ذ | L82: محمد علي77 | M82: حي الإزدهار - البياضة | O82: 2018-04-29 | P82: 77 | Q82: 2018-05-27 | R82: 81 | S82: 2019-03-23 | T82: 84 | Z82: =IF($V$2="","",SEARCH($V$2,$A82&""&#REF!&""&$D82&""&$F82&""&$I82&""&$J82&""&$K82)) ->  | AA82: =IF($X$2="","",SEARCH($X$2,$A82&" "&#REF!&" "&$D82&" "&$F82&" "&$I82&" "&$J82&" "&$K82&" "&$O82&" "&$Q82&" "&$S82&" "&$U82&" "&$V82&" "&$W82&" "&$X82)) -> 
A83: 78 | B83: =IF(C83="","",MAX($B$5:B82)+1) -> 78 | C83: مراد 78 | D83: فريدة78 | E83: أولى | F83: جذع مشترك علوم وتكنولوجيا | G83: 1 | H83: 1ع1 | I83: 12/2/2077 | J83: الرباح | K83: ذ | L83: محمد علي78 | M83: حي السلام -البياضة | O83: 2018-04-30 | P83: 78 | Q83: 2018-05-28 | R83: 82 | S83: 2019-03-24 | T83: 85 | Z83: =IF($V$2="","",SEARCH($V$2,$A83&""&#REF!&""&$D83&""&$F83&""&$I83&""&$J83&""&$K83)) ->  | AA83: =IF($X$2="","",SEARCH($X$2,$A83&" "&#REF!&" "&$D83&" "&$F83&" "&$I83&" "&$J83&" "&$K83&" "&$O83&" "&$Q83&" "&$S83&" "&$U83&" "&$V83&" "&$W83&" "&$X83)) -> 
A84: 79 | B84: =IF(C84="","",MAX($B$5:B83)+1) -> 79 | C84: مراد 79 | D84: فريدة79 | E84: أولى | F84: جذع مشترك علوم وتكنولوجيا | G84: 1 | H84: 1ع1 | I84: 12/2/2078 | J84: الوادي | K84: ذ | L84: محمد علي79 | M84: حي الإزدهار - البياضة | O84: 2018-05-01 | P84: 79 | Q84: 2018-05-29 | R84: 83 | S84: 2019-03-25 | T84: 86 | Z84: =IF($V$2="","",SEARCH($V$2,$A84&""&#REF!&""&$D84&""&$F84&""&$I84&""&$J84&""&$K84)) ->  | AA84: =IF($X$2="","",SEARCH($X$2,$A84&" "&#REF!&" "&$D84&" "&$F84&" "&$I84&" "&$J84&" "&$K84&" "&$O84&" "&$Q84&" "&$S84&" "&$U84&" "&$V84&" "&$W84&" "&$X84)) ->  | AB84: 59
A85: 80 | B85: =IF(C85="","",MAX($B$5:B84)+1) -> 80 | C85: مراد 80 | D85: فريدة80 | E85: أولى | F85: جذع مشترك علوم وتكنولوجيا | G85: 1 | H85: 1ع1 | I85: 12/2/2079 | J85: الوادي | K85: ذ | L85: محمد علي80 | M85: حي السلام -البياضة | O85: 2018-05-02 | P85: 80 | Q85: 2018-05-30 | R85: 84 | S85: 2019-03-26 | T85: 87 | Z85: =IF($V$2="","",SEARCH($V$2,$A85&""&#REF!&""&$D85&""&$F85&""&$I85&""&$J85&""&$K85)) ->  | AA85: =IF($X$2="","",SEARCH($X$2,$A85&" "&#REF!&" "&$D85&" "&$F85&" "&$I85&" "&$J85&" "&$K85&" "&$O85&" "&$Q85&" "&$S85&" "&$U85&" "&$V85&" "&$W85&" "&$X85)) ->  | AB85: 59
A86: 81 | B86: =IF(C86="","",MAX($B$5:B85)+1) -> 81 | C86: مراد 81 | D86: فريدة81 | E86: أولى | F86: جذع مشترك علوم وتكنولوجيا | G86: 1 | H86: 1ع1 | I86: 12/2/2080 | J86: البياضة | K86: ذ | L86: محمد علي81 | M86: حي الإزدهار - البياضة | O86: 2018-05-03 | P86: 81 | Q86: 2018-05-31 | R86: 85 | S86: 2019-03-27 | T86: 88 | Z86: =IF($V$2="","",SEARCH($V$2,$A86&""&#REF!&""&$D86&""&$F86&""&$I86&""&$J86&""&$K86)) ->  | AA86: =IF($X$2="","",SEARCH($X$2,$A86&" "&#REF!&" "&$D86&" "&$F86&" "&$I86&" "&$J86&" "&$K86&" "&$O86&" "&$Q86&" "&$S86&" "&$U86&" "&$V86&" "&$W86&" "&$X86)) -> 
A87: 82 | B87: =IF(C87="","",MAX($B$5:B86)+1) -> 82 | C87: مراد 82 | D87: فريدة82 | E87: أولى | F87: جذع مشترك علوم وتكنولوجيا | G87: 1 | H87: 1ع1 | I87: 12/2/2081 | J87: الوادي | K87: ذ | L87: محمد علي82 | M87: حي السلام -البياضة | O87: 2018-05-04 | P87: 82 | Q87: 2018-06-01 | R87: 86 | S87: 2019-03-28 | T87: 89 | Z87: =IF($V$2="","",SEARCH($V$2,$A87&""&#REF!&""&$D87&""&$F87&""&$I87&""&$J87&""&$K87)) ->  | AA87: =IF($X$2="","",SEARCH($X$2,$A87&" "&#REF!&" "&$D87&" "&$F87&" "&$I87&" "&$J87&" "&$K87&" "&$O87&" "&$Q87&" "&$S87&" "&$U87&" "&$V87&" "&$W87&" "&$X87)) ->  | AB87: 59
A88: 83 | B88: =IF(C88="","",MAX($B$5:B87)+1) -> 83 | C88: مراد 83 | D88: فريدة83 | E88: أولى | F88: جذع مشترك علوم وتكنولوجيا | G88: 1 | H88: 1ع1 | I88: 12/2/2082 | J88: الوادي | K88: ذ | L88: محمد علي83 | M88: حي الإزدهار - البياضة | O88: 2018-05-05 | P88: 83 | Q88: 2018-06-02 | R88: 87 | S88: 2019-03-29 | T88: 90 | Z88: =IF($V$2="","",SEARCH($V$2,$A88&""&#REF!&""&$D88&""&$F88&""&$I88&""&$J88&""&$K88)) ->  | AA88: =IF($X$2="","",SEARCH($X$2,$A88&" "&#REF!&" "&$D88&" "&$F88&" "&$I88&" "&$J88&" "&$K88&" "&$O88&" "&$Q88&" "&$S88&" "&$U88&" "&$V88&" "&$W88&" "&$X88)) ->  | AB88: 59
A89: 84 | B89: =IF(C89="","",MAX($B$5:B88)+1) -> 84 | C89: مراد 84 | D89: فريدة84 | E89: أولى | F89: جذع مشترك علوم وتكنولوجيا | G89: 1 | H89: 1ع1 | I89: 12/2/2083 | J89: الوادي | K89: ذ | L89: محمد علي84 | M89: حي السلام -البياضة | O89: 2018-05-06 | P89: 84 | Q89: 2018-06-03 | R89: 88 | S89: 2019-03-30 | T89: 91 | Z89: =IF($V$2="","",SEARCH($V$2,$A89&""&#REF!&""&$D89&""&$F89&""&$I89&""&$J89&""&$K89)) ->  | AA89: =IF($X$2="","",SEARCH($X$2,$A89&" "&#REF!&" "&$D89&" "&$F89&" "&$I89&" "&$J89&" "&$K89&" "&$O89&" "&$Q89&" "&$S89&" "&$U89&" "&$V89&" "&$W89&" "&$X89)) ->  | AB89: 59
A90: 85 | B90: =IF(C90="","",MAX($B$5:B89)+1) -> 85 | C90: مراد 85 | D90: فريدة85 | E90: أولى | F90: جذع مشترك علوم وتكنولوجيا | G90: 1 | H90: 1ع1 | I90: 12/2/2084 | J90: الوادي | K90: ذ | L90: محمد علي85 | M90: حي الإزدهار - البياضة | O90: 2018-05-07 | P90: 85 | Q90: 2018-06-04 | R90: 89 | S90: 2019-03-31 | T90: 92 | Z90: =IF($V$2="","",SEARCH($V$2,$A90&""&#REF!&""&$D90&""&$F90&""&$I90&""&$J90&""&$K90)) ->  | AA90: =IF($X$2="","",SEARCH($X$2,$A90&" "&#REF!&" "&$D90&" "&$F90&" "&$I90&" "&$J90&" "&$K90&" "&$O90&" "&$Q90&" "&$S90&" "&$U90&" "&$V90&" "&$W90&" "&$X90)) ->  | AB90: 59
A91: 86 | B91: =IF(C91="","",MAX($B$5:B90)+1) -> 86 | C91: مراد 86 | D91: فريدة86 | E91: أولى | F91: جذع مشترك علوم وتكنولوجيا | G91: 1 | H91: 1ع1 | I91: 12/2/2085 | J91: البياضة | K91: ذ | L91: محمد علي86 | M91: حي السلام -البياضة | O91: 2018-05-08 | P91: 86 | Q91: 2018-06-05 | R91: 90 | S91: 2019-04-01 | T91: 93 | Z91: =IF($V$2="","",SEARCH($V$2,$A91&""&#REF!&""&$D91&""&$F91&""&$I91&""&$J91&""&$K91)) ->  | AA91: =IF($X$2="","",SEARCH($X$2,$A91&" "&#REF!&" "&$D91&" "&$F91&" "&$I91&" "&$J91&" "&$K91&" "&$O91&" "&$Q91&" "&$S91&" "&$U91&" "&$V91&" "&$W91&" "&$X91)) -> 
A92: 87 | B92: =IF(C92="","",MAX($B$5:B91)+1) -> 87 | C92: مراد 87 | D92: فريدة87 | E92: أولى | F92: جذع مشترك علوم وتكنولوجيا | G92: 1 | H92: 1ع1 | I92: 12/2/2086 | J92: البياضة | K92: ذ | L92: محمد علي87 | M92: حي الإزدهار - البياضة | O92: 2018-05-09 | P92: 87 | Q92: 2018-06-06 | R92: 91 | S92: 2019-04-02 | T92: 94 | Z92: =IF($V$2="","",SEARCH($V$2,$A92&""&#REF!&""&$D92&""&$F92&""&$I92&""&$J92&""&$K92)) ->  | AA92: =IF($X$2="","",SEARCH($X$2,$A92&" "&#REF!&" "&$D92&" "&$F92&" "&$I92&" "&$J92&" "&$K92&" "&$O92&" "&$Q92&" "&$S92&" "&$U92&" "&$V92&" "&$W92&" "&$X92)) -> 
A93: 88 | B93: =IF(C93="","",MAX($B$5:B92)+1) -> 88 | C93: مراد 88 | D93: فريدة88 | E93: أولى | F93: جذع مشترك علوم وتكنولوجيا | G93: 1 | H93: 1ع1 | I93: 12/2/2087 | J93: البياضة | K93: ذ | L93: محمد علي88 | M93: حي السلام -البياضة | O93: 2018-05-10 | P93: 88 | Q93: 2018-06-07 | R93: 92 | S93: 2019-04-03 | T93: 95 | Z93: =IF($V$2="","",SEARCH($V$2,$A93&""&#REF!&""&$D93&""&$F93&""&$I93&""&$J93&""&$K93)) ->  | AA93: =IF($X$2="","",SEARCH($X$2,$A93&" "&#REF!&" "&$D93&" "&$F93&" "&$I93&" "&$J93&" "&$K93&" "&$O93&" "&$Q93&" "&$S93&" "&$U93&" "&$V93&" "&$W93&" "&$X93)) -> 
A94: 89 | B94: =IF(C94="","",MAX($B$5:B93)+1) -> 89 | C94: مراد 89 | D94: فريدة89 | E94: أولى | F94: جذع مشترك علوم وتكنولوجيا | G94: 1 | H94: 1ع1 | I94: 12/2/2088 | J94: البياضة | K94: ذ | L94: محمد علي89 | M94: حي الإزدهار - البياضة | O94: 2018-05-11 | P94: 89 | Q94: 2018-06-08 | R94: 93 | S94: 2019-04-04 | T94: 96 | Z94: =IF($V$2="","",SEARCH($V$2,$A94&""&#REF!&""&$D94&""&$F94&""&$I94&""&$J94&""&$K94)) ->  | AA94: =IF($X$2="","",SEARCH($X$2,$A94&" "&#REF!&" "&$D94&" "&$F94&" "&$I94&" "&$J94&" "&$K94&" "&$O94&" "&$Q94&" "&$S94&" "&$U94&" "&$V94&" "&$W94&" "&$X94)) -> 
A95: 90 | B95: =IF(C95="","",MAX($B$5:B94)+1) -> 90 | C95: مراد 90 | D95: فريدة90 | E95: أولى | F95: جذع مشترك علوم وتكنولوجيا | G95: 1 | H95: 1ع1 | I95: 12/2/2089 | J95: البياضة | K95: ذ | L95: محمد علي90 | M95: حي السلام -البياضة | O95: 2018-05-12 | P95: 90 | Q95: 2018-06-09 | R95: 94 | S95: 2019-04-05 | T95: 97 | Z95: =IF($V$2="","",SEARCH($V$2,$A95&""&#REF!&""&$D95&""&$F95&""&$I95&""&$J95&""&$K95)) ->  | AA95: =IF($X$2="","",SEARCH($X$2,$A95&" "&#REF!&" "&$D95&" "&$F95&" "&$I95&" "&$J95&" "&$K95&" "&$O95&" "&$Q95&" "&$S95&" "&$U95&" "&$V95&" "&$W95&" "&$X95)) -> 
A96: 91 | B96: =IF(C96="","",MAX($B$5:B95)+1) -> 91 | C96: مراد 91 | D96: فريدة91 | E96: أولى | F96: جذع مشترك علوم وتكنولوجيا | G96: 1 | H96: 1ع1 | I96: 12/2/2090 | J96: البياضة | K96: ذ | L96: محمد علي91 | M96: حي الإزدهار - البياضة | O96: 2018-05-13 | P96: 91 | Q96: 2018-06-10 | R96: 95 | S96: 2019-04-06 | T96: 98 | Z96: =IF($V$2="","",SEARCH($V$2,$A96&""&#REF!&""&$D96&""&$F96&""&$I96&""&$J96&""&$K96)) ->  | AA96: =IF($X$2="","",SEARCH($X$2,$A96&" "&#REF!&" "&$D96&" "&$F96&" "&$I96&" "&$J96&" "&$K96&" "&$O96&" "&$Q96&" "&$S96&" "&$U96&" "&$V96&" "&$W96&" "&$X96)) -> 
A97: 92 | B97: =IF(C97="","",MAX($B$5:B96)+1) -> 92 | C97: مراد 92 | D97: فريدة92 | E97: أولى | F97: جذع مشترك علوم وتكنولوجيا | G97: 1 | H97: 1ع1 | I97: 12/2/2091 | J97: البياضة | K97: ذ | L97: محمد علي92 | M97: حي السلام -البياضة | O97: 2018-05-14 | P97: 92 | Q97: 2018-06-11 | R97: 96 | S97: 2019-04-07 | T97: 99 | Z97: =IF($V$2="","",SEARCH($V$2,$A97&""&#REF!&""&$D97&""&$F97&""&$I97&""&$J97&""&$K97)) ->  | AA97: =IF($X$2="","",SEARCH($X$2,$A97&" "&#REF!&" "&$D97&" "&$F97&" "&$I97&" "&$J97&" "&$K97&" "&$O97&" "&$Q97&" "&$S97&" "&$U97&" "&$V97&" "&$W97&" "&$X97)) -> 
A98: 93 | B98: =IF(C98="","",MAX($B$5:B97)+1) -> 93 | C98: مراد 93 | D98: فريدة93 | E98: أولى | F98: جذع مشترك علوم وتكنولوجيا | G98: 1 | H98: 1ع1 | I98: 12/2/2092 | J98: البياضة | K98: ذ | L98: محمد علي93 | M98: حي الإزدهار - البياضة | O98: 2018-05-15 | P98: 93 | Q98: 2018-06-12 | R98: 97 | S98: 2019-04-08 | T98: 100 | Z98: =IF($V$2="","",SEARCH($V$2,$A98&""&#REF!&""&$D98&""&$F98&""&$I98&""&$J98&""&$K98)) ->  | AA98: =IF($X$2="","",SEARCH($X$2,$A98&" "&#REF!&" "&$D98&" "&$F98&" "&$I98&" "&$J98&" "&$K98&" "&$O98&" "&$Q98&" "&$S98&" "&$U98&" "&$V98&" "&$W98&" "&$X98)) -> 
A99: 94 | B99: =IF(C99="","",MAX($B$5:B98)+1) -> 94 | C99: مراد 94 | D99: فريدة94 | E99: أولى | F99: جذع مشترك علوم وتكنولوجيا | G99: 1 | H99: 1ع1 | I99: 12/2/2093 | J99: أن مناس | K99: ذ | L99: محمد علي94 | M99: حي السلام -البياضة | O99: 2018-05-16 | P99: 94 | Q99: 2018-06-13 | R99: 98 | S99: 2019-04-09 | T99: 101 | Z99: =IF($V$2="","",SEARCH($V$2,$A99&""&#REF!&""&$D99&""&$F99&""&$I99&""&$J99&""&$K99)) ->  | AA99: =IF($X$2="","",SEARCH($X$2,$A99&" "&#REF!&" "&$D99&" "&$F99&" "&$I99&" "&$J99&" "&$K99&" "&$O99&" "&$Q99&" "&$S99&" "&$U99&" "&$V99&" "&$W99&" "&$X99)) -> 
A100: 95 | B100: =IF(C100="","",MAX($B$5:B99)+1) -> 95 | C100: مراد 95 | D100: فريدة95 | E100: أولى | F100: جذع مشترك علوم وتكنولوجيا | G100: 1 | H100: 1ع1 | I100: 12/2/2094 | J100: البياضة | K100: ذ | L100: محمد علي95 | M100: حي الإزدهار - البياضة | O100: 2018-05-17 | P100: 95 | Q100: 2018-06-14 | R100: 99 | S100: 2019-04-10 | T100: 102 | Z100: =IF($V$2="","",SEARCH($V$2,$A100&""&#REF!&""&$D100&""&$F100&""&$I100&""&$J100&""&$K100)) ->  | AA100: =IF($X$2="","",SEARCH($X$2,$A100&" "&#REF!&" "&$D100&" "&$F100&" "&$I100&" "&$J100&" "&$K100&" "&$O100&" "&$Q100&" "&$S100&" "&$U100&" "&$V100&" "&$W100&" "&$X100)) -> 
A101: 96 | B101: =IF(C101="","",MAX($B$5:B100)+1) -> 96 | C101: مراد 96 | D101: فريدة96 | E101: أولى | F101: جذع مشترك علوم وتكنولوجيا | G101: 2 | H101: 1ع2 | I101: 12/2/2095 | J101: البياضة | K101: ذ | L101: محمد علي96 | M101: حي السلام -البياضة | O101: 2018-05-18 | P101: 96 | Q101: 2018-06-15 | R101: 100 | S101: 2019-04-11 | T101: 103 | Z101: =IF($V$2="","",SEARCH($V$2,$A101&""&#REF!&""&$D101&""&$F101&""&$I101&""&$J101&""&$K101)) ->  | AA101: =IF($X$2="","",SEARCH($X$2,$A101&" "&#REF!&" "&$D101&" "&$F101&" "&$I101&" "&$J101&" "&$K101&" "&$O101&" "&$Q101&" "&$S101&" "&$U101&" "&$V101&" "&$W101&" "&$X101)) -> 
A102: 97 | B102: =IF(C102="","",MAX($B$5:B101)+1) -> 97 | C102: مراد 97 | D102: فريدة97 | E102: أولى | F102: جذع مشترك علوم وتكنولوجيا | G102: 2 | H102: 1ع2 | I102: 12/2/2096 | J102: البياضة | K102: ذ | L102: محمد علي97 | M102: حي الإزدهار - البياضة | O102: 2018-05-19 | P102: 97 | Q102: 2018-06-16 | R102: 101 | S102: 2019-04-12 | T102: 104 | Z102: =IF($V$2="","",SEARCH($V$2,$A102&""&#REF!&""&$D102&""&$F102&""&$I102&""&$J102&""&$K102)) ->  | AA102: =IF($X$2="","",SEARCH($X$2,$A102&" "&#REF!&" "&$D102&" "&$F102&" "&$I102&" "&$J102&" "&$K102&" "&$O102&" "&$Q102&" "&$S102&" "&$U102&" "&$V102&" "&$W102&" "&$X102)) -> 
A103: 98 | B103: =IF(C103="","",MAX($B$5:B102)+1) -> 98 | C103: مراد 98 | D103: فريدة98 | E103: أولى | F103: جذع مشترك علوم وتكنولوجيا | G103: 2 | H103: 1ع2 | I103: 12/2/2097 | J103: بسكرة | K103: ذ | L103: محمد علي98 | M103: حي السلام -البياضة | O103: 2018-05-20 | P103: 98 | Q103: 2018-06-17 | R103: 102 | S103: 2019-04-13 | T103: 105 | Z103: =IF($V$2="","",SEARCH($V$2,$A103&""&#REF!&""&$D103&""&$F103&""&$I103&""&$J103&""&$K103)) ->  | AA103: =IF($X$2="","",SEARCH($X$2,$A103&" "&#REF!&" "&$D103&" "&$F103&" "&$I103&" "&$J103&" "&$K103&" "&$O103&" "&$Q103&" "&$S103&" "&$U103&" "&$V103&" "&$W103&" "&$X103)) -> 
A104: 99 | B104: =IF(C104="","",MAX($B$5:B103)+1) -> 99 | C104: مراد 99 | D104: فريدة99 | E104: أولى | F104: جذع مشترك علوم وتكنولوجيا | G104: 2 | H104: 1ع2 | I104: 12/2/2098 | J104: البياضة | K104: ذ | L104: محمد علي99 | M104: حي الإزدهار - البياضة | O104: 2018-05-21 | P104: 99 | Q104: 2018-06-18 | R104: 103 | S104: 2019-04-14 | T104: 106 | Z104: =IF($V$2="","",SEARCH($V$2,$A104&""&#REF!&""&$D104&""&$F104&""&$I104&""&$J104&""&$K104)) ->  | AA104: =IF($X$2="","",SEARCH($X$2,$A104&" "&#REF!&" "&$D104&" "&$F104&" "&$I104&" "&$J104&" "&$K104&" "&$O104&" "&$Q104&" "&$S104&" "&$U104&" "&$V104&" "&$W104&" "&$X104)) -> 
A105: 100 | B105: =IF(C105="","",MAX($B$5:B104)+1) -> 100 | C105: مراد 100 | D105: فريدة100 | E105: أولى | F105: جذع مشترك علوم وتكنولوجيا | G105: 2 | H105: 1ع2 | I105: 12/2/2099 | J105: البياضة | K105: ذ | L105: محمد علي100 | M105: حي السلام -البياضة | O105: 2018-05-22 | P105: 100 | Q105: 2018-06-19 | R105: 104 | S105: 2019-04-15 | T105: 107 | Z105: =IF($V$2="","",SEARCH($V$2,$A105&""&#REF!&""&$D105&""&$F105&""&$I105&""&$J105&""&$K105)) ->  | AA105: =IF($X$2="","",SEARCH($X$2,$A105&" "&#REF!&" "&$D105&" "&$F105&" "&$I105&" "&$J105&" "&$K105&" "&$O105&" "&$Q105&" "&$S105&" "&$U105&" "&$V105&" "&$W105&" "&$X105)) -> 
A106: 101 | B106: =IF(C106="","",MAX($B$5:B105)+1) -> 101 | C106: مراد 101 | D106: فريدة101 | E106: أولى | F106: جذع مشترك علوم وتكنولوجيا | G106: 2 | H106: 1ع2 | I106: 12/2/2100 | J106: البياضة | K106: ذ | L106: محمد علي101 | M106: حي الإزدهار - البياضة | O106: 2018-05-23 | P106: 101 | Q106: 2018-06-20 | R106: 105 | S106: 2019-04-16 | T106: 108 | Z106: =IF($V$2="","",SEARCH($V$2,$A106&""&#REF!&""&$D106&""&$F106&""&$I106&""&$J106&""&$K106)) ->  | AA106: =IF($X$2="","",SEARCH($X$2,$A106&" "&#REF!&" "&$D106&" "&$F106&" "&$I106&" "&$J106&" "&$K106&" "&$O106&" "&$Q106&" "&$S106&" "&$U106&" "&$V106&" "&$W106&" "&$X106)) -> 
A107: 102 | B107: =IF(C107="","",MAX($B$5:B106)+1) -> 102 | C107: مراد 102 | D107: فريدة102 | E107: أولى | F107: جذع مشترك علوم وتكنولوجيا | G107: 2 | H107: 1ع2 | I107: 12/2/2101 | J107: البياضة | K107: ذ | L107: محمد علي102 | M107: حي السلام -البياضة | O107: 2018-05-24 | P107: 102 | Q107: 2018-06-21 | R107: 106 | S107: 2019-04-17 | T107: 109 | Z107: =IF($V$2="","",SEARCH($V$2,$A107&""&#REF!&""&$D107&""&$F107&""&$I107&""&$J107&""&$K107)) ->  | AA107: =IF($X$2="","",SEARCH($X$2,$A107&" "&#REF!&" "&$D107&" "&$F107&" "&$I107&" "&$J107&" "&$K107&" "&$O107&" "&$Q107&" "&$S107&" "&$U107&" "&$V107&" "&$W107&" "&$X107)) -> 
A108: 103 | B108: =IF(C108="","",MAX($B$5:B107)+1) -> 103 | C108: مراد 103 | D108: فريدة103 | E108: أولى | F108: جذع مشترك علوم وتكنولوجيا | G108: 2 | H108: 1ع2 | I108: 12/2/2102 | J108: الوادي | K108: ذ | L108: محمد علي103 | M108: حي الإزدهار - البياضة | O108: 2018-05-25 | P108: 103 | Q108: 2018-06-22 | R108: 107 | S108: 2019-04-18 | T108: 110 | Z108: =IF($V$2="","",SEARCH($V$2,$A108&""&#REF!&""&$D108&""&$F108&""&$I108&""&$J108&""&$K108)) ->  | AA108: =IF($X$2="","",SEARCH($X$2,$A108&" "&#REF!&" "&$D108&" "&$F108&" "&$I108&" "&$J108&" "&$K108&" "&$O108&" "&$Q108&" "&$S108&" "&$U108&" "&$V108&" "&$W108&" "&$X108)) ->  | AB108: 61
A109: 104 | B109: =IF(C109="","",MAX($B$5:B108)+1) -> 104 | C109: مراد 104 | D109: فريدة104 | E109: أولى | F109: جذع مشترك علوم وتكنولوجيا | G109: 2 | H109: 1ع2 | I109: 12/2/2103 | J109: الوادي | K109: ذ | L109: محمد علي104 | M109: حي السلام -البياضة | O109: 2018-05-26 | P109: 104 | Q109: 2018-06-23 | R109: 108 | S109: 2019-04-19 | T109: 111 | Z109: =IF($V$2="","",SEARCH($V$2,$A109&""&#REF!&""&$D109&""&$F109&""&$I109&""&$J109&""&$K109)) ->  | AA109: =IF($X$2="","",SEARCH($X$2,$A109&" "&#REF!&" "&$D109&" "&$F109&" "&$I109&" "&$J109&" "&$K109&" "&$O109&" "&$Q109&" "&$S109&" "&$U109&" "&$V109&" "&$W109&" "&$X109)) ->  | AB109: 61
A110: 105 | B110: =IF(C110="","",MAX($B$5:B109)+1) -> 105 | C110: مراد 105 | D110: فريدة105 | E110: أولى | F110: جذع مشترك علوم وتكنولوجيا | G110: 2 | H110: 1ع2 | I110: 12/2/2104 | J110: البياضة | K110: ذ | L110: محمد علي105 | M110: حي الإزدهار - البياضة | O110: 2018-05-27 | P110: 105 | Q110: 2018-06-24 | R110: 109 | S110: 2019-04-20 | T110: 112 | Z110: =IF($V$2="","",SEARCH($V$2,$A110&""&#REF!&""&$D110&""&$F110&""&$I110&""&$J110&""&$K110)) ->  | AA110: =IF($X$2="","",SEARCH($X$2,$A110&" "&#REF!&" "&$D110&" "&$F110&" "&$I110&" "&$J110&" "&$K110&" "&$O110&" "&$Q110&" "&$S110&" "&$U110&" "&$V110&" "&$W110&" "&$X110)) -> 
A111: 106 | B111: =IF(C111="","",MAX($B$5:B110)+1) -> 106 | C111: مراد 106 | D111: فريدة106 | E111: أولى | F111: جذع مشترك علوم وتكنولوجيا | G111: 2 | H111: 1ع2 | I111: 12/2/2105 | J111: البياضة | K111: ذ | L111: محمد علي106 | M111: حي السلام -البياضة | O111: 2018-05-28 | P111: 106 | Q111: 2018-06-25 | R111: 110 | S111: 2019-04-21 | T111: 113 | Z111: =IF($V$2="","",SEARCH($V$2,$A111&""&#REF!&""&$D111&""&$F111&""&$I111&""&$J111&""&$K111)) ->  | AA111: =IF($X$2="","",SEARCH($X$2,$A111&" "&#REF!&" "&$D111&" "&$F111&" "&$I111&" "&$J111&" "&$K111&" "&$O111&" "&$Q111&" "&$S111&" "&$U111&" "&$V111&" "&$W111&" "&$X111)) -> 
A112: 107 | B112: =IF(C112="","",MAX($B$5:B111)+1) -> 107 | C112: مراد 107 | D112: فريدة107 | E112: أولى | F112: جذع مشترك علوم وتكنولوجيا | G112: 2 | H112: 1ع2 | I112: 12/2/2106 | J112: البياضة | K112: ذ | L112: محمد علي107 | M112: حي الإزدهار - البياضة | O112: 2018-05-29 | P112: 107 | Q112: 2018-06-26 | R112: 111 | S112: 2019-04-22 | T112: 114 | Z112: =IF($V$2="","",SEARCH($V$2,$A112&""&#REF!&""&$D112&""&$F112&""&$I112&""&$J112&""&$K112)) ->  | AA112: =IF($X$2="","",SEARCH($X$2,$A112&" "&#REF!&" "&$D112&" "&$F112&" "&$I112&" "&$J112&" "&$K112&" "&$O112&" "&$Q112&" "&$S112&" "&$U112&" "&$V112&" "&$W112&" "&$X112)) -> 
A113: 108 | B113: =IF(C113="","",MAX($B$5:B112)+1) -> 108 | C113: مراد 108 | D113: فريدة108 | E113: أولى | F113: جذع مشترك علوم وتكنولوجيا | G113: 2 | H113: 1ع2 | I113: 12/2/2107 | J113: البياضة | K113: ذ | L113: محمد علي108 | M113: حي السلام -البياضة | O113: 2018-05-30 | P113: 108 | Q113: 2018-06-27 | R113: 112 | S113: 2019-04-23 | T113: 115 | Z113: =IF($V$2="","",SEARCH($V$2,$A113&""&#REF!&""&$D113&""&$F113&""&$I113&""&$J113&""&$K113)) ->  | AA113: =IF($X$2="","",SEARCH($X$2,$A113&" "&#REF!&" "&$D113&" "&$F113&" "&$I113&" "&$J113&" "&$K113&" "&$O113&" "&$Q113&" "&$S113&" "&$U113&" "&$V113&" "&$W113&" "&$X113)) -> 
A114: 109 | B114: =IF(C114="","",MAX($B$5:B113)+1) -> 109 | C114: مراد 109 | D114: فريدة109 | E114: أولى | F114: جذع مشترك علوم وتكنولوجيا | G114: 2 | H114: 1ع2 | I114: 12/2/2108 | J114: البياضة | K114: ذ | L114: محمد علي109 | M114: حي الإزدهار - البياضة | O114: 2018-05-31 | P114: 109 | Q114: 2018-06-28 | R114: 113 | S114: 2019-04-24 | T114: 116 | Z114: =IF($V$2="","",SEARCH($V$2,$A114&""&#REF!&""&$D114&""&$F114&""&$I114&""&$J114&""&$K114)) ->  | AA114: =IF($X$2="","",SEARCH($X$2,$A114&" "&#REF!&" "&$D114&" "&$F114&" "&$I114&" "&$J114&" "&$K114&" "&$O114&" "&$Q114&" "&$S114&" "&$U114&" "&$V114&" "&$W114&" "&$X114)) -> 
A115: 110 | B115: =IF(C115="","",MAX($B$5:B114)+1) -> 110 | C115: مراد 110 | D115: فريدة110 | E115: أولى | F115: جذع مشترك علوم وتكنولوجيا | G115: 2 | H115: 1ع2 | I115: 12/2/2109 | J115: الوادي | K115: ذ | L115: محمد علي110 | M115: حي السلام -البياضة | O115: 2018-06-01 | P115: 110 | Q115: 2018-06-29 | R115: 114 | S115: 2019-04-25 | T115: 117 | Z115: =IF($V$2="","",SEARCH($V$2,$A115&""&#REF!&""&$D115&""&$F115&""&$I115&""&$J115&""&$K115)) ->  | AA115: =IF($X$2="","",SEARCH($X$2,$A115&" "&#REF!&" "&$D115&" "&$F115&" "&$I115&" "&$J115&" "&$K115&" "&$O115&" "&$Q115&" "&$S115&" "&$U115&" "&$V115&" "&$W115&" "&$X115)) ->  | AB115: 61
A116: 111 | B116: =IF(C116="","",MAX($B$5:B115)+1) -> 111 | C116: مراد 111 | D116: فريدة111 | E116: أولى | F116: جذع مشترك علوم وتكنولوجيا | G116: 2 | H116: 1ع2 | I116: 12/2/2110 | J116: الواد | K116: ذ | L116: محمد علي111 | M116: حي الإزدهار - البياضة | O116: 2018-06-02 | P116: 111 | Q116: 2018-06-30 | R116: 115 | S116: 2019-04-26 | T116: 118 | Z116: =IF($V$2="","",SEARCH($V$2,$A116&""&#REF!&""&$D116&""&$F116&""&$I116&""&$J116&""&$K116)) ->  | AA116: =IF($X$2="","",SEARCH($X$2,$A116&" "&#REF!&" "&$D116&" "&$F116&" "&$I116&" "&$J116&" "&$K116&" "&$O116&" "&$Q116&" "&$S116&" "&$U116&" "&$V116&" "&$W116&" "&$X116)) -> 
A117: 112 | B117: =IF(C117="","",MAX($B$5:B116)+1) -> 112 | C117: مراد 112 | D117: فريدة112 | E117: أولى | F117: جذع مشترك علوم وتكنولوجيا | G117: 2 | H117: 1ع2 | I117: 12/2/2111 | J117: البياضة | K117: ذ | L117: محمد علي112 | M117: حي السلام -البياضة | O117: 2018-06-03 | P117: 112 | Q117: 2018-07-01 | R117: 116 | S117: 2019-04-27 | T117: 119 | Z117: =IF($V$2="","",SEARCH($V$2,$A117&""&#REF!&""&$D117&""&$F117&""&$I117&""&$J117&""&$K117)) ->  | AA117: =IF($X$2="","",SEARCH($X$2,$A117&" "&#REF!&" "&$D117&" "&$F117&" "&$I117&" "&$J117&" "&$K117&" "&$O117&" "&$Q117&" "&$S117&" "&$U117&" "&$V117&" "&$W117&" "&$X117)) -> 
A118: 113 | B118: =IF(C118="","",MAX($B$5:B117)+1) -> 113 | C118: مراد 113 | D118: فريدة113 | E118: أولى | F118: جذع مشترك علوم وتكنولوجيا | G118: 2 | H118: 1ع2 | I118: 12/2/2112 | J118: البياضة | K118: ذ | L118: محمد علي113 | M118: حي الإزدهار - البياضة | O118: 2018-06-04 | P118: 113 | Q118: 2018-07-02 | R118: 117 | S118: 2019-04-28 | T118: 120 | Z118: =IF($V$2="","",SEARCH($V$2,$A118&""&#REF!&""&$D118&""&$F118&""&$I118&""&$J118&""&$K118)) ->  | AA118: =IF($X$2="","",SEARCH($X$2,$A118&" "&#REF!&" "&$D118&" "&$F118&" "&$I118&" "&$J118&" "&$K118&" "&$O118&" "&$Q118&" "&$S118&" "&$U118&" "&$V118&" "&$W118&" "&$X118)) -> 
A119: 114 | B119: =IF(C119="","",MAX($B$5:B118)+1) -> 114 | C119: مراد 114 | D119: فريدة114 | E119: أولى | F119: جذع مشترك علوم وتكنولوجيا | G119: 2 | H119: 1ع2 | I119: 12/2/2113 | J119: البياضة | K119: ذ | L119: محمد علي114 | M119: حي السلام -البياضة | O119: 2018-06-05 | P119: 114 | Q119: 2018-07-03 | R119: 118 | S119: 2019-04-29 | T119: 121 | Z119: =IF($V$2="","",SEARCH($V$2,$A119&""&#REF!&""&$D119&""&$F119&""&$I119&""&$J119&""&$K119)) ->  | AA119: =IF($X$2="","",SEARCH($X$2,$A119&" "&#REF!&" "&$D119&" "&$F119&" "&$I119&" "&$J119&" "&$K119&" "&$O119&" "&$Q119&" "&$S119&" "&$U119&" "&$V119&" "&$W119&" "&$X119)) -> 
A120: 115 | B120: =IF(C120="","",MAX($B$5:B119)+1) -> 115 | C120: مراد 115 | D120: فريدة115 | E120: أولى | F120: جذع مشترك علوم وتكنولوجيا | G120: 2 | H120: 1ع2 | I120: 12/2/2114 | J120: البياضة | K120: ذ | L120: محمد علي115 | M120: حي الإزدهار - البياضة | O120: 2018-06-06 | P120: 115 | Q120: 2018-07-04 | R120: 119 | S120: 2019-04-30 | T120: 122 | Z120: =IF($V$2="","",SEARCH($V$2,$A120&""&#REF!&""&$D120&""&$F120&""&$I120&""&$J120&""&$K120)) ->  | AA120: =IF($X$2="","",SEARCH($X$2,$A120&" "&#REF!&" "&$D120&" "&$F120&" "&$I120&" "&$J120&" "&$K120&" "&$O120&" "&$Q120&" "&$S120&" "&$U120&" "&$V120&" "&$W120&" "&$X120)) -> 
A121: 116 | B121: =IF(C121="","",MAX($B$5:B120)+1) -> 116 | C121: مراد 116 | D121: فريدة116 | E121: أولى | F121: جذع مشترك علوم وتكنولوجيا | G121: 2 | H121: 1ع2 | I121: 12/2/2115 | J121: البياضة | K121: ذ | L121: محمد علي116 | M121: حي السلام -البياضة | O121: 2018-06-07 | P121: 116 | Q121: 2018-07-05 | R121: 120 | S121: 2019-05-01 | T121: 123 | Z121: =IF($V$2="","",SEARCH($V$2,$A121&""&#REF!&""&$D121&""&$F121&""&$I121&""&$J121&""&$K121)) ->  | AA121: =IF($X$2="","",SEARCH($X$2,$A121&" "&#REF!&" "&$D121&" "&$F121&" "&$I121&" "&$J121&" "&$K121&" "&$O121&" "&$Q121&" "&$S121&" "&$U121&" "&$V121&" "&$W121&" "&$X121)) -> 
A122: 117 | B122: =IF(C122="","",MAX($B$5:B121)+1) -> 117 | C122: مراد 117 | D122: فريدة117 | E122: أولى | F122: جذع مشترك علوم وتكنولوجيا | G122: 2 | H122: 1ع2 | I122: 12/2/2116 | J122: البياضة | K122: ذ | L122: محمد علي117 | M122: حي الإزدهار - البياضة | O122: 2018-06-08 | P122: 117 | Q122: 2018-07-06 | R122: 121 | S122: 2019-05-02 | T122: 124 | Z122: =IF($V$2="","",SEARCH($V$2,$A122&""&#REF!&""&$D122&""&$F122&""&$I122&""&$J122&""&$K122)) ->  | AA122: =IF($X$2="","",SEARCH($X$2,$A122&" "&#REF!&" "&$D122&" "&$F122&" "&$I122&" "&$J122&" "&$K122&" "&$O122&" "&$Q122&" "&$S122&" "&$U122&" "&$V122&" "&$W122&" "&$X122)) -> 
A123: 118 | B123: =IF(C123="","",MAX($B$5:B122)+1) -> 118 | C123: مراد 118 | D123: فريدة118 | E123: أولى | F123: جذع مشترك علوم وتكنولوجيا | G123: 2 | H123: 1ع2 | I123: 12/2/2117 | J123: البياضة | K123: ذ | L123: محمد علي118 | M123: حي السلام -البياضة | O123: 2018-06-09 | P123: 118 | Q123: 2018-07-07 | R123: 122 | S123: 2019-05-03 | T123: 125 | Z123: =IF($V$2="","",SEARCH($V$2,$A123&""&#REF!&""&$D123&""&$F123&""&$I123&""&$J123&""&$K123)) ->  | AA123: =IF($X$2="","",SEARCH($X$2,$A123&" "&#REF!&" "&$D123&" "&$F123&" "&$I123&" "&$J123&" "&$K123&" "&$O123&" "&$Q123&" "&$S123&" "&$U123&" "&$V123&" "&$W123&" "&$X123)) -> 
A124: 119 | B124: =IF(C124="","",MAX($B$5:B123)+1) -> 119 | C124: مراد 119 | D124: فريدة119 | E124: أولى | F124: جذع مشترك علوم وتكنولوجيا | G124: 2 | H124: 1ع2 | I124: 12/2/2118 | J124: البياضة | K124: ذ | L124: محمد علي119 | M124: حي الإزدهار - البياضة | O124: 2018-06-10 | P124: 119 | Q124: 2018-07-08 | R124: 123 | S124: 2019-05-04 | T124: 126 | Z124: =IF($V$2="","",SEARCH($V$2,$A124&""&#REF!&""&$D124&""&$F124&""&$I124&""&$J124&""&$K124)) ->  | AA124: =IF($X$2="","",SEARCH($X$2,$A124&" "&#REF!&" "&$D124&" "&$F124&" "&$I124&" "&$J124&" "&$K124&" "&$O124&" "&$Q124&" "&$S124&" "&$U124&" "&$V124&" "&$W124&" "&$X124)) -> 
A125: 120 | B125: =IF(C125="","",MAX($B$5:B124)+1) -> 120 | C125: مراد 120 | D125: فريدة120 | E125: أولى | F125: جذع مشترك علوم وتكنولوجيا | G125: 2 | H125: 1ع2 | I125: 12/2/2119 | J125: البياضة | K125: ذ | L125: محمد علي120 | M125: حي السلام -البياضة | O125: 2018-06-11 | P125: 120 | Q125: 2018-07-09 | R125: 124 | S125: 2019-05-05 | T125: 127 | Z125: =IF($V$2="","",SEARCH($V$2,$A125&""&#REF!&""&$D125&""&$F125&""&$I125&""&$J125&""&$K125)) ->  | AA125: =IF($X$2="","",SEARCH($X$2,$A125&" "&#REF!&" "&$D125&" "&$F125&" "&$I125&" "&$J125&" "&$K125&" "&$O125&" "&$Q125&" "&$S125&" "&$U125&" "&$V125&" "&$W125&" "&$X125)) -> 
A126: 121 | B126: =IF(C126="","",MAX($B$5:B125)+1) -> 121 | C126: مراد 121 | D126: فريدة121 | E126: أولى | F126: جذع مشترك علوم وتكنولوجيا | G126: 2 | H126: 1ع2 | I126: 12/2/2120 | J126: البياضة | K126: ذ | L126: محمد علي121 | M126: حي الإزدهار - البياضة | O126: 2018-06-12 | P126: 121 | Q126: 2018-07-10 | R126: 125 | S126: 2019-05-06 | T126: 128 | Z126: =IF($V$2="","",SEARCH($V$2,$A126&""&#REF!&""&$D126&""&$F126&""&$I126&""&$J126&""&$K126)) ->  | AA126: =IF($X$2="","",SEARCH($X$2,$A126&" "&#REF!&" "&$D126&" "&$F126&" "&$I126&" "&$J126&" "&$K126&" "&$O126&" "&$Q126&" "&$S126&" "&$U126&" "&$V126&" "&$W126&" "&$X126)) -> 
A127: 122 | B127: =IF(C127="","",MAX($B$5:B126)+1) -> 122 | C127: مراد 122 | D127: فريدة122 | E127: أولى | F127: جذع مشترك علوم وتكنولوجيا | G127: 2 | H127: 1ع2 | I127: 12/2/2121 | J127: البياضة | K127: ذ | L127: محمد علي122 | M127: حي السلام -البياضة | O127: 2018-06-13 | P127: 122 | Q127: 2018-07-11 | R127: 126 | S127: 2019-05-07 | T127: 129 | Z127: =IF($V$2="","",SEARCH($V$2,$A127&""&#REF!&""&$D127&""&$F127&""&$I127&""&$J127&""&$K127)) ->  | AA127: =IF($X$2="","",SEARCH($X$2,$A127&" "&#REF!&" "&$D127&" "&$F127&" "&$I127&" "&$J127&" "&$K127&" "&$O127&" "&$Q127&" "&$S127&" "&$U127&" "&$V127&" "&$W127&" "&$X127)) -> 
A128: 123 | B128: =IF(C128="","",MAX($B$5:B127)+1) -> 123 | C128: مراد 123 | D128: فريدة123 | E128: أولى | F128: جذع مشترك علوم وتكنولوجيا | G128: 2 | H128: 1ع2 | I128: 12/2/2122 | J128: الوادي | K128: ذ | L128: محمد علي123 | M128: حي الإزدهار - البياضة | O128: 2018-06-14 | P128: 123 | Q128: 2018-07-12 | R128: 127 | S128: 2019-05-08 | T128: 130 | Z128: =IF($V$2="","",SEARCH($V$2,$A128&""&#REF!&""&$D128&""&$F128&""&$I128&""&$J128&""&$K128)) ->  | AA128: =IF($X$2="","",SEARCH($X$2,$A128&" "&#REF!&" "&$D128&" "&$F128&" "&$I128&" "&$J128&" "&$K128&" "&$O128&" "&$Q128&" "&$S128&" "&$U128&" "&$V128&" "&$W128&" "&$X128)) ->  | AB128: 61
A129: 124 | B129: =IF(C129="","",MAX($B$5:B128)+1) -> 124 | C129: مراد 124 | D129: فريدة124 | E129: أولى | F129: جذع مشترك علوم وتكنولوجيا | G129: 2 | H129: 1ع2 | I129: 12/2/2123 | J129: البياضة | K129: ذ | L129: محمد علي124 | M129: حي السلام -البياضة | O129: 2018-06-15 | P129: 124 | Q129: 2018-07-13 | R129: 128 | S129: 2019-05-09 | T129: 131 | Z129: =IF($V$2="","",SEARCH($V$2,$A129&""&#REF!&""&$D129&""&$F129&""&$I129&""&$J129&""&$K129)) ->  | AA129: =IF($X$2="","",SEARCH($X$2,$A129&" "&#REF!&" "&$D129&" "&$F129&" "&$I129&" "&$J129&" "&$K129&" "&$O129&" "&$Q129&" "&$S129&" "&$U129&" "&$V129&" "&$W129&" "&$X129)) -> 
A130: 125 | B130: =IF(C130="","",MAX($B$5:B129)+1) -> 125 | C130: مراد 125 | D130: فريدة125 | E130: أولى | F130: جذع مشترك علوم وتكنولوجيا | G130: 2 | H130: 1ع2 | I130: 12/2/2124 | J130: البياضة | K130: ذ | L130: محمد علي125 | M130: حي الإزدهار - البياضة | O130: 2018-06-16 | P130: 125 | Q130: 2018-07-14 | R130: 129 | S130: 2019-05-10 | T130: 132 | Z130: =IF($V$2="","",SEARCH($V$2,$A130&""&#REF!&""&$D130&""&$F130&""&$I130&""&$J130&""&$K130)) ->  | AA130: =IF($X$2="","",SEARCH($X$2,$A130&" "&#REF!&" "&$D130&" "&$F130&" "&$I130&" "&$J130&" "&$K130&" "&$O130&" "&$Q130&" "&$S130&" "&$U130&" "&$V130&" "&$W130&" "&$X130)) -> 
A131: 126 | B131: =IF(C131="","",MAX($B$5:B130)+1) -> 126 | C131: مراد 126 | D131: فريدة126 | E131: أولى | F131: جذع مشترك علوم وتكنولوجيا | G131: 2 | H131: 1ع2 | I131: 12/2/2125 | J131: البياضة | K131: ذ | L131: محمد علي126 | M131: حي السلام -البياضة | O131: 2018-06-17 | P131: 126 | Q131: 2018-07-15 | R131: 130 | S131: 2019-05-11 | T131: 133 | Z131: =IF($V$2="","",SEARCH($V$2,$A131&""&#REF!&""&$D131&""&$F131&""&$I131&""&$J131&""&$K131)) ->  | AA131: =IF($X$2="","",SEARCH($X$2,$A131&" "&#REF!&" "&$D131&" "&$F131&" "&$I131&" "&$J131&" "&$K131&" "&$O131&" "&$Q131&" "&$S131&" "&$U131&" "&$V131&" "&$W131&" "&$X131)) -> 
A132: 127 | B132: =IF(C132="","",MAX($B$5:B131)+1) -> 127 | C132: مراد 127 | D132: فريدة127 | E132: أولى | F132: جذع مشترك علوم وتكنولوجيا | G132: 2 | H132: 1ع2 | I132: 12/2/2126 | J132: البياضة | K132: ذ | L132: محمد علي127 | M132: حي الإزدهار - البياضة | O132: 2018-06-18 | P132: 127 | Q132: 2018-07-16 | R132: 131 | S132: 2019-05-12 | T132: 134 | Z132: =IF($V$2="","",SEARCH($V$2,$A132&""&#REF!&""&$D132&""&$F132&""&$I132&""&$J132&""&$K132)) ->  | AA132: =IF($X$2="","",SEARCH($X$2,$A132&" "&#REF!&" "&$D132&" "&$F132&" "&$I132&" "&$J132&" "&$K132&" "&$O132&" "&$Q132&" "&$S132&" "&$U132&" "&$V132&" "&$W132&" "&$X132)) -> 
A133: 128 | B133: =IF(C133="","",MAX($B$5:B132)+1) -> 128 | C133: مراد 128 | D133: فريدة128 | E133: أولى | F133: جذع مشترك علوم وتكنولوجيا | G133: 2 | H133: 1ع2 | I133: 12/2/2127 | J133: البياضة | K133: ذ | L133: محمد علي128 | M133: حي السلام -البياضة | O133: 2018-06-19 | P133: 128 | Q133: 2018-07-17 | R133: 132 | S133: 2019-05-13 | T133: 135 | Z133: =IF($V$2="","",SEARCH($V$2,$A133&""&#REF!&""&$D133&""&$F133&""&$I133&""&$J133&""&$K133)) ->  | AA133: =IF($X$2="","",SEARCH($X$2,$A133&" "&#REF!&" "&$D133&" "&$F133&" "&$I133&" "&$J133&" "&$K133&" "&$O133&" "&$Q133&" "&$S133&" "&$U133&" "&$V133&" "&$W133&" "&$X133)) -> 
A134: 129 | B134: =IF(C134="","",MAX($B$5:B133)+1) -> 129 | C134: مراد 129 | D134: فريدة129 | E134: أولى | F134: جذع مشترك علوم وتكنولوجيا | G134: 2 | H134: 1ع2 | I134: 12/2/2128 | J134: البياضة | K134: ذ | L134: محمد علي129 | M134: حي الإزدهار - البياضة | O134: 2018-06-20 | P134: 129 | Q134: 2018-07-18 | R134: 133 | S134: 2019-05-14 | T134: 136 | Z134: =IF($V$2="","",SEARCH($V$2,$A134&""&#REF!&""&$D134&""&$F134&""&$I134&""&$J134&""&$K134)) ->  | AA134: =IF($X$2="","",SEARCH($X$2,$A134&" "&#REF!&" "&$D134&" "&$F134&" "&$I134&" "&$J134&" "&$K134&" "&$O134&" "&$Q134&" "&$S134&" "&$U134&" "&$V134&" "&$W134&" "&$X134)) -> 
A135: 130 | B135: =IF(C135="","",MAX($B$5:B134)+1) -> 130 | C135: مراد 130 | D135: فريدة130 | E135: أولى | F135: جذع مشترك علوم وتكنولوجيا | G135: 2 | H135: 1ع2 | I135: 12/2/2129 | J135: البياضة | K135: ذ | L135: محمد علي130 | M135: حي السلام -البياضة | O135: 2018-06-21 | P135: 130 | Q135: 2018-07-19 | R135: 134 | S135: 2019-05-15 | T135: 137 | Z135: =IF($V$2="","",SEARCH($V$2,$A135&""&#REF!&""&$D135&""&$F135&""&$I135&""&$J135&""&$K135)) ->  | AA135: =IF($X$2="","",SEARCH($X$2,$A135&" "&#REF!&" "&$D135&" "&$F135&" "&$I135&" "&$J135&" "&$K135&" "&$O135&" "&$Q135&" "&$S135&" "&$U135&" "&$V135&" "&$W135&" "&$X135)) ->  | AB135: =IF($L$2="","",SEARCH($L$2,$A135&" "&$D135&" "&$E135&" "&$F135&" "&$G135&" "&$H135&" "&$I135&" "&$J135&" "&$K135&" "&$L135&" "&$N135&" "&$O135&" "&$P135&" "&$Q135&" "&$R135&" "&$S135&" "&$T135&" "&$U135&" "&$V135&" "&$W135&" "&$X135)) -> 
A136: 131 | B136: =IF(C136="","",MAX($B$5:B135)+1) -> 131 | C136: مراد 131 | D136: فريدة131 | E136: أولى | F136: جذع مشترك علوم وتكنولوجيا | G136: 2 | H136: 1ع2 | I136: 12/2/2130 | J136: البياضة | K136: ذ | L136: محمد علي131 | M136: حي الإزدهار - البياضة | O136: 2018-06-22 | P136: 131 | Q136: 2018-07-20 | R136: 135 | S136: 2019-05-16 | T136: 138 | Z136: =IF($V$2="","",SEARCH($V$2,$A136&""&#REF!&""&$D136&""&$F136&""&$I136&""&$J136&""&$K136)) ->  | AA136: =IF($X$2="","",SEARCH($X$2,$A136&" "&#REF!&" "&$D136&" "&$F136&" "&$I136&" "&$J136&" "&$K136&" "&$O136&" "&$Q136&" "&$S136&" "&$U136&" "&$V136&" "&$W136&" "&$X136)) -> 
A137: 132 | B137: =IF(C137="","",MAX($B$5:B136)+1) -> 132 | C137: مراد 132 | D137: فريدة132 | E137: أولى | F137: جذع مشترك علوم وتكنولوجيا | G137: 2 | H137: 1ع2 | I137: 12/2/2131 | J137: البياضة | K137: ذ | L137: محمد علي132 | M137: حي السلام -البياضة | O137: 2018-06-23 | P137: 132 | Q137: 2018-07-21 | R137: 136 | S137: 2019-05-17 | T137: 139 | Z137: =IF($V$2="","",SEARCH($V$2,$A137&""&#REF!&""&$D137&""&$F137&""&$I137&""&$J137&""&$K137)) ->  | AA137: =IF($X$2="","",SEARCH($X$2,$A137&" "&#REF!&" "&$D137&" "&$F137&" "&$I137&" "&$J137&" "&$K137&" "&$O137&" "&$Q137&" "&$S137&" "&$U137&" "&$V137&" "&$W137&" "&$X137)) -> 
A138: 133 | B138: =IF(C138="","",MAX($B$5:B137)+1) -> 133 | C138: مراد 133 | D138: فريدة133 | E138: أولى | F138: جذع مشترك علوم وتكنولوجيا | G138: 2 | H138: 1ع2 | I138: 12/2/2132 | J138: البياضة | K138: ذ | L138: محمد علي133 | M138: حي الإزدهار - البياضة | O138: 2018-06-24 | P138: 133 | Q138: 2018-07-22 | R138: 137 | S138: 2019-05-18 | T138: 140 | Z138: =IF($V$2="","",SEARCH($V$2,$A138&""&#REF!&""&$D138&""&$F138&""&$I138&""&$J138&""&$K138)) ->  | AA138: =IF($X$2="","",SEARCH($X$2,$A138&" "&#REF!&" "&$D138&" "&$F138&" "&$I138&" "&$J138&" "&$K138&" "&$O138&" "&$Q138&" "&$S138&" "&$U138&" "&$V138&" "&$W138&" "&$X138)) -> 
A139: 134 | B139: =IF(C139="","",MAX($B$5:B138)+1) -> 134 | C139: مراد 134 | D139: فريدة134 | E139: أولى | F139: جذع مشترك علوم وتكنولوجيا | G139: 2 | H139: 1ع2 | I139: 12/2/2133 | J139: الواد | K139: ذ | L139: محمد علي134 | M139: حي السلام -البياضة | O139: 2018-06-25 | P139: 134 | Q139: 2018-07-23 | R139: 138 | S139: 2019-05-19 | T139: 141 | Z139: =IF($V$2="","",SEARCH($V$2,$A139&""&#REF!&""&$D139&""&$F139&""&$I139&""&$J139&""&$K139)) ->  | AA139: =IF($X$2="","",SEARCH($X$2,$A139&" "&#REF!&" "&$D139&" "&$F139&" "&$I139&" "&$J139&" "&$K139&" "&$O139&" "&$Q139&" "&$S139&" "&$U139&" "&$V139&" "&$W139&" "&$X139)) -> 
A140: 135 | B140: =IF(C140="","",MAX($B$5:B139)+1) -> 135 | C140: مراد 135 | D140: فريدة135 | E140: أولى | F140: جذع مشترك علوم وتكنولوجيا | G140: 2 | H140: 1ع2 | I140: 12/2/2134 | J140: البياضة | K140: ذ | L140: محمد علي135 | M140: حي الإزدهار - البياضة | O140: 2018-06-26 | P140: 135 | Q140: 2018-07-24 | R140: 139 | S140: 2019-05-20 | T140: 142 | Z140: =IF($V$2="","",SEARCH($V$2,$A140&""&#REF!&""&$D140&""&$F140&""&$I140&""&$J140&""&$K140)) ->  | AA140: =IF($X$2="","",SEARCH($X$2,$A140&" "&#REF!&" "&$D140&" "&$F140&" "&$I140&" "&$J140&" "&$K140&" "&$O140&" "&$Q140&" "&$S140&" "&$U140&" "&$V140&" "&$W140&" "&$X140)) -> 
A141: 136 | B141: =IF(C141="","",MAX($B$5:B140)+1) -> 136 | C141: مراد 136 | D141: فريدة136 | E141: أولى | F141: جذع مشترك علوم وتكنولوجيا | G141: 2 | H141: 1ع2 | I141: 12/2/2135 | J141: ورقلة | K141: ذ | L141: محمد علي136 | M141: حي السلام -البياضة | O141: 2018-06-27 | P141: 136 | Q141: 2018-07-25 | R141: 140 | S141: 2019-05-21 | T141: 143 | Z141: =IF($V$2="","",SEARCH($V$2,$A141&""&#REF!&""&$D141&""&$F141&""&$I141&""&$J141&""&$K141)) ->  | AA141: =IF($X$2="","",SEARCH($X$2,$A141&" "&#REF!&" "&$D141&" "&$F141&" "&$I141&" "&$J141&" "&$K141&" "&$O141&" "&$Q141&" "&$S141&" "&$U141&" "&$V141&" "&$W141&" "&$X141)) -> 
A142: 137 | B142: =IF(C142="","",MAX($B$5:B141)+1) -> 137 | C142: مراد 137 | D142: فريدة137 | E142: أولى | F142: جذع مشترك علوم وتكنولوجيا | G142: 3 | H142: 1ع3 | I142: 12/2/2136 | J142: البياضة | K142: ذ | L142: محمد علي137 | M142: حي الإزدهار - البياضة | O142: 2018-06-28 | P142: 137 | Q142: 2018-07-26 | R142: 141 | S142: 2019-05-22 | T142: 144 | Z142: =IF($V$2="","",SEARCH($V$2,$A142&""&#REF!&""&$D142&""&$F142&""&$I142&""&$J142&""&$K142)) ->  | AA142: =IF($X$2="","",SEARCH($X$2,$A142&" "&#REF!&" "&$D142&" "&$F142&" "&$I142&" "&$J142&" "&$K142&" "&$O142&" "&$Q142&" "&$S142&" "&$U142&" "&$V142&" "&$W142&" "&$X142)) -> 
A143: 138 | B143: =IF(C143="","",MAX($B$5:B142)+1) -> 138 | C143: مراد 138 | D143: فريدة138 | E143: أولى | F143: جذع مشترك علوم وتكنولوجيا | G143: 3 | H143: 1ع3 | I143: 12/2/2137 | J143: البياضة | K143: ذ | L143: محمد علي138 | M143: حي السلام -البياضة | O143: 2018-06-29 | P143: 138 | Q143: 2018-07-27 | R143: 142 | S143: 2019-05-23 | T143: 145 | Z143: =IF($V$2="","",SEARCH($V$2,$A143&""&#REF!&""&$D143&""&$F143&""&$I143&""&$J143&""&$K143)) ->  | AA143: =IF($X$2="","",SEARCH($X$2,$A143&" "&#REF!&" "&$D143&" "&$F143&" "&$I143&" "&$J143&" "&$K143&" "&$O143&" "&$Q143&" "&$S143&" "&$U143&" "&$V143&" "&$W143&" "&$X143)) -> 
A144: 139 | B144: =IF(C144="","",MAX($B$5:B143)+1) -> 139 | C144: مراد 139 | D144: فريدة139 | E144: أولى | F144: جذع مشترك علوم وتكنولوجيا | G144: 3 | H144: 1ع3 | I144: 12/2/2138 | J144: الوادي | K144: ذ | L144: محمد علي139 | M144: حي الإزدهار - البياضة | O144: 2018-06-30 | P144: 139 | Q144: 2018-07-28 | R144: 143 | S144: 2019-05-24 | T144: 146 | Z144: =IF($V$2="","",SEARCH($V$2,$A144&""&#REF!&""&$D144&""&$F144&""&$I144&""&$J144&""&$K144)) ->  | AA144: =IF($X$2="","",SEARCH($X$2,$A144&" "&#REF!&" "&$D144&" "&$F144&" "&$I144&" "&$J144&" "&$K144&" "&$O144&" "&$Q144&" "&$S144&" "&$U144&" "&$V144&" "&$W144&" "&$X144)) ->  | AB144: 61
A145: 140 | B145: =IF(C145="","",MAX($B$5:B144)+1) -> 140 | C145: مراد 140 | D145: فريدة140 | E145: أولى | F145: جذع مشترك علوم وتكنولوجيا | G145: 3 | H145: 1ع3 | I145: 12/2/2139 | J145: الوادي | K145: ذ | L145: محمد علي140 | M145: حي السلام -البياضة | O145: 2018-07-01 | P145: 140 | Q145: 2018-07-29 | R145: 144 | S145: 2019-05-25 | T145: 147 | Z145: =IF($V$2="","",SEARCH($V$2,$A145&""&#REF!&""&$D145&""&$F145&""&$I145&""&$J145&""&$K145)) ->  | AA145: =IF($X$2="","",SEARCH($X$2,$A145&" "&#REF!&" "&$D145&" "&$F145&" "&$I145&" "&$J145&" "&$K145&" "&$O145&" "&$Q145&" "&$S145&" "&$U145&" "&$V145&" "&$W145&" "&$X145)) ->  | AB145: 61
A146: 141 | B146: =IF(C146="","",MAX($B$5:B145)+1) -> 141 | C146: مراد 141 | D146: فريدة141 | E146: أولى | F146: جذع مشترك علوم وتكنولوجيا | G146: 3 | H146: 1ع3 | I146: 12/2/2140 | J146: البياضة | K146: ذ | L146: محمد علي141 | M146: حي الإزدهار - البياضة | O146: 2018-07-02 | P146: 141 | Q146: 2018-07-30 | R146: 145 | S146: 2019-05-26 | T146: 148 | Z146: =IF($V$2="","",SEARCH($V$2,$A146&""&#REF!&""&$D146&""&$F146&""&$I146&""&$J146&""&$K146)) ->  | AA146: =IF($X$2="","",SEARCH($X$2,$A146&" "&#REF!&" "&$D146&" "&$F146&" "&$I146&" "&$J146&" "&$K146&" "&$O146&" "&$Q146&" "&$S146&" "&$U146&" "&$V146&" "&$W146&" "&$X146)) -> 
A147: 142 | B147: =IF(C147="","",MAX($B$5:B146)+1) -> 142 | C147: مراد 142 | D147: فريدة142 | E147: أولى | F147: جذع مشترك علوم وتكنولوجيا | G147: 3 | H147: 1ع3 | I147: 12/2/2141 | J147: البياضة | K147: ذ | L147: محمد علي142 | M147: حي السلام -البياضة | O147: 2018-07-03 | P147: 142 | Q147: 2018-07-31 | R147: 146 | S147: 2019-05-27 | T147: 149 | Z147: =IF($V$2="","",SEARCH($V$2,$A147&""&#REF!&""&$D147&""&$F147&""&$I147&""&$J147&""&$K147)) ->  | AA147: =IF($X$2="","",SEARCH($X$2,$A147&" "&#REF!&" "&$D147&" "&$F147&" "&$I147&" "&$J147&" "&$K147&" "&$O147&" "&$Q147&" "&$S147&" "&$U147&" "&$V147&" "&$W147&" "&$X147)) -> 
A148: 143 | B148: =IF(C148="","",MAX($B$5:B147)+1) -> 143 | C148: مراد 143 | D148: فريدة143 | E148: أولى | F148: جذع مشترك علوم وتكنولوجيا | G148: 3 | H148: 1ع3 | I148: 12/2/2142 | J148: البياضة | K148: ذ | L148: محمد علي143 | M148: حي الإزدهار - البياضة | O148: 2018-07-04 | P148: 143 | Q148: 2018-08-01 | R148: 147 | S148: 2019-05-28 | T148: 150 | Z148: =IF($V$2="","",SEARCH($V$2,$A148&""&#REF!&""&$D148&""&$F148&""&$I148&""&$J148&""&$K148)) ->  | AA148: =IF($X$2="","",SEARCH($X$2,$A148&" "&#REF!&" "&$D148&" "&$F148&" "&$I148&" "&$J148&" "&$K148&" "&$O148&" "&$Q148&" "&$S148&" "&$U148&" "&$V148&" "&$W148&" "&$X148)) -> 
A149: 144 | B149: =IF(C149="","",MAX($B$5:B148)+1) -> 144 | C149: مراد 144 | D149: فريدة144 | E149: أولى | F149: جذع مشترك علوم وتكنولوجيا | G149: 3 | H149: 1ع3 | I149: 12/2/2143 | J149: البياضة | K149: ذ | L149: محمد علي144 | M149: حي السلام -البياضة | O149: 2018-07-05 | P149: 144 | Q149: 2018-08-02 | R149: 148 | S149: 2019-05-29 | T149: 151 | Z149: =IF($V$2="","",SEARCH($V$2,$A149&""&#REF!&""&$D149&""&$F149&""&$I149&""&$J149&""&$K149)) ->  | AA149: =IF($X$2="","",SEARCH($X$2,$A149&" "&#REF!&" "&$D149&" "&$F149&" "&$I149&" "&$J149&" "&$K149&" "&$O149&" "&$Q149&" "&$S149&" "&$U149&" "&$V149&" "&$W149&" "&$X149)) -> 
A150: 145 | B150: =IF(C150="","",MAX($B$5:B149)+1) -> 145 | C150: مراد 145 | D150: فريدة145 | E150: أولى | F150: جذع مشترك علوم وتكنولوجيا | G150: 3 | H150: 1ع3 | I150: 12/2/2144 | J150: البياضة | K150: ذ | L150: محمد علي145 | M150: حي الإزدهار - البياضة | O150: 2018-07-06 | P150: 145 | Q150: 2018-08-03 | R150: 149 | S150: 2019-05-30 | T150: 152 | Z150: =IF($V$2="","",SEARCH($V$2,$A150&""&#REF!&""&$D150&""&$F150&""&$I150&""&$J150&""&$K150)) ->  | AA150: =IF($X$2="","",SEARCH($X$2,$A150&" "&#REF!&" "&$D150&" "&$F150&" "&$I150&" "&$J150&" "&$K150&" "&$O150&" "&$Q150&" "&$S150&" "&$U150&" "&$V150&" "&$W150&" "&$X150)) -> 
A151: 146 | B151: =IF(C151="","",MAX($B$5:B150)+1) -> 146 | C151: مراد 146 | D151: فريدة146 | E151: أولى | F151: جذع مشترك علوم وتكنولوجيا | G151: 3 | H151: 1ع3 | I151: 12/2/2145 | J151: البياضة | K151: ذ | L151: محمد علي146 | M151: حي السلام -البياضة | O151: 2018-07-07 | P151: 146 | Q151: 2018-08-04 | R151: 150 | S151: 2019-05-31 | T151: 153 | Z151: =IF($V$2="","",SEARCH($V$2,$A151&""&#REF!&""&$D151&""&$F151&""&$I151&""&$J151&""&$K151)) ->  | AA151: =IF($X$2="","",SEARCH($X$2,$A151&" "&#REF!&" "&$D151&" "&$F151&" "&$I151&" "&$J151&" "&$K151&" "&$O151&" "&$Q151&" "&$S151&" "&$U151&" "&$V151&" "&$W151&" "&$X151)) -> 
A152: 147 | B152: =IF(C152="","",MAX($B$5:B151)+1) -> 147 | C152: مراد 147 | D152: فريدة147 | E152: أولى | F152: جذع مشترك علوم وتكنولوجيا | G152: 3 | H152: 1ع3 | I152: 12/2/2146 | J152: جامعة | K152: ذ | L152: محمد علي147 | M152: حي الإزدهار - البياضة | O152: 2018-07-08 | P152: 147 | Q152: 2018-08-05 | R152: 151 | S152: 2019-06-01 | T152: 154 | Z152: =IF($V$2="","",SEARCH($V$2,$A152&""&#REF!&""&$D152&""&$F152&""&$I152&""&$J152&""&$K152)) ->  | AA152: =IF($X$2="","",SEARCH($X$2,$A152&" "&#REF!&" "&$D152&" "&$F152&" "&$I152&" "&$J152&" "&$K152&" "&$O152&" "&$Q152&" "&$S152&" "&$U152&" "&$V152&" "&$W152&" "&$X152)) -> 
A153: 148 | B153: =IF(C153="","",MAX($B$5:B152)+1) -> 148 | C153: مراد 148 | D153: فريدة148 | E153: أولى | F153: جذع مشترك علوم وتكنولوجيا | G153: 3 | H153: 1ع3 | I153: 12/2/2147 | J153: الوادي | K153: ذ | L153: محمد علي148 | M153: حي السلام -البياضة | O153: 2018-07-09 | P153: 148 | Q153: 2018-08-06 | R153: 152 | S153: 2019-06-02 | T153: 155 | Z153: =IF($V$2="","",SEARCH($V$2,$A153&""&#REF!&""&$D153&""&$F153&""&$I153&""&$J153&""&$K153)) ->  | AA153: =IF($X$2="","",SEARCH($X$2,$A153&" "&#REF!&" "&$D153&" "&$F153&" "&$I153&" "&$J153&" "&$K153&" "&$O153&" "&$Q153&" "&$S153&" "&$U153&" "&$V153&" "&$W153&" "&$X153)) ->  | AB153: 61
A154: 149 | B154: =IF(C154="","",MAX($B$5:B153)+1) -> 149 | C154: مراد 149 | D154: فريدة149 | E154: أولى | F154: جذع مشترك علوم وتكنولوجيا | G154: 3 | H154: 1ع3 | I154: 12/2/2148 | J154: البياضة | K154: ذ | L154: محمد علي149 | M154: حي الإزدهار - البياضة | O154: 2018-07-10 | P154: 149 | Q154: 2018-08-07 | R154: 153 | S154: 2019-06-03 | T154: 156 | Z154: =IF($V$2="","",SEARCH($V$2,$A154&""&#REF!&""&$D154&""&$F154&""&$I154&""&$J154&""&$K154)) ->  | AA154: =IF($X$2="","",SEARCH($X$2,$A154&" "&#REF!&" "&$D154&" "&$F154&" "&$I154&" "&$J154&" "&$K154&" "&$O154&" "&$Q154&" "&$S154&" "&$U154&" "&$V154&" "&$W154&" "&$X154)) -> 
A155: 150 | B155: =IF(C155="","",MAX($B$5:B154)+1) -> 150 | C155: مراد 150 | D155: فريدة150 | E155: أولى | F155: جذع مشترك علوم وتكنولوجيا | G155: 3 | H155: 1ع3 | I155: 12/2/2149 | J155: البياضة | K155: ذ | L155: محمد علي150 | M155: حي السلام -البياضة | O155: 2018-07-11 | P155: 150 | Q155: 2018-08-08 | R155: 154 | S155: 2019-06-04 | T155: 157 | Z155: =IF($V$2="","",SEARCH($V$2,$A155&""&#REF!&""&$D155&""&$F155&""&$I155&""&$J155&""&$K155)) ->  | AA155: =IF($X$2="","",SEARCH($X$2,$A155&" "&#REF!&" "&$D155&" "&$F155&" "&$I155&" "&$J155&" "&$K155&" "&$O155&" "&$Q155&" "&$S155&" "&$U155&" "&$V155&" "&$W155&" "&$X155)) -> 
A156: 151 | B156: =IF(C156="","",MAX($B$5:B155)+1) -> 151 | C156: مراد 151 | D156: فريدة151 | E156: أولى | F156: جذع مشترك علوم وتكنولوجيا | G156: 3 | H156: 1ع3 | I156: 12/2/2150 | J156: البياضة | K156: ذ | L156: محمد علي151 | M156: حي الإزدهار - البياضة | O156: 2018-07-12 | P156: 151 | Q156: 2018-08-09 | R156: 155 | S156: 2019-06-05 | T156: 158 | Z156: =IF($V$2="","",SEARCH($V$2,$A156&""&#REF!&""&$D156&""&$F156&""&$I156&""&$J156&""&$K156)) ->  | AA156: =IF($X$2="","",SEARCH($X$2,$A156&" "&#REF!&" "&$D156&" "&$F156&" "&$I156&" "&$J156&" "&$K156&" "&$O156&" "&$Q156&" "&$S156&" "&$U156&" "&$V156&" "&$W156&" "&$X156)) -> 
A157: 152 | B157: =IF(C157="","",MAX($B$5:B156)+1) -> 152 | C157: مراد 152 | D157: فريدة152 | E157: أولى | F157: جذع مشترك علوم وتكنولوجيا | G157: 3 | H157: 1ع3 | I157: 12/2/2151 | J157: الوادي | K157: ذ | L157: محمد علي152 | M157: حي السلام -البياضة | O157: 2018-07-13 | P157: 152 | Q157: 2018-08-10 | R157: 156 | S157: 2019-06-06 | T157: 159 | Z157: =IF($V$2="","",SEARCH($V$2,$A157&""&#REF!&""&$D157&""&$F157&""&$I157&""&$J157&""&$K157)) ->  | AA157: =IF($X$2="","",SEARCH($X$2,$A157&" "&#REF!&" "&$D157&" "&$F157&" "&$I157&" "&$J157&" "&$K157&" "&$O157&" "&$Q157&" "&$S157&" "&$U157&" "&$V157&" "&$W157&" "&$X157)) ->  | AB157: 61
A158: 153 | B158: =IF(C158="","",MAX($B$5:B157)+1) -> 153 | C158: مراد 153 | D158: فريدة153 | E158: أولى | F158: جذع مشترك علوم وتكنولوجيا | G158: 3 | H158: 1ع3 | I158: 12/2/2152 | J158: البياضة | K158: ذ | L158: محمد علي153 | M158: حي الإزدهار - البياضة | O158: 2018-07-14 | P158: 153 | Q158: 2018-08-11 | R158: 157 | S158: 2019-06-07 | T158: 160 | Z158: =IF($V$2="","",SEARCH($V$2,$A158&""&#REF!&""&$D158&""&$F158&""&$I158&""&$J158&""&$K158)) ->  | AA158: =IF($X$2="","",SEARCH($X$2,$A158&" "&#REF!&" "&$D158&" "&$F158&" "&$I158&" "&$J158&" "&$K158&" "&$O158&" "&$Q158&" "&$S158&" "&$U158&" "&$V158&" "&$W158&" "&$X158)) -> 
A159: 154 | B159: =IF(C159="","",MAX($B$5:B158)+1) -> 154 | C159: مراد 154 | D159: فريدة154 | E159: أولى | F159: جذع مشترك علوم وتكنولوجيا | G159: 3 | H159: 1ع3 | I159: 12/2/2153 | J159: البياضة | K159: ذ | L159: محمد علي154 | M159: حي السلام -البياضة | O159: 2018-07-15 | P159: 154 | Q159: 2018-08-12 | R159: 158 | S159: 2019-06-08 | T159: 161 | Z159: =IF($V$2="","",SEARCH($V$2,$A159&""&#REF!&""&$D159&""&$F159&""&$I159&""&$J159&""&$K159)) ->  | AA159: =IF($X$2="","",SEARCH($X$2,$A159&" "&#REF!&" "&$D159&" "&$F159&" "&$I159&" "&$J159&" "&$K159&" "&$O159&" "&$Q159&" "&$S159&" "&$U159&" "&$V159&" "&$W159&" "&$X159)) -> 
A160: 155 | B160: =IF(C160="","",MAX($B$5:B159)+1) -> 155 | C160: مراد 155 | D160: فريدة155 | E160: أولى | F160: جذع مشترك علوم وتكنولوجيا | G160: 3 | H160: 1ع3 | I160: 12/2/2154 | J160: الوادي | K160: ذ | L160: محمد علي155 | M160: حي الإزدهار - البياضة | O160: 2018-07-16 | P160: 155 | Q160: 2018-08-13 | R160: 159 | S160: 2019-06-09 | T160: 162 | Z160: =IF($V$2="","",SEARCH($V$2,$A160&""&#REF!&""&$D160&""&$F160&""&$I160&""&$J160&""&$K160)) ->  | AA160: =IF($X$2="","",SEARCH($X$2,$A160&" "&#REF!&" "&$D160&" "&$F160&" "&$I160&" "&$J160&" "&$K160&" "&$O160&" "&$Q160&" "&$S160&" "&$U160&" "&$V160&" "&$W160&" "&$X160)) ->  | AB160: 61
A161: 156 | B161: =IF(C161="","",MAX($B$5:B160)+1) -> 156 | C161: مراد 156 | D161: فريدة156 | E161: أولى | F161: جذع مشترك علوم وتكنولوجيا | G161: 3 | H161: 1ع3 | I161: 12/2/2155 | J161: البياضة | K161: ذ | L161: محمد علي156 | M161: حي السلام -البياضة | O161: 2018-07-17 | P161: 156 | Q161: 2018-08-14 | R161: 160 | S161: 2019-06-10 | T161: 163 | Z161: =IF($V$2="","",SEARCH($V$2,$A161&""&#REF!&""&$D161&""&$F161&""&$I161&""&$J161&""&$K161)) ->  | AA161: =IF($X$2="","",SEARCH($X$2,$A161&" "&#REF!&" "&$D161&" "&$F161&" "&$I161&" "&$J161&" "&$K161&" "&$O161&" "&$Q161&" "&$S161&" "&$U161&" "&$V161&" "&$W161&" "&$X161)) -> 
A162: 157 | B162: =IF(C162="","",MAX($B$5:B161)+1) -> 157 | C162: مراد 157 | D162: فريدة157 | E162: أولى | F162: جذع مشترك علوم وتكنولوجيا | G162: 3 | H162: 1ع3 | I162: 12/2/2156 | J162: البياضة | K162: ذ | L162: محمد علي157 | M162: حي الإزدهار - البياضة | O162: 2018-07-18 | P162: 157 | Q162: 2018-08-15 | R162: 161 | S162: 2019-06-11 | T162: 164 | Z162: =IF($V$2="","",SEARCH($V$2,$A162&""&#REF!&""&$D162&""&$F162&""&$I162&""&$J162&""&$K162)) ->  | AA162: =IF($X$2="","",SEARCH($X$2,$A162&" "&#REF!&" "&$D162&" "&$F162&" "&$I162&" "&$J162&" "&$K162&" "&$O162&" "&$Q162&" "&$S162&" "&$U162&" "&$V162&" "&$W162&" "&$X162)) -> 
A163: 158 | B163: =IF(C163="","",MAX($B$5:B162)+1) -> 158 | C163: مراد 158 | D163: فريدة158 | E163: أولى | F163: جذع مشترك علوم وتكنولوجيا | G163: 3 | H163: 1ع3 | I163: 12/2/2157 | J163: البياضة | K163: ذ | L163: محمد علي158 | M163: حي السلام -البياضة | O163: 2018-07-19 | P163: 158 | Q163: 2018-08-16 | R163: 162 | S163: 2019-06-12 | T163: 165 | Z163: =IF($V$2="","",SEARCH($V$2,$A163&""&#REF!&""&$D163&""&$F163&""&$I163&""&$J163&""&$K163)) ->  | AA163: =IF($X$2="","",SEARCH($X$2,$A163&" "&#REF!&" "&$D163&" "&$F163&" "&$I163&" "&$J163&" "&$K163&" "&$O163&" "&$Q163&" "&$S163&" "&$U163&" "&$V163&" "&$W163&" "&$X163)) -> 
A164: 159 | B164: =IF(C164="","",MAX($B$5:B163)+1) -> 159 | C164: مراد 159 | D164: فريدة159 | E164: أولى | F164: جذع مشترك علوم وتكنولوجيا | G164: 3 | H164: 1ع3 | I164: 12/2/2158 | J164: البياضة | K164: ذ | L164: محمد علي159 | M164: حي الإزدهار - البياضة | O164: 2018-07-20 | P164: 159 | Q164: 2018-08-17 | R164: 163 | S164: 2019-06-13 | T164: 166 | Z164: =IF($V$2="","",SEARCH($V$2,$A164&""&#REF!&""&$D164&""&$F164&""&$I164&""&$J164&""&$K164)) ->  | AA164: =IF($X$2="","",SEARCH($X$2,$A164&" "&#REF!&" "&$D164&" "&$F164&" "&$I164&" "&$J164&" "&$K164&" "&$O164&" "&$Q164&" "&$S164&" "&$U164&" "&$V164&" "&$W164&" "&$X164)) -> 
A165: 160 | B165: =IF(C165="","",MAX($B$5:B164)+1) -> 160 | C165: مراد 160 | D165: فريدة160 | E165: أولى | F165: جذع مشترك علوم وتكنولوجيا | G165: 3 | H165: 1ع3 | I165: 12/2/2159 | J165: البياضة | K165: ذ | L165: محمد علي160 | M165: حي السلام -البياضة | O165: 2018-07-21 | P165: 160 | Q165: 2018-08-18 | R165: 164 | S165: 2019-06-14 | T165: 167 | Z165: =IF($V$2="","",SEARCH($V$2,$A165&""&#REF!&""&$D165&""&$F165&""&$I165&""&$J165&""&$K165)) ->  | AA165: =IF($X$2="","",SEARCH($X$2,$A165&" "&#REF!&" "&$D165&" "&$F165&" "&$I165&" "&$J165&" "&$K165&" "&$O165&" "&$Q165&" "&$S165&" "&$U165&" "&$V165&" "&$W165&" "&$X165)) -> 
A166: 161 | B166: =IF(C166="","",MAX($B$5:B165)+1) -> 161 | C166: مراد 161 | D166: فريدة161 | E166: أولى | F166: جذع مشترك علوم وتكنولوجيا | G166: 3 | H166: 1ع3 | I166: 12/2/2160 | J166: البياضة | K166: ذ | L166: محمد علي161 | M166: حي الإزدهار - البياضة | O166: 2018-07-22 | P166: 161 | Q166: 2018-08-19 | R166: 165 | S166: 2019-06-15 | T166: 168 | Z166: =IF($V$2="","",SEARCH($V$2,$A166&""&#REF!&""&$D166&""&$F166&""&$I166&""&$J166&""&$K166)) ->  | AA166: =IF($X$2="","",SEARCH($X$2,$A166&" "&#REF!&" "&$D166&" "&$F166&" "&$I166&" "&$J166&" "&$K166&" "&$O166&" "&$Q166&" "&$S166&" "&$U166&" "&$V166&" "&$W166&" "&$X166)) -> 
A167: 162 | B167: =IF(C167="","",MAX($B$5:B166)+1) -> 162 | C167: مراد 162 | D167: فريدة162 | E167: أولى | F167: جذع مشترك علوم وتكنولوجيا | G167: 3 | H167: 1ع3 | I167: 12/2/2161 | J167: البياضة | K167: ذ | L167: محمد علي162 | M167: حي السلام -البياضة | O167: 2018-07-23 | P167: 162 | Q167: 2018-08-20 | R167: 166 | S167: 2019-06-16 | T167: 169 | Z167: =IF($V$2="","",SEARCH($V$2,$A167&""&#REF!&""&$D167&""&$F167&""&$I167&""&$J167&""&$K167)) ->  | AA167: =IF($X$2="","",SEARCH($X$2,$A167&" "&#REF!&" "&$D167&" "&$F167&" "&$I167&" "&$J167&" "&$K167&" "&$O167&" "&$Q167&" "&$S167&" "&$U167&" "&$V167&" "&$W167&" "&$X167)) -> 
A168: 163 | B168: =IF(C168="","",MAX($B$5:B167)+1) -> 163 | C168: مراد 163 | D168: فريدة163 | E168: أولى | F168: جذع مشترك علوم وتكنولوجيا | G168: 3 | H168: 1ع3 | I168: 12/2/2162 | J168: البياضة | K168: ذ | L168: محمد علي163 | M168: حي الإزدهار - البياضة | O168: 2018-07-24 | P168: 163 | Q168: 2018-08-21 | R168: 167 | S168: 2019-06-17 | T168: 170 | Z168: =IF($V$2="","",SEARCH($V$2,$A168&""&#REF!&""&$D168&""&$F168&""&$I168&""&$J168&""&$K168)) ->  | AA168: =IF($X$2="","",SEARCH($X$2,$A168&" "&#REF!&" "&$D168&" "&$F168&" "&$I168&" "&$J168&" "&$K168&" "&$O168&" "&$Q168&" "&$S168&" "&$U168&" "&$V168&" "&$W168&" "&$X168)) -> 
A169: 164 | B169: =IF(C169="","",MAX($B$5:B168)+1) -> 164 | C169: مراد 164 | D169: فريدة164 | E169: أولى | F169: جذع مشترك علوم وتكنولوجيا | G169: 3 | H169: 1ع3 | I169: 12/2/2163 | J169: البياضة | K169: ذ | L169: محمد علي164 | M169: حي السلام -البياضة | O169: 2018-07-25 | P169: 164 | Q169: 2018-08-22 | R169: 168 | S169: 2019-06-18 | T169: 171 | Z169: =IF($V$2="","",SEARCH($V$2,$A169&""&#REF!&""&$D169&""&$F169&""&$I169&""&$J169&""&$K169)) ->  | AA169: =IF($X$2="","",SEARCH($X$2,$A169&" "&#REF!&" "&$D169&" "&$F169&" "&$I169&" "&$J169&" "&$K169&" "&$O169&" "&$Q169&" "&$S169&" "&$U169&" "&$V169&" "&$W169&" "&$X169)) -> 
A170: 165 | B170: =IF(C170="","",MAX($B$5:B169)+1) -> 165 | C170: مراد 165 | D170: فريدة165 | E170: أولى | F170: جذع مشترك علوم وتكنولوجيا | G170: 3 | H170: 1ع3 | I170: 12/2/2164 | J170: البياضة | K170: ذ | L170: محمد علي165 | M170: حي الإزدهار - البياضة | O170: 2018-07-26 | P170: 165 | Q170: 2018-08-23 | R170: 169 | S170: 2019-06-19 | T170: 172 | Z170: =IF($V$2="","",SEARCH($V$2,$A170&""&#REF!&""&$D170&""&$F170&""&$I170&""&$J170&""&$K170)) ->  | AA170: =IF($X$2="","",SEARCH($X$2,$A170&" "&#REF!&" "&$D170&" "&$F170&" "&$I170&" "&$J170&" "&$K170&" "&$O170&" "&$Q170&" "&$S170&" "&$U170&" "&$V170&" "&$W170&" "&$X170)) -> 
A171: 166 | B171: =IF(C171="","",MAX($B$5:B170)+1) -> 166 | C171: مراد 166 | D171: فريدة166 | E171: أولى | F171: جذع مشترك علوم وتكنولوجيا | G171: 3 | H171: 1ع3 | I171: 12/2/2165 | J171: البياضة | K171: ذ | L171: محمد علي166 | M171: حي السلام -البياضة | O171: 2018-07-27 | P171: 166 | Q171: 2018-08-24 | R171: 170 | S171: 2019-06-20 | T171: 173 | Z171: =IF($V$2="","",SEARCH($V$2,$A171&""&#REF!&""&$D171&""&$F171&""&$I171&""&$J171&""&$K171)) ->  | AA171: =IF($X$2="","",SEARCH($X$2,$A171&" "&#REF!&" "&$D171&" "&$F171&" "&$I171&" "&$J171&" "&$K171&" "&$O171&" "&$Q171&" "&$S171&" "&$U171&" "&$V171&" "&$W171&" "&$X171)) -> 
A172: 167 | B172: =IF(C172="","",MAX($B$5:B171)+1) -> 167 | C172: مراد 167 | D172: فريدة167 | E172: أولى | F172: جذع مشترك علوم وتكنولوجيا | G172: 3 | H172: 1ع3 | I172: 12/2/2166 | J172: البياضة | K172: ذ | L172: محمد علي167 | M172: حي الإزدهار - البياضة | O172: 2018-07-28 | P172: 167 | Q172: 2018-08-25 | R172: 171 | S172: 2019-06-21 | T172: 174 | Z172: =IF($V$2="","",SEARCH($V$2,$A172&""&#REF!&""&$D172&""&$F172&""&$I172&""&$J172&""&$K172)) ->  | AA172: =IF($X$2="","",SEARCH($X$2,$A172&" "&#REF!&" "&$D172&" "&$F172&" "&$I172&" "&$J172&" "&$K172&" "&$O172&" "&$Q172&" "&$S172&" "&$U172&" "&$V172&" "&$W172&" "&$X172)) -> 
A173: 168 | B173: =IF(C173="","",MAX($B$5:B172)+1) -> 168 | C173: مراد 168 | D173: فريدة168 | E173: أولى | F173: جذع مشترك علوم وتكنولوجيا | G173: 3 | H173: 1ع3 | I173: 12/2/2167 | J173: البياضة | K173: ذ | L173: محمد علي168 | M173: حي السلام -البياضة | O173: 2018-07-29 | P173: 168 | Q173: 2018-08-26 | R173: 172 | S173: 2019-06-22 | T173: 175 | Z173: =IF($V$2="","",SEARCH($V$2,$A173&""&#REF!&""&$D173&""&$F173&""&$I173&""&$J173&""&$K173)) ->  | AA173: =IF($X$2="","",SEARCH($X$2,$A173&" "&#REF!&" "&$D173&" "&$F173&" "&$I173&" "&$J173&" "&$K173&" "&$O173&" "&$Q173&" "&$S173&" "&$U173&" "&$V173&" "&$W173&" "&$X173)) -> 
A174: 169 | B174: =IF(C174="","",MAX($B$5:B173)+1) -> 169 | C174: مراد 169 | D174: فريدة169 | E174: أولى | F174: جذع مشترك علوم وتكنولوجيا | G174: 3 | H174: 1ع3 | I174: 12/2/2168 | J174: البياضة | K174: ذ | L174: محمد علي169 | M174: حي الإزدهار - البياضة | O174: 2018-07-30 | P174: 169 | Q174: 2018-08-27 | R174: 173 | S174: 2019-06-23 | T174: 176 | Z174: =IF($V$2="","",SEARCH($V$2,$A174&""&#REF!&""&$D174&""&$F174&""&$I174&""&$J174&""&$K174)) ->  | AA174: =IF($X$2="","",SEARCH($X$2,$A174&" "&#REF!&" "&$D174&" "&$F174&" "&$I174&" "&$J174&" "&$K174&" "&$O174&" "&$Q174&" "&$S174&" "&$U174&" "&$V174&" "&$W174&" "&$X174)) -> 
A175: 170 | B175: =IF(C175="","",MAX($B$5:B174)+1) -> 170 | C175: مراد 170 | D175: فريدة170 | E175: أولى | F175: جذع مشترك علوم وتكنولوجيا | G175: 3 | H175: 1ع3 | I175: 12/2/2169 | J175: البياضة | K175: ذ | L175: محمد علي170 | M175: حي السلام -البياضة | O175: 2018-07-31 | P175: 170 | Q175: 2018-08-28 | R175: 174 | S175: 2019-06-24 | T175: 177 | Z175: =IF($V$2="","",SEARCH($V$2,$A175&""&#REF!&""&$D175&""&$F175&""&$I175&""&$J175&""&$K175)) ->  | AA175: =IF($X$2="","",SEARCH($X$2,$A175&" "&#REF!&" "&$D175&" "&$F175&" "&$I175&" "&$J175&" "&$K175&" "&$O175&" "&$Q175&" "&$S175&" "&$U175&" "&$V175&" "&$W175&" "&$X175)) -> 
A176: 171 | B176: =IF(C176="","",MAX($B$5:B175)+1) -> 171 | C176: مراد 171 | D176: فريدة171 | E176: أولى | F176: جذع مشترك علوم وتكنولوجيا | G176: 3 | H176: 1ع3 | I176: 12/2/2170 | J176: البياضة | K176: ذ | L176: محمد علي171 | M176: حي الإزدهار - البياضة | O176: 2018-08-01 | P176: 171 | Q176: 2018-08-29 | R176: 175 | S176: 2019-06-25 | T176: 178 | Z176: =IF($V$2="","",SEARCH($V$2,$A176&""&#REF!&""&$D176&""&$F176&""&$I176&""&$J176&""&$K176)) ->  | AA176: =IF($X$2="","",SEARCH($X$2,$A176&" "&#REF!&" "&$D176&" "&$F176&" "&$I176&" "&$J176&" "&$K176&" "&$O176&" "&$Q176&" "&$S176&" "&$U176&" "&$V176&" "&$W176&" "&$X176)) -> 
A177: 172 | B177: =IF(C177="","",MAX($B$5:B176)+1) -> 172 | C177: مراد 172 | D177: فريدة172 | E177: أولى | F177: جذع مشترك علوم وتكنولوجيا | G177: 3 | H177: 1ع3 | I177: 12/2/2171 | J177: البياضة | K177: ذ | L177: محمد علي172 | M177: حي السلام -البياضة | O177: 2018-08-02 | P177: 172 | Q177: 2018-08-30 | R177: 176 | S177: 2019-06-26 | T177: 179 | Z177: =IF($V$2="","",SEARCH($V$2,$A177&""&#REF!&""&$D177&""&$F177&""&$I177&""&$J177&""&$K177)) ->  | AA177: =IF($X$2="","",SEARCH($X$2,$A177&" "&#REF!&" "&$D177&" "&$F177&" "&$I177&" "&$J177&" "&$K177&" "&$O177&" "&$Q177&" "&$S177&" "&$U177&" "&$V177&" "&$W177&" "&$X177)) -> 
A178: 173 | B178: =IF(C178="","",MAX($B$5:B177)+1) -> 173 | C178: مراد 173 | D178: فريدة173 | E178: أولى | F178: جذع مشترك علوم وتكنولوجيا | G178: 3 | H178: 1ع3 | I178: 12/2/2172 | J178: البياضة | K178: ذ | L178: محمد علي173 | M178: حي الإزدهار - البياضة | O178: 2018-08-03 | P178: 173 | Q178: 2018-08-31 | R178: 177 | S178: 2019-06-27 | T178: 180 | Z178: =IF($V$2="","",SEARCH($V$2,$A178&""&#REF!&""&$D178&""&$F178&""&$I178&""&$J178&""&$K178)) ->  | AA178: =IF($X$2="","",SEARCH($X$2,$A178&" "&#REF!&" "&$D178&" "&$F178&" "&$I178&" "&$J178&" "&$K178&" "&$O178&" "&$Q178&" "&$S178&" "&$U178&" "&$V178&" "&$W178&" "&$X178)) -> 
A179: 174 | B179: =IF(C179="","",MAX($B$5:B178)+1) -> 174 | C179: مراد 174 | D179: فريدة174 | E179: أولى | F179: جذع مشترك علوم وتكنولوجيا | G179: 4 | H179: 1ع4 | I179: 12/2/2173 | J179: الوادي | K179: ذ | L179: محمد علي174 | M179: حي السلام -البياضة | O179: 2018-08-04 | P179: 174 | Q179: 2018-09-01 | R179: 178 | S179: 2019-06-28 | T179: 181 | Z179: =IF($V$2="","",SEARCH($V$2,$A179&""&#REF!&""&$D179&""&$F179&""&$I179&""&$J179&""&$K179)) ->  | AA179: =IF($X$2="","",SEARCH($X$2,$A179&" "&#REF!&" "&$D179&" "&$F179&" "&$I179&" "&$J179&" "&$K179&" "&$O179&" "&$Q179&" "&$S179&" "&$U179&" "&$V179&" "&$W179&" "&$X179)) ->  | AB179: 61
A180: 175 | B180: =IF(C180="","",MAX($B$5:B179)+1) -> 175 | C180: مراد 175 | D180: فريدة175 | E180: أولى | F180: جذع مشترك علوم وتكنولوجيا | G180: 4 | H180: 1ع4 | I180: 12/2/2174 | J180: البياضة | K180: ذ | L180: محمد علي175 | M180: حي الإزدهار - البياضة | O180: 2018-08-05 | P180: 175 | Q180: 2018-09-02 | R180: 179 | S180: 2019-06-29 | T180: 182 | Z180: =IF($V$2="","",SEARCH($V$2,$A180&""&#REF!&""&$D180&""&$F180&""&$I180&""&$J180&""&$K180)) ->  | AA180: =IF($X$2="","",SEARCH($X$2,$A180&" "&#REF!&" "&$D180&" "&$F180&" "&$I180&" "&$J180&" "&$K180&" "&$O180&" "&$Q180&" "&$S180&" "&$U180&" "&$V180&" "&$W180&" "&$X180)) -> 
A181: 176 | B181: =IF(C181="","",MAX($B$5:B180)+1) -> 176 | C181: مراد 176 | D181: فريدة176 | E181: أولى | F181: جذع مشترك علوم وتكنولوجيا | G181: 4 | H181: 1ع4 | I181: 12/2/2175 | J181: البياضة | K181: ذ | L181: محمد علي176 | M181: حي السلام -البياضة | O181: 2018-08-06 | P181: 176 | Q181: 2018-09-03 | R181: 180 | S181: 2019-06-30 | T181: 183 | Z181: =IF($V$2="","",SEARCH($V$2,$A181&""&#REF!&""&$D181&""&$F181&""&$I181&""&$J181&""&$K181)) ->  | AA181: =IF($X$2="","",SEARCH($X$2,$A181&" "&#REF!&" "&$D181&" "&$F181&" "&$I181&" "&$J181&" "&$K181&" "&$O181&" "&$Q181&" "&$S181&" "&$U181&" "&$V181&" "&$W181&" "&$X181)) -> 
A182: 177 | B182: =IF(C182="","",MAX($B$5:B181)+1) -> 177 | C182: مراد 177 | D182: فريدة177 | E182: أولى | F182: جذع مشترك علوم وتكنولوجيا | G182: 4 | H182: 1ع4 | I182: 12/2/2176 | J182: البياضة | K182: ذ | L182: محمد علي177 | M182: حي الإزدهار - البياضة | O182: 2018-08-07 | P182: 177 | Q182: 2018-09-04 | R182: 181 | S182: 2019-07-01 | T182: 184 | Z182: =IF($V$2="","",SEARCH($V$2,$A182&""&#REF!&""&$D182&""&$F182&""&$I182&""&$J182&""&$K182)) ->  | AA182: =IF($X$2="","",SEARCH($X$2,$A182&" "&#REF!&" "&$D182&" "&$F182&" "&$I182&" "&$J182&" "&$K182&" "&$O182&" "&$Q182&" "&$S182&" "&$U182&" "&$V182&" "&$W182&" "&$X182)) -> 
A183: 178 | B183: =IF(C183="","",MAX($B$5:B182)+1) -> 178 | C183: مراد 178 | D183: فريدة178 | E183: أولى | F183: جذع مشترك علوم وتكنولوجيا | G183: 4 | H183: 1ع4 | I183: 12/2/2177 | J183: البياضة | K183: ذ | L183: محمد علي178 | M183: حي السلام -البياضة | O183: 2018-08-08 | P183: 178 | Q183: 2018-09-05 | R183: 182 | S183: 2019-07-02 | T183: 185 | Z183: =IF($V$2="","",SEARCH($V$2,$A183&""&#REF!&""&$D183&""&$F183&""&$I183&""&$J183&""&$K183)) ->  | AA183: =IF($X$2="","",SEARCH($X$2,$A183&" "&#REF!&" "&$D183&" "&$F183&" "&$I183&" "&$J183&" "&$K183&" "&$O183&" "&$Q183&" "&$S183&" "&$U183&" "&$V183&" "&$W183&" "&$X183)) -> 
A184: 179 | B184: =IF(C184="","",MAX($B$5:B183)+1) -> 179 | C184: مراد 179 | D184: فريدة179 | E184: أولى | F184: جذع مشترك علوم وتكنولوجيا | G184: 4 | H184: 1ع4 | I184: 12/2/2178 | J184: تقرت | K184: ذ | L184: محمد علي179 | M184: حي الإزدهار - البياضة | O184: 2018-08-09 | P184: 179 | Q184: 2018-09-06 | R184: 183 | S184: 2019-07-03 | T184: 186 | Z184: =IF($V$2="","",SEARCH($V$2,$A184&""&#REF!&""&$D184&""&$F184&""&$I184&""&$J184&""&$K184)) ->  | AA184: =IF($X$2="","",SEARCH($X$2,$A184&" "&#REF!&" "&$D184&" "&$F184&" "&$I184&" "&$J184&" "&$K184&" "&$O184&" "&$Q184&" "&$S184&" "&$U184&" "&$V184&" "&$W184&" "&$X184)) -> 
A185: 180 | B185: =IF(C185="","",MAX($B$5:B184)+1) -> 180 | C185: مراد 180 | D185: فريدة180 | E185: أولى | F185: جذع مشترك علوم وتكنولوجيا | G185: 4 | H185: 1ع4 | I185: 12/2/2179 | J185: الوادي | K185: ذ | L185: محمد علي180 | M185: حي السلام -البياضة | O185: 2018-08-10 | P185: 180 | Q185: 2018-09-07 | R185: 184 | S185: 2019-07-04 | T185: 187 | Z185: =IF($V$2="","",SEARCH($V$2,$A185&""&#REF!&""&$D185&""&$F185&""&$I185&""&$J185&""&$K185)) ->  | AA185: =IF($X$2="","",SEARCH($X$2,$A185&" "&#REF!&" "&$D185&" "&$F185&" "&$I185&" "&$J185&" "&$K185&" "&$O185&" "&$Q185&" "&$S185&" "&$U185&" "&$V185&" "&$W185&" "&$X185)) ->  | AB185: 61
A186: 181 | B186: =IF(C186="","",MAX($B$5:B185)+1) -> 181 | C186: مراد 181 | D186: فريدة181 | E186: أولى | F186: جذع مشترك علوم وتكنولوجيا | G186: 4 | H186: 1ع4 | I186: 12/2/2180 | J186: البياضة | K186: ذ | L186: محمد علي181 | M186: حي الإزدهار - البياضة | O186: 2018-08-11 | P186: 181 | Q186: 2018-09-08 | R186: 185 | S186: 2019-07-05 | T186: 188 | Z186: =IF($V$2="","",SEARCH($V$2,$A186&""&#REF!&""&$D186&""&$F186&""&$I186&""&$J186&""&$K186)) ->  | AA186: =IF($X$2="","",SEARCH($X$2,$A186&" "&#REF!&" "&$D186&" "&$F186&" "&$I186&" "&$J186&" "&$K186&" "&$O186&" "&$Q186&" "&$S186&" "&$U186&" "&$V186&" "&$W186&" "&$X186)) -> 
A187: 182 | B187: =IF(C187="","",MAX($B$5:B186)+1) -> 182 | C187: مراد 182 | D187: فريدة182 | E187: أولى | F187: جذع مشترك علوم وتكنولوجيا | G187: 4 | H187: 1ع4 | I187: 12/2/2181 | J187: البياضة | K187: ذ | L187: محمد علي182 | M187: حي السلام -البياضة | O187: 2018-08-12 | P187: 182 | Q187: 2018-09-09 | R187: 186 | S187: 2019-07-06 | T187: 189 | Z187: =IF($V$2="","",SEARCH($V$2,$A187&""&#REF!&""&$D187&""&$F187&""&$I187&""&$J187&""&$K187)) ->  | AA187: =IF($X$2="","",SEARCH($X$2,$A187&" "&#REF!&" "&$D187&" "&$F187&" "&$I187&" "&$J187&" "&$K187&" "&$O187&" "&$Q187&" "&$S187&" "&$U187&" "&$V187&" "&$W187&" "&$X187)) -> 
A188: 183 | B188: =IF(C188="","",MAX($B$5:B187)+1) -> 183 | C188: مراد 183 | D188: فريدة183 | E188: أولى | F188: جذع مشترك علوم وتكنولوجيا | G188: 4 | H188: 1ع4 | I188: 12/2/2182 | J188: البياضة | K188: ذ | L188: محمد علي183 | M188: حي الإزدهار - البياضة | O188: 2018-08-13 | P188: 183 | Q188: 2018-09-10 | R188: 187 | S188: 2019-07-07 | T188: 190 | Z188: =IF($V$2="","",SEARCH($V$2,$A188&""&#REF!&""&$D188&""&$F188&""&$I188&""&$J188&""&$K188)) ->  | AA188: =IF($X$2="","",SEARCH($X$2,$A188&" "&#REF!&" "&$D188&" "&$F188&" "&$I188&" "&$J188&" "&$K188&" "&$O188&" "&$Q188&" "&$S188&" "&$U188&" "&$V188&" "&$W188&" "&$X188)) -> 
A189: 184 | B189: =IF(C189="","",MAX($B$5:B188)+1) -> 184 | C189: مراد 184 | D189: فريدة184 | E189: أولى | F189: جذع مشترك علوم وتكنولوجيا | G189: 4 | H189: 1ع4 | I189: 12/2/2183 | J189: البياضة | K189: ذ | L189: محمد علي184 | M189: حي السلام -البياضة | O189: 2018-08-14 | P189: 184 | Q189: 2018-09-11 | R189: 188 | S189: 2019-07-08 | T189: 191 | Z189: =IF($V$2="","",SEARCH($V$2,$A189&""&#REF!&""&$D189&""&$F189&""&$I189&""&$J189&""&$K189)) ->  | AA189: =IF($X$2="","",SEARCH($X$2,$A189&" "&#REF!&" "&$D189&" "&$F189&" "&$I189&" "&$J189&" "&$K189&" "&$O189&" "&$Q189&" "&$S189&" "&$U189&" "&$V189&" "&$W189&" "&$X189)) -> 
A190: 185 | B190: =IF(C190="","",MAX($B$5:B189)+1) -> 185 | C190: مراد 185 | D190: فريدة185 | E190: أولى | F190: جذع مشترك علوم وتكنولوجيا | G190: 4 | H190: 1ع4 | I190: 12/2/2184 | J190: الوادي | K190: ذ | L190: محمد علي185 | M190: حي الإزدهار - البياضة | O190: 2018-08-15 | P190: 185 | Q190: 2018-09-12 | R190: 189 | S190: 2019-07-09 | T190: 192 | Z190: =IF($V$2="","",SEARCH($V$2,$A190&""&#REF!&""&$D190&""&$F190&""&$I190&""&$J190&""&$K190)) ->  | AA190: =IF($X$2="","",SEARCH($X$2,$A190&" "&#REF!&" "&$D190&" "&$F190&" "&$I190&" "&$J190&" "&$K190&" "&$O190&" "&$Q190&" "&$S190&" "&$U190&" "&$V190&" "&$W190&" "&$X190)) ->  | AB190: 61
A191: 186 | B191: =IF(C191="","",MAX($B$5:B190)+1) -> 186 | C191: مراد 186 | D191: فريدة186 | E191: أولى | F191: جذع مشترك علوم وتكنولوجيا | G191: 4 | H191: 1ع4 | I191: 12/2/2185 | J191: الوادي | K191: ذ | L191: محمد علي186 | M191: حي السلام -البياضة | O191: 2018-08-16 | P191: 186 | Q191: 2018-09-13 | R191: 190 | S191: 2019-07-10 | T191: 193 | Z191: =IF($V$2="","",SEARCH($V$2,$A191&""&#REF!&""&$D191&""&$F191&""&$I191&""&$J191&""&$K191)) ->  | AA191: =IF($X$2="","",SEARCH($X$2,$A191&" "&#REF!&" "&$D191&" "&$F191&" "&$I191&" "&$J191&" "&$K191&" "&$O191&" "&$Q191&" "&$S191&" "&$U191&" "&$V191&" "&$W191&" "&$X191)) ->  | AB191: 61
A192: 187 | B192: =IF(C192="","",MAX($B$5:B191)+1) -> 187 | C192: مراد 187 | D192: فريدة187 | E192: أولى | F192: جذع مشترك علوم وتكنولوجيا | G192: 4 | H192: 1ع4 | I192: 12/2/2186 | J192: الوادي | K192: ذ | L192: محمد علي187 | M192: حي الإزدهار - البياضة | O192: 2018-08-17 | P192: 187 | Q192: 2018-09-14 | R192: 191 | S192: 2019-07-11 | T192: 194 | Z192: =IF($V$2="","",SEARCH($V$2,$A192&""&#REF!&""&$D192&""&$F192&""&$I192&""&$J192&""&$K192)) ->  | AA192: =IF($X$2="","",SEARCH($X$2,$A192&" "&#REF!&" "&$D192&" "&$F192&" "&$I192&" "&$J192&" "&$K192&" "&$O192&" "&$Q192&" "&$S192&" "&$U192&" "&$V192&" "&$W192&" "&$X192)) ->  | AB192: 61
A193: 188 | B193: =IF(C193="","",MAX($B$5:B192)+1) -> 188 | C193: مراد 188 | D193: فريدة188 | E193: أولى | F193: جذع مشترك علوم وتكنولوجيا | G193: 4 | H193: 1ع4 | I193: 12/2/2187 | J193: البياضة | K193: ذ | L193: محمد علي188 | M193: حي السلام -البياضة | O193: 2018-08-18 | P193: 188 | Q193: 2018-09-15 | R193: 192 | S193: 2019-07-12 | T193: 195 | Z193: =IF($V$2="","",SEARCH($V$2,$A193&""&#REF!&""&$D193&""&$F193&""&$I193&""&$J193&""&$K193)) ->  | AA193: =IF($X$2="","",SEARCH($X$2,$A193&" "&#REF!&" "&$D193&" "&$F193&" "&$I193&" "&$J193&" "&$K193&" "&$O193&" "&$Q193&" "&$S193&" "&$U193&" "&$V193&" "&$W193&" "&$X193)) -> 
A194: 189 | B194: =IF(C194="","",MAX($B$5:B193)+1) -> 189 | C194: مراد 189 | D194: فريدة189 | E194: أولى | F194: جذع مشترك علوم وتكنولوجيا | G194: 4 | H194: 1ع4 | I194: 12/2/2188 | J194: البياضة | K194: ذ | L194: محمد علي189 | M194: حي الإزدهار - البياضة | O194: 2018-08-19 | P194: 189 | Q194: 2018-09-16 | R194: 193 | S194: 2019-07-13 | T194: 196 | Z194: =IF($V$2="","",SEARCH($V$2,$A194&""&#REF!&""&$D194&""&$F194&""&$I194&""&$J194&""&$K194)) ->  | AA194: =IF($X$2="","",SEARCH($X$2,$A194&" "&#REF!&" "&$D194&" "&$F194&" "&$I194&" "&$J194&" "&$K194&" "&$O194&" "&$Q194&" "&$S194&" "&$U194&" "&$V194&" "&$W194&" "&$X194)) -> 
A195: 190 | B195: =IF(C195="","",MAX($B$5:B194)+1) -> 190 | C195: مراد 190 | D195: فريدة190 | E195: أولى | F195: جذع مشترك علوم وتكنولوجيا | G195: 4 | H195: 1ع4 | I195: 12/2/2189 | J195: البياضة | K195: ذ | L195: محمد علي190 | M195: حي السلام -البياضة | O195: 2018-08-20 | P195: 190 | Q195: 2018-09-17 | R195: 194 | S195: 2019-07-14 | T195: 197 | Z195: =IF($V$2="","",SEARCH($V$2,$A195&""&#REF!&""&$D195&""&$F195&""&$I195&""&$J195&""&$K195)) ->  | AA195: =IF($X$2="","",SEARCH($X$2,$A195&" "&#REF!&" "&$D195&" "&$F195&" "&$I195&" "&$J195&" "&$K195&" "&$O195&" "&$Q195&" "&$S195&" "&$U195&" "&$V195&" "&$W195&" "&$X195)) -> 
A196: 191 | B196: =IF(C196="","",MAX($B$5:B195)+1) -> 191 | C196: مراد 191 | D196: فريدة191 | E196: أولى | F196: جذع مشترك علوم وتكنولوجيا | G196: 4 | H196: 1ع4 | I196: 12/2/2190 | J196: البياضة | K196: ذ | L196: محمد علي191 | M196: حي الإزدهار - البياضة | O196: 2018-08-21 | P196: 191 | Q196: 2018-09-18 | R196: 195 | S196: 2019-07-15 | T196: 198 | Z196: =IF($V$2="","",SEARCH($V$2,$A196&""&#REF!&""&$D196&""&$F196&""&$I196&""&$J196&""&$K196)) ->  | AA196: =IF($X$2="","",SEARCH($X$2,$A196&" "&#REF!&" "&$D196&" "&$F196&" "&$I196&" "&$J196&" "&$K196&" "&$O196&" "&$Q196&" "&$S196&" "&$U196&" "&$V196&" "&$W196&" "&$X196)) -> 
A197: 192 | B197: =IF(C197="","",MAX($B$5:B196)+1) -> 192 | C197: مراد 192 | D197: فريدة192 | E197: أولى | F197: جذع مشترك علوم وتكنولوجيا | G197: 4 | H197: 1ع4 | I197: 12/2/2191 | J197: البياضة | K197: ذ | L197: محمد علي192 | M197: حي السلام -البياضة | O197: 2018-08-22 | P197: 192 | Q197: 2018-09-19 | R197: 196 | S197: 2019-07-16 | T197: 199 | Z197: =IF($V$2="","",SEARCH($V$2,$A197&""&#REF!&""&$D197&""&$F197&""&$I197&""&$J197&""&$K197)) ->  | AA197: =IF($X$2="","",SEARCH($X$2,$A197&" "&#REF!&" "&$D197&" "&$F197&" "&$I197&" "&$J197&" "&$K197&" "&$O197&" "&$Q197&" "&$S197&" "&$U197&" "&$V197&" "&$W197&" "&$X197)) -> 
A198: 193 | B198: =IF(C198="","",MAX($B$5:B197)+1) -> 193 | C198: مراد 193 | D198: فريدة193 | E198: أولى | F198: جذع مشترك علوم وتكنولوجيا | G198: 4 | H198: 1ع4 | I198: 12/2/2192 | J198: البياضة | K198: ذ | L198: محمد علي193 | M198: حي الإزدهار - البياضة | O198: 2018-08-23 | P198: 193 | Q198: 2018-09-20 | R198: 197 | S198: 2019-07-17 | T198: 200 | Z198: =IF($V$2="","",SEARCH($V$2,$A198&""&#REF!&""&$D198&""&$F198&""&$I198&""&$J198&""&$K198)) ->  | AA198: =IF($X$2="","",SEARCH($X$2,$A198&" "&#REF!&" "&$D198&" "&$F198&" "&$I198&" "&$J198&" "&$K198&" "&$O198&" "&$Q198&" "&$S198&" "&$U198&" "&$V198&" "&$W198&" "&$X198)) -> 
A199: 194 | B199: =IF(C199="","",MAX($B$5:B198)+1) -> 194 | C199: مراد 194 | D199: فريدة194 | E199: أولى | F199: جذع مشترك علوم وتكنولوجيا | G199: 4 | H199: 1ع4 | I199: 12/2/2193 | J199: الوادي | K199: ذ | L199: محمد علي194 | M199: حي السلام -البياضة | O199: 2018-08-24 | P199: 194 | Q199: 2018-09-21 | R199: 198 | S199: 2019-07-18 | T199: 201 | Z199: =IF($V$2="","",SEARCH($V$2,$A199&""&#REF!&""&$D199&""&$F199&""&$I199&""&$J199&""&$K199)) ->  | AA199: =IF($X$2="","",SEARCH($X$2,$A199&" "&#REF!&" "&$D199&" "&$F199&" "&$I199&" "&$J199&" "&$K199&" "&$O199&" "&$Q199&" "&$S199&" "&$U199&" "&$V199&" "&$W199&" "&$X199)) ->  | AB199: =IF($L$2="","",SEARCH($L$2,$A199&" "&$D199&" "&$E199&" "&$F199&" "&$G199&" "&$H199&" "&$I199&" "&$J199&" "&$K199&" "&$L199&" "&$N199&" "&$O199&" "&$P199&" "&$Q199&" "&$R199&" "&$S199&" "&$T199&" "&$U199&" "&$V199&" "&$W199&" "&$X199)) -> 61
A200: 195 | B200: =IF(C200="","",MAX($B$5:B199)+1) -> 195 | C200: مراد 195 | D200: فريدة195 | E200: أولى | F200: جذع مشترك علوم وتكنولوجيا | G200: 4 | H200: 1ع4 | I200: 12/2/2194 | J200: ورقلة | K200: ذ | L200: محمد علي195 | M200: حي الإزدهار - البياضة | O200: 2018-08-25 | P200: 195 | Q200: 2018-09-22 | R200: 199 | S200: 2019-07-19 | T200: 202 | Z200: =IF($V$2="","",SEARCH($V$2,$A200&""&#REF!&""&$D200&""&$F200&""&$I200&""&$J200&""&$K200)) ->  | AA200: =IF($X$2="","",SEARCH($X$2,$A200&" "&#REF!&" "&$D200&" "&$F200&" "&$I200&" "&$J200&" "&$K200&" "&$O200&" "&$Q200&" "&$S200&" "&$U200&" "&$V200&" "&$W200&" "&$X200)) -> 
A201: 196 | B201: =IF(C201="","",MAX($B$5:B200)+1) -> 196 | C201: مراد 196 | D201: فريدة196 | E201: أولى | F201: جذع مشترك علوم وتكنولوجيا | G201: 4 | H201: 1ع4 | I201: 12/2/2195 | J201: البياضة | K201: ذ | L201: محمد علي196 | M201: حي السلام -البياضة | O201: 2018-08-26 | P201: 196 | Q201: 2018-09-23 | R201: 200 | S201: 2019-07-20 | T201: 203 | Z201: =IF($V$2="","",SEARCH($V$2,$A201&""&#REF!&""&$D201&""&$F201&""&$I201&""&$J201&""&$K201)) ->  | AA201: =IF($X$2="","",SEARCH($X$2,$A201&" "&#REF!&" "&$D201&" "&$F201&" "&$I201&" "&$J201&" "&$K201&" "&$O201&" "&$Q201&" "&$S201&" "&$U201&" "&$V201&" "&$W201&" "&$X201)) -> 
... 404 more rows

Sheet Single
A1: الجمهورية الجزائرية الديمقراطية الشعبية
A2: وزارة التربية الوطنية
C4: مديرية التربية لولاية | F4: ثانوية الوادي الجديدة
F5: الجزائر
A7: عدد التلاميذ | C7: =COUNTA(B:B)-1 -> 15 | E7: التاريخ: | AN7: 1آف1
A8: القاعة | C8: 12 | D8: الشعبة | E8: القسم | F8: 3هط1 | AN8: 1آف1
AN9: 1آف2
A10: رقم | B10: رقم /ت | C10: الإسم | D10: اللقب | E10: تاريخ الميلاد | F10: القسم | AN10: 1ع1
A11: 529 | B11: 529 | C11: مراد 529 | D11: فريدة529 | E11: 2528-12-02 | F11: ثالثة تقني رياضي | AN11: 1ع2
A12: 530 | B12: 530 | C12: مراد 530 | D12: فريدة530 | E12: 2529-12-02 | F12: ثالثة تقني رياضي | AN12: 1ع3
A13: 531 | B13: 531 | C13: مراد 531 | D13: فريدة531 | E13: 2530-12-02 | F13: ثالثة تقني رياضي | AN13: 1ع4
A14: 532 | B14: 532 | C14: مراد 532 | D14: فريدة532 | E14: 2531-12-02 | F14: ثالثة تقني رياضي | AN14: 2آف1
A15: 533 | B15: 533 | C15: مراد 533 | D15: فريدة533 | E15: 2532-12-02 | F15: ثالثة تقني رياضي | AN15: 2ع1
A16: 534 | B16: 534 | C16: مراد 534 | D16: فريدة534 | E16: 2533-12-02 | F16: ثالثة تقني رياضي | AN16: 2ع2
A17: 535 | B17: 535 | C17: مراد 535 | D17: فريدة535 | E17: 2534-12-02 | F17: ثالثة تقني رياضي | AN17: 2ع3
A18: 536 | B18: 536 | C18: مراد 536 | D18: فريدة536 | E18: 2535-12-02 | F18: ثالثة تقني رياضي | AN18: 2تق1
A19: 537 | B19: 537 | C19: مراد 537 | D19: فريدة537 | E19: 2536-12-02 | F19: ثالثة تقني رياضي | AN19: 2ريا1
A20: 538 | B20: 538 | C20: مراد 538 | D20: فريدة538 | E20: 2537-12-02 | F20: ثالثة تقني رياضي | AN20: 2هط1
A21: 539 | B21: 539 | C21: مراد 539 | D21: فريدة539 | E21: 2538-12-02 | F21: ثالثة تقني رياضي | AN21: 3آف1
A22: 540 | B22: 540 | C22: مراد 540 | D22: فريدة540 | E22: 2539-12-02 | F22: ثالثة تقني رياضي | AN22: 3ع1
A23: 541 | B23: 541 | C23: مراد 541 | D23: فريدة541 | E23: 2540-12-02 | F23: ثالثة تقني رياضي | AN23: 3ع2
A24: 542 | B24: 542 | C24: مراد 542 | D24: فريدة542 | E24: 2541-12-02 | F24: ثالثة تقني رياضي | AN24: 3تق1
A25: 543 | B25: 543 | C25: مراد 543 | D25: فريدة543 | E25: 2542-12-02 | F25: ثالثة تقني رياضي | AN25: 3ريا1
AN26: 3هط1
E27: المدير | F27: 21/7/2018

Sheet الإشعار الأول
A1: الجمهورية الجزائرية الديمقراطية الشعبية
A2: وزارة التربية الوطنية
A3: =الواجهة!D3 -> مديريـة التربيـة لولاية | H3: =الواجهة!D4 -> ثانويـــة الوادي | J3: =الواجهة!D5 -> الوادي
M4: 16
G5: السيـــــــــــــد : | H5: =IFERROR(VLOOKUP($M4,school1,12,FALSE),"") -> محمد علي16
G6: العنـــــــــــــوان: | H6: =IFERROR(VLOOKUP($M4,school1,13,FALSE),"") -> حي السلام -البياضة
A7: الرقــــــــم | B7: =IFERROR(VLOOKUP($M4,school1,16,FALSE),"") -> 16 | C7: =الواجهة!D6 -> 2018/2017/ | G7: ولي التلميذ: | H7: =IFERROR(VLOOKUP($M4,school2,3,FALSE)&" "&VLOOKUP($M4,school2,4,FALSE),"") -> مراد 16 فريدة16
G8: من قســــــــم: | H8: =IFERROR(VLOOKUP($M4,school2,5,FALSE)&" "&(VLOOKUP($M4,school2,6,FALSE)&" "&(VLOOKUP($M4,school2,7,FALSE))),"") -> أولى جدع مشترك آداب 1 | K8: =IFERROR(VLOOKUP($M4,school2,8,FALSE),"") -> 1آف1
C11: الإشعار الأول بالغياب
C14: المرجع / الفصل الثالث من القرار رقم 778 المتعلق بنظام الجماعة التربوية
C16: بمقتضى القرار الوزاري رقم: 833 المؤرخ في 1991.11.13 والذي يهدف إلى ضبط الكيفيات
C17: والإجراءات المتعلقة بمتابعة مواظبة التلاميذ في المؤسسات التعليمية .
A20: يؤسفني أن أشعركم أن ابنكم-ابنتكم: | D20: =IFERROR(VLOOKUP(M4,school2,3,FALSE)&" "&VLOOKUP(M4,school2,4,FALSE),"") -> مراد 16 فريدة16 | F20: المولود(ة) بتاريخ | H20: =IFERROR(VLOOKUP(M4,school2,9,FALSE),"") -> 12/2/2015 | J20: =IFERROR(VLOOKUP(M4,school2,10,FALSE),"") -> البياضة
A21: من القسم: | C21: =IFERROR(VLOOKUP(M4,school2,5,FALSE)&" "&(VLOOKUP(M4,school2,6,FALSE)&" "&(VLOOKUP(M4,school2,7,FALSE))),"") -> أولى جدع مشترك آداب 1 | F21: =IFERROR(VLOOKUP(M4,school2,8,FALSE),"") -> 1آف1
A22: قد تغيب (ت) عن الدراسة منذ | D22: =IFERROR(VLOOKUP($M4,school1,14,FALSE),"") -> 2018-04-27 | H22: إلى يومنا هذا.
B23: وعليه فإنكم مطالبون بالحضور إلى المؤسسة قصد تبرير غيابه.
F25: بــــــــ | G25: =الواجهة!D5 -> الوادي | I25: في | J25: =TODAY() -> 2018-07-21
H28: مستشار التربية
B30: تبرير سبب الغياب | H30: =الواجهة!E16 -> 0
A32: .........................................................................................
A34: .........................................................................................
A36: .........................................................................................
A38: .........................................................................................

Sheet الإشعار الثاني
A1: الجمهورية الجزائرية الديمقراطية الشعبية
A2: وزارة التربيـــــــــة الوطنيـــــــــة
A3: =الواجهة!D3 -> مديريـة التربيـة لولاية | H3: =الواجهة!D4 -> ثانويـــة الوادي | J3: =الواجهة!D5 -> الوادي
L4: 210
G5: السيـــــــــــــد : | H5: =IFERROR(VLOOKUP($L4,school2,12,FALSE),"") -> محمد علي210
G6: العنـــــــــــــوان: | H6: =IFERROR(VLOOKUP($L4,school2,13,FALSE),"") -> حي السلام -البياضة
A7: الرقــــــــم | B7: =IFERROR(VLOOKUP($L4,school2,18,FALSE),"") -> 214 | C7: =الواجهة!D6 -> 2018/2017/ | G7: ولي التلميذ: | H7: =IFERROR(VLOOKUP($L4,school2,3,FALSE)&" "&VLOOKUP($L4,school2,4,FALSE),"") -> مراد 210 فريدة210
G8: من قســــــــم: | H8: =IFERROR(VLOOKUP($L4,school2,5,FALSE)&" "&(VLOOKUP($L4,school2,6,FALSE)&" "&(VLOOKUP($L4,school2,7,FALSE))),"") -> ثانية آداب وفلسفة 1 | K8: =IFERROR(VLOOKUP($L4,school2,8,FALSE),"") -> 2آف1
C11: الإشعار الثاني بالغياب
C14: المرجع / الفصل الثالث من القرار رقم 778 المتعلق بنظام الجماعة التربوية
A16: بمقتضى القرار الوزاري رقم: 833 المؤرخ في 1991.11.13 والذي يهدف إلى ضبط الكيفيات
A17: والإجراءات المتعلقة بمتابعة مواظبة التلاميذ في المؤسسات التعليمية .
A18: يؤسفني أن أشعركم أن ابنكم-ابنتكم: | D18: =IFERROR(VLOOKUP(L4,school2,3,FALSE)&" "&VLOOKUP(L4,school2,4,FALSE),"") -> مراد 210 فريدة210 | F18: المولود(ة) بتاريخ | H18: =IFERROR(VLOOKUP(L4,school2,9,FALSE),"") -> 12/2/2209 | J18: =IFERROR(VLOOKUP(L4,school2,10,FALSE),"") -> البياضة
A19: من القسم: | C19: =IFERROR(VLOOKUP(L4,school2,5,FALSE)&" "&(VLOOKUP(L4,school2,6,FALSE)&" "&(VLOOKUP(L4,school2,7,FALSE))),"") -> ثانية آداب وفلسفة 1 | F19: =IFERROR(VLOOKUP(L4,school2,8,FALSE),"") -> 2آف1
A20: قد تغيب (ت) عن الدراسة منذ | D20: =IFERROR(VLOOKUP($L4,school1,14,FALSE),"")+3 -> 1900-01-03 | H20: إلى يومنا هذا.
A21: ولقد تم ارسال الإشعار الأول بتاريخ | E21: =IFERROR(VLOOKUP($L4,school2,15,FALSE),"") -> 2018-09-09 | H21: دون استجابة منكم.
B23: وعليه فإنكم مطالبون بالحضور إلى المؤسسة قصد تبرير غيابه.
B25: تبرير سبب الغياب | G25: بـــــــ | H25: =الواجهة!D5 -> الوادي | I25: فــــــي | J25: =TODAY() -> 2018-07-21
G28: مستشار التربية | J28: الناظــــــــــر
G30: =الواجهة!E16 -> 0 | J30: =الواجهة!F16 -> 0
A38: .........................................................................................

Sheet الإعذار
A1: الجمهورية الجزائرية الديمقراطية الشعبية
A2: وزارة التربية الوطنية
A3: =الواجهة!D3 -> مديريـة التربيـة لولاية | H3: =الواجهة!D4 -> ثانويـــة الوادي | J3: =الواجهة!D5 -> الوادي
F4: إلى السيد: | H4: =IFERROR(VLOOKUP($L4,school2,12,FALSE),"") -> محمد علي91 | L4: 91
F5: العنـــــوان: | H5: =IFERROR(VLOOKUP($L4,school2,13,FALSE),"") -> حي الإزدهار - البياضة
A7: الرقــــــــم: | B7: =IFERROR(VLOOKUP($L4,school2,20,FALSE),"") -> 98 | C7: =الواجهة!D6 -> 2018/2017/ | F7: ولي التلميذ: | H7: =IFERROR(VLOOKUP($L4,school2,3,FALSE)&" "&VLOOKUP($L4,school2,4,FALSE),"") -> مراد 91 فريدة91
F8: من قسم: | H8: =IFERROR(VLOOKUP($L4,school2,5,FALSE)&" "&(VLOOKUP($L4,school2,6,FALSE)&" "&(VLOOKUP($L4,school2,7,FALSE))),"") -> أولى جذع مشترك علوم وتكنولوجيا 1 | K8: =IFERROR(VLOOKUP($L4,school2,8,FALSE),"") -> 1ع1
C10: إعــــــــــــــذار
C13: المرجع / الفصل الثالث من القرار رقم 778 المتعلق بنظام الجماعة التربوية
A16: المادة الأولى : أشعركم بأن ابنكم- ابنتكم تغيب(ت) عن الدراسة من يوم: | H16: =IFERROR(VLOOKUP($L4,school2,14,FALSE),"") -> 00:00:00 | J16: إلى يومنا هذا
A18: ولقد تم ارسال الإشعار الأول بتاريخ: | E18: =IFERROR(VLOOKUP($L4,school2,15,FALSE),"") -> 2018-05-13 | G18: رقـــــــــــــــم / | H18: =IFERROR(VLOOKUP($L4,school2,16,FALSE),"") -> 91
A20: والاشعـــــــار الثانـــــي بتاريــــــــــــــــــــخ: | E20: =IFERROR(VLOOKUP($L4,school2,17,FALSE),"") -> 2018-06-10 | G20: رقـــــــــــــــم / | H20: =IFERROR(VLOOKUP($L4,school2,18,FALSE),"") -> 95
A21: المادة الثانية : في حالة عدم التحاق ابنكم – ابنتكم بالمؤسسة وتبرير غياباته (ها)
A22: فإنكم تتحملون مسؤولياتكم القانونية .
A23: *نسخة موجهة إلى :
A24: – مديرية التربية ( مصلحة التمدرس و الامتحانات )
A25: – ملف التلميذ
A26: – أرشيف المؤسسة
G27: بـــــــ | H27: =الواجهة!D5 -> الوادي | I27: فــــــــي | J27: =TODAY() -> 2018-07-21
G29: المديــــــر
G31: =الواجهة!F16 -> 0

Sheet الشطب
A1: الجمهورية الجزائرية الديمقراطية الشعبية | L1: 4
A2: وزارة التربية الوطنية
A3: =الواجهة!D3 -> مديريـة التربيـة لولاية | H3: =الواجهة!D4 -> ثانويـــة الوادي | J3: =الواجهة!D5 -> الوادي
H4: السيد: مدير المؤسسة | M4: 434
A5: الرقــــــــم | C5: =الواجهة!D6 -> 2018/2017/ | G5: إلى السيد | H5: =IFERROR(VLOOKUP($M4,school2,12,FALSE),"") -> محمد علي434
G6: العنـــــوان: | H6: =IFERROR(VLOOKUP($M4,school2,13,FALSE),"") -> حي السلام -البياضة
C8: قرار الشطــــب
D9: المرجع / الفصل الثالث من القرار رقم 778 المتعلق بنظام الجماعة التربوية
A12: بناء على : – قانون رقم 08- 04 بتاريخ 23 يناير سنة 2008 والمتضمن القانون التوجيهي للتربية
A13: وبناء على المادة 21 من القرار رقم : 833 المؤرخ في 13 نوفمبر 1991 المتعلق بمواظبة التلاميذ في المؤسسة التعليمية
A15: يؤسفني جدا بأن أخبركم بما يلي: | D15: .................................
A16: إبنكم ، إبنتكم / | C16: =IFERROR(VLOOKUP($M4,school2,3,FALSE)&" "&VLOOKUP($M4,school2,4,FALSE),"") -> مراد 434 فريدة434
A17: من القسم | B17: =IFERROR(VLOOKUP($M4,school2,5,FALSE)&" "&(VLOOKUP($M4,school2,6,FALSE)&" "&(VLOOKUP($M4,school2,7,FALSE))),"") -> ثالثة علوم تجريبية 1 | F17: =IFERROR(VLOOKUP($M4,school2,7,FALSE),"") -> 1
A18: وقد تغيب (ت) منذ / | C18: =IFERROR(VLOOKUP($M4,school2,14,FALSE),"") -> 00:00:00
A19: وهــــــذا بـــــدون مبــــــرر رغـــــــم الإشعـــــــــــارات الموجهـــــــــة إليكـــــــم
A20: الإشعـار الأول بتاريخ / | D20: =IFERROR(VLOOKUP($M4,school2,15,FALSE),"") -> 2019-04-21 | F20: رقـــــــــــــــم / | G20: =IFERROR(VLOOKUP($M4,school2,16,FALSE),"") -> 434
A21: الإشعـار الثاني بتاريخ / | D21: =IFERROR(VLOOKUP($M4,school2,17,FALSE),"") -> 2019-05-19 | F21: رقـــــــــــــــم / | G21: =IFERROR(VLOOKUP($M4,school2,18,FALSE),"") -> 438
A22: والإعــــــــــذار بتاريـــــــــــــخ / | D22: =IFERROR(VLOOKUP($M4,school2,19,FALSE),"") -> 2020-03-14 | F22: رقـــــــــــــــم / | G22: =IFERROR(VLOOKUP($M4,school2,20,FALSE),"") -> 441
A24: ولكن دون جدوى ، وبناء عليه وطبقا للقانون المدرسي فإن إبنكم ، إبنتكم قد شطب (ت) نهائيا من سجلات المؤسسة
A25: *نسخــــــــــــة موجهـــــــــة إلــــــى :
A26: – مديرية التربية ( مصلحة التمدرس و الامتحانات )
A27: – ملف التلميذ
A28: – أرشيف المؤسسة
G29: بـــــــ | H29: =الواجهة!D5 -> الوادي | I29: فــــــــي | J29: =TODAY() -> 2018-07-21
G31: المديــــــر
G33: =الواجهة!G16 -> 0

Sheet إستدعاء
A1: الجمهورية الجزائرية الديمقراطية الشعبية
A2: وزارة التربية الوطنية
A3: =الواجهة!D3 -> مديريـة التربيـة لولاية | H3: =الواجهة!D4 -> ثانويـــة الوادي | J3: =الواجهة!D5 -> الوادي
H4: السيد: مدير المؤسسة | M4: 116
A5: الرقــــــــم | C5: =الواجهة!D6 -> 2018/2017/ | G5: إلى السيد | H5: =IFERROR(VLOOKUP($M4,school2,12,FALSE),"") -> محمد علي116
G6: العنـــــوان: | H6: =IFERROR(VLOOKUP($M4,school2,13,FALSE),"") -> حي السلام -البياضة
C8: إستدعـــــاء
C9: المرجع / الفصل الثالث من القرار رقم 778 المتعلق بنظام الجماعة التربوية
A13: المطلـــوب منكــــم الحضــــــور إلى مكتــب السيــد مستشــار التربيـــة يـــــوم : .............................................
A14: على الساعـــــــة : ............................... وهــــذا للأسبــاب المذكـــــورة أسفلــــه و التــي تهـــــم
A15: إبنكم ، إبنتكم / | C15: =IFERROR(VLOOKUP($M4,school2,3,FALSE)&" "&VLOOKUP($M4,school2,4,FALSE),"") -> مراد 116 فريدة116 | E15: من القسم: | G15: =IFERROR(VLOOKUP($M4,school2,5,FALSE)&" "&(VLOOKUP($M4,school2,6,FALSE)&" "&(VLOOKUP($M4,school2,7,FALSE))),"") -> أولى جذع مشترك علوم وتكنولوجيا 2 | K15: =IFERROR(VLOOKUP($M4,school2,8,FALSE),"") -> 1ع2
A18: تأخـــــــر متكـــــــــــــرر | G18: عدم القيام بالواجبات و التحضيرات المنزلية
A20: غيـــــاب غيــر مبـــــــــــــرر | G20: الشجــار و حــــمل أشيـاء ممنوعـــــة
A22: تصـــــرف غيــر مقبـــــــــــول | G22: تخـــــريب ممتلكـــات المؤسســــــة
A24: مخــــالفـة النظــام الداخلي للمؤسســـــة | G24: عـدم إحضار الأدوات المدرسية (كتب وكراريس...الخ)
A26: الخــــروج مــن القـســم بــــدون إذن | G26: عدم احترام الأستاذ و التشويش فـي القســـــم
A28: الخــــروج من المؤسســـة بــــدون إذن | G28: إستعمال المفرقعات داخل المؤسسة
A30: التدخيــن و التهريــج أثناء فترات الراحــــة | G30: مقــــابلـــة الأستـــــــــــــاذ
A32: أسباب أخرى:................................................................................................................................
B33: ................................................................................................................................
B34: ................................................................................................................................
G37: بـــــــ | H37: =الواجهة!D5 -> الوادي | I37: فــــــــي | J37: =TODAY() -> 2018-07-21
G39: =الواجهة!E10 -> مستشار التربية
G41: =الواجهة!E16 -> 0
J43: x

Sheet تعهد ولي التلميذ
A1: الجمهورية الجزائرية الديمقراطية الشعبية
A2: وزارة التربية الوطنية
A3: =الواجهة!D3 -> مديريـة التربيـة لولاية | H3: =الواجهة!D4 -> ثانويـــة الوادي | J3: =الواجهة!D5 -> الوادي
H4: =الواجهة!B6 -> السنـــــة الدراسيـــــــــة
H5: =الواجهة!D6 -> 2018/2017/
C7: تعهد ولي التلميذ(ة)
C8: المرجع / المادة 40 من القرار رقم 778 المتعلق بنظام الجماعة التربوية
A11: أنا الممضي أسفله السيد(ة) ............................................................................................
A12: المولودة بتاريخ : ......................................................................................................
A13: صاحب(ة) بطاقة التعريف الوطنيـــة ـ رخصـة السياقــة : رقم : ..............................................................
A14: الصادرة بتاريخ :............................................ عن ولاية : ................................................
A15: الساكن(ة) بـ :..........................................................................................................
A17: أب ـ أم ـ وصي التلميذ(ة) ............................................. المولود(ة) بتاريخ:..............................
A19: مسجل(ة) بالقسم : ........................... تحت رقم ................... خلال السنة الدراسية ........ / ..........
A21: أعترف أنني حضرت إلى المؤسسة يوم : | E21: =TODAY() -> 2018-07-21
A23: واطلعت على : ........................................................................................................
A25: ........................................................................................................................
A27: ........................................................................................................................
A29: ........................................................................................................................
A31: وأتعهد من جهتي على إلزام إبني ـ إبنتي على احترام القانون الداخلي للمؤسسة ( القرار رقم 778 المؤرخ في 26 أكتوبر 1991 )
A32: و من جهة أتقبل أي قرار يتخذ ضده ( ـا ) في إطـــــار القوانين السارية المفعول في حالة تكرار المخالفة
A34: إمضاء الولــي
G36: بـــــــ | H36: =الواجهة!D5 -> الوادي | I36: فــــــــي | J36: =TODAY() -> 2018-07-21
G38: =الواجهة!F10 -> الناظــــــر
G40: =الواجهة!F16 -> 0

Sheet تعهد تلميذ
A1: الجمهورية الجزائرية الديمقراطية الشعبية
A2: وزارة التربية الوطنية
A3: =الواجهة!D3 -> مديريـة التربيـة لولاية | H3: =الواجهة!D4 -> ثانويـــة الوادي | J3: =الواجهة!D5 -> الوادي | N3: 379
A4: السنة الدراسية | C4: =الواجهة!D6 -> 2018/2017/
C6: وثيقـة إعتـراف و التزام التلميـذ(ة)
A11: أنـا الممضــي أسفلــه التلميـــــذ(ة) | D11: =IFERROR(VLOOKUP(N3,school2,3,FALSE)&" "&VLOOKUP(N3,school2,4,FALSE),"") -> مراد 379 فريدة379 | F11: المولود(ة) بتاريخ | H11: =IFERROR(VLOOKUP(N3,school2,9,FALSE),"") -> 12/2/2378 | J11: =IFERROR(VLOOKUP(N3,school2,10,FALSE),"") -> البياضة
A13: من القسم: | C13: =IFERROR(VLOOKUP(N3,school2,5,FALSE)&" "&(VLOOKUP(N3,school2,6,FALSE)&" "&(VLOOKUP(N3,school2,7,FALSE))),"") -> ثانية تقني رياضي 1 | F13: =IFERROR(VLOOKUP(N3,school2,8,FALSE),"") -> 2هط1
A16: أعترف بأنني أقدمت على إقتراف المخالفة التالية : | E16: …..………………………...................................................………………
A17: ……………………………………………………………………..……………………………………………….……………………..
A18: ……………………………………………………………………..……………………………………………….……………………..
A19: يوم: | B19: ……………………… | E19: عل الساعة: | G19: …………….....................…………
A21: وألتــزم بقبـــــــول أي قـرار يتخـذ ضــدي في إطـار القانـــون الجـاري به العمــــــل
A22: وهـــــذا في حالــة التكـــرار وأتعهـــد على أن لا يصـــدر منــي مثـــل هـــذا التصـرف مستقبلا .
G26: =الواجهة!D5 -> الوادي | H26: فــــــــي: | I26: =TODAY() -> 2018-07-21
A28: إمضاء التلميذ | G28: =الواجهة!E10 -> مستشار التربية
G30: =الواجهة!E16 -> 0
J32: x

Sheet اليومية
C1: Jan | D1: Apr | E1: Jul | F1: Oct | M1: Feb | N1: May | O1: Aug | P1: Nov | U1: Mar | V1: Jun | W1: Sep | X1: Dec
C2: ="1/1/" &I8 -> 1/1/2018 | D2: =U2+31 -> 2018-04-01 | E2: =V2+30 -> 2018-07-01 | F2: =W2+30 -> 2018-10-01 | L2: =IF(OR((AND(MOD(YEAR(C2),4)=0,MOD(YEAR(C2),100)<>0)), (MOD(YEAR(C2),400)=0)), 29,28) -> 28 | M2: =C2+31 -> 2018-02-01 | N2: =D2+30 -> 2018-05-01 | O2: =E2+31 -> 2018-08-01 | P2: =F2+31 -> 2018-11-01 | U2: =M2+L2 -> 2018-03-01 | V2: =N2+31 -> 2018-06-01 | W2: =O2+31 -> 2018-09-01 | X2: =P2+30 -> 2018-12-01
A3: Jan | C3: =IF(WEEKDAY($C$2)=1,1,0) -> 0 | D3: =IF(WEEKDAY($C$2)=2,1,0) -> 1 | E3: =IF(WEEKDAY($C$2)=3,1,0) -> 0 | F3: =IF(WEEKDAY($C$2)=4,1,0) -> 0 | G3: =IF(WEEKDAY($C$2)=5,1,0) -> 0 | H3: =IF(WEEKDAY($C$2)=6,1,0) -> 0 | I3: =IF(WEEKDAY($C$2)=7,1,0) -> 0 | J3: Feb | L3: =IF(WEEKDAY($M$2)=1,1,0) -> 0 | M3: =IF(WEEKDAY($M$2)=2,1,0) -> 0 | N3: =IF(WEEKDAY($M$2)=3,1,0) -> 0 | O3: =IF(WEEKDAY($M$2)=4,1,0) -> 0 | P3: =IF(WEEKDAY($M$2)=5,1,0) -> 1 | Q3: =IF(WEEKDAY($M$2)=6,1,0) -> 0 | R3: =IF(WEEKDAY($M$2)=7,1,0) -> 0 | S3: Mar | U3: =IF(WEEKDAY($U$2)=1,1,0) -> 0 | V3: =IF(WEEKDAY($U$2)=2,1,0) -> 0 | W3: =IF(WEEKDAY($U$2)=3,1,0) -> 0 | X3: =IF(WEEKDAY($U$2)=4,1,0) -> 0 | Y3: =IF(WEEKDAY($U$2)=5,1,0) -> 1 | Z3: =IF(WEEKDAY($U$2)=6,1,0) -> 0 | AA3: =IF(WEEKDAY($U$2)=7,1,0) -> 0
A4: Apr | C4: =IF(WEEKDAY($D$2)=1,1,0) -> 1 | D4: =IF(WEEKDAY($D$2)=2,1,0) -> 0 | E4: =IF(WEEKDAY($D$2)=3,1,0) -> 0 | F4: =IF(WEEKDAY($D$2)=4,1,0) -> 0 | G4: =IF(WEEKDAY($D$2)=5,1,0) -> 0 | H4: =IF(WEEKDAY($D$2)=6,1,0) -> 0 | I4: =IF(WEEKDAY($D$2)=7,1,0) -> 0 | J4: May | L4: =IF(WEEKDAY($N$2)=1,1,0) -> 0 | M4: =IF(WEEKDAY($N$2)=2,1,0) -> 0 | N4: =IF(WEEKDAY($N$2)=3,1,0) -> 1 | O4: =IF(WEEKDAY($N$2)=4,1,0) -> 0 | P4: =IF(WEEKDAY($N$2)=5,1,0) -> 0 | Q4: =IF(WEEKDAY($N$2)=6,1,0) -> 0 | R4: =IF(WEEKDAY($N$2)=7,1,0) -> 0 | S4: Jun | U4: =IF(WEEKDAY($V$2)=1,1,0) -> 0 | V4: =IF(WEEKDAY($V$2)=2,1,0) -> 0 | W4: =IF(WEEKDAY($V$2)=3,1,0) -> 0 | X4: =IF(WEEKDAY($V$2)=4,1,0) -> 0 | Y4: =IF(WEEKDAY($V$2)=5,1,0) -> 0 | Z4: =IF(WEEKDAY($V$2)=6,1,0) -> 1 | AA4: =IF(WEEKDAY($V$2)=7,1,0) -> 0
A5: Jul | C5: =IF(WEEKDAY($E$2)=1,1,0) -> 1 | D5: =IF(WEEKDAY($E$2)=2,1,0) -> 0 | E5: =IF(WEEKDAY($E$2)=3,1,0) -> 0 | F5: =IF(WEEKDAY($E$2)=4,1,0) -> 0 | G5: =IF(WEEKDAY($E$2)=5,1,0) -> 0 | H5: =IF(WEEKDAY($E$2)=6,1,0) -> 0 | I5: =IF(WEEKDAY($E$2)=7,1,0) -> 0 | J5: Aug | L5: =IF(WEEKDAY($O$2)=1,1,0) -> 0 | M5: =IF(WEEKDAY($O$2)=2,1,0) -> 0 | N5: =IF(WEEKDAY($O$2)=3,1,0) -> 0 | O5: =IF(WEEKDAY($O$2)=4,1,0) -> 1 | P5: =IF(WEEKDAY($O$2)=5,1,0) -> 0 | Q5: =IF(WEEKDAY($O$2)=6,1,0) -> 0 | R5: =IF(WEEKDAY($O$2)=7,1,0) -> 0 | S5: Sep | U5: =IF(WEEKDAY($W$2)=1,1,0) -> 0 | V5: =IF(WEEKDAY($W$2)=2,1,0) -> 0 | W5: =IF(WEEKDAY($W$2)=3,1,0) -> 0 | X5: =IF(WEEKDAY($W$2)=4,1,0) -> 0 | Y5: =IF(WEEKDAY($W$2)=5,1,0) -> 0 | Z5: =IF(WEEKDAY($W$2)=6,1,0) -> 0 | AA5: =IF(WEEKDAY($W$2)=7,1,0) -> 1
A6: Oct | C6: =IF(WEEKDAY($F$2)=1,1,0) -> 0 | D6: =IF(WEEKDAY($F$2)=2,1,0) -> 1 | E6: =IF(WEEKDAY($F$2)=3,1,0) -> 0 | F6: =IF(WEEKDAY($F$2)=4,1,0) -> 0 | G6: =IF(WEEKDAY($F$2)=5,1,0) -> 0 | H6: =IF(WEEKDAY($F$2)=6,1,0) -> 0 | I6: =IF(WEEKDAY($F$2)=7,1,0) -> 0 | J6: Nov | L6: =IF(WEEKDAY($P$2)=1,1,0) -> 0 | M6: =IF(WEEKDAY($P$2)=2,1,0) -> 0 | N6: =IF(WEEKDAY($P$2)=3,1,0) -> 0 | O6: =IF(WEEKDAY($P$2)=4,1,0) -> 0 | P6: =IF(WEEKDAY($P$2)=5,1,0) -> 1 | Q6: =IF(WEEKDAY($P$2)=6,1,0) -> 0 | R6: =IF(WEEKDAY($P$2)=7,1,0) -> 0 | S6: Dec | U6: =IF(WEEKDAY($X$2)=1,1,0) -> 0 | V6: =IF(WEEKDAY($X$2)=2,1,0) -> 0 | W6: =IF(WEEKDAY($X$2)=3,1,0) -> 0 | X6: =IF(WEEKDAY($X$2)=4,1,0) -> 0 | Y6: =IF(WEEKDAY($X$2)=5,1,0) -> 0 | Z6: =IF(WEEKDAY($X$2)=6,1,0) -> 0 | AA6: =IF(WEEKDAY($X$2)=7,1,0) -> 1
I8: 2018 | M8: أكتب السنة الجديدة
I9: (1900 - 2078)
K10: يوميــة خاصـــة بــــــ: | P10: =I8 -> 2018
B11: جانفي | K11: فيفري | T11: مارس
B12: الأسابع | C12: الأحد | D12: الإثنين | E12: الثلاثاء | F12: الإربعاء | G12: الخميس | H12: الجمعة | I12: السبت | K12: الأسابع | L12: الأحد | M12: الإثنين | N12: الثلاثاء | O12: الإربعاء | P12: الخميس | Q12: الجمعة | R12: السبت | T12: الأسابع | U12: الأحد | V12: الإثنين | W12: الثلاثاء | X12: الإربعاء | Y12: الخميس | Z12: الجمعة | AA12: السبت
B13: 1 | C13: =IF($C$3=1,1,0) -> 0 | D13: =IF($D$3=1,1, IF(C13>0,C13+1, 0)) -> 1 | E13: =IF($E$3=1,1, IF(D13>0,D13+1, 0)) -> 2 | F13: =IF($F$3=1,1, IF(E13>0,E13+1, 0)) -> 3 | G13: =IF($G$3=1,1, IF(F13>0,F13+1, 0)) -> 4 | H13: =IF($H$3=1,1, IF(G13>0,G13+1, 0)) -> 5 | I13: =IF($I$3=1,1, IF(H13>0,H13+1, 0)) -> 6 | K13: =IF(B18>0,B17+1,B17) -> 5 | L13: =IF($L$3=1,1,0) -> 0 | M13: =IF($M$3=1,1, IF(L13>0,L13+1, 0)) -> 0 | N13: =IF($N$3=1,1, IF(M13>0,M13+1, 0)) -> 0 | O13: =IF($O$3=1,1, IF(N13>0,N13+1, 0)) -> 0 | P13: =IF($P$3=1,1, IF(O13>0,O13+1, 0)) -> 1 | Q13: =IF($Q$3=1,1, IF(P13>0,P13+1, 0)) -> 2 | R13: =IF($R$3=1,1, IF(Q13>0,Q13+1, 0)) -> 3 | T13: =IF(K18>0,K17+1,K17) -> 9 | U13: =IF($U$3=1,1,0) -> 0 | V13: =IF($V$3=1,1, IF(U13>0,U13+1, 0)) -> 0 | W13: =IF($W$3=1,1, IF(V13>0,V13+1, 0)) -> 0 | X13: =IF($X$3=1,1, IF(W13>0,W13+1, 0)) -> 0 | Y13: =IF($Y$3=1,1, IF(X13>0,X13+1, 0)) -> 1 | Z13: =IF($Z$3=1,1, IF(Y13>0,Y13+1, 0)) -> 2 | AA13: =IF($AA$3=1,1, IF(Z13>0,Z13+1, 0)) -> 3
B14: =B13+1 -> 2 | C14: =IF(AND(I13>0,I13<31),I13+1,0) -> 7 | D14: =IF(AND(C14>0,C14<31),C14+1,0) -> 8 | E14: 9 | F14: 10 | G14: 11 | H14: 12 | I14: 13 | K14: =K13+1 -> 6 | L14: =IF(AND(R13>0,R13<$L$2),R13+1,0) -> 4 | M14: =IF(AND(L14>0,L14<$L$2),L14+1,0) -> 5 | N14: =IF(AND(M14>0,M14<$L$2),M14+1,0) -> 6 | O14: 7 | P14: 8 | Q14: 9 | R14: 10 | T14: =T13+1 -> 10 | U14: =IF(AND(AA13>0,AA13<31),AA13+1,0) -> 4 | V14: =IF(AND(U14>0,U14<31),U14+1,0) -> 5 | W14: 6 | X14: 7 | Y14: 8 | Z14: 9 | AA14: 10
B15: =B14+1 -> 3 | C15: =IF(AND(I14>0,I14<31),I14+1,0) -> 14 | D15: 15 | E15: 16 | F15: 17 | G15: 18 | H15: 19 | I15: 20 | K15: =K14+1 -> 7 | L15: =IF(AND(R14>0,R14<$L$2),R14+1,0) -> 11 | M15: 12 | N15: 13 | O15: 14 | P15: 15 | Q15: 16 | R15: 17 | T15: =T14+1 -> 11 | U15: =IF(AND(AA14>0,AA14<31),AA14+1,0) -> 11 | V15: 12 | W15: 13 | X15: 14 | Y15: 15 | Z15: 16 | AA15: 17
B16: =B15+1 -> 4 | C16: =IF(AND(I15>0,I15<31),I15+1,0) -> 21 | D16: 22 | E16: 23 | F16: 24 | G16: 25 | H16: 26 | I16: 27 | K16: =K15+1 -> 8 | L16: =IF(AND(R15>0,R15<$L$2),R15+1,0) -> 18 | M16: 19 | N16: 20 | O16: 21 | P16: 22 | Q16: 23 | R16: 24 | T16: =T15+1 -> 12 | U16: =IF(AND(AA15>0,AA15<31),AA15+1,0) -> 18 | V16: 19 | W16: 20 | X16: 21 | Y16: 22 | Z16: 23 | AA16: 24
B17: =B16+1 -> 5 | C17: =IF(AND(I16>0,I16<31),I16+1,0) -> 28 | D17: 29 | E17: 30 | F17: 31 | G17: 0 | H17: 0 | I17: 0 | K17: =K16+1 -> 9 | L17: =IF(AND(R16>0,R16<$L$2),R16+1,0) -> 25 | M17: 26 | N17: 27 | O17: 28 | P17: 0 | Q17: 0 | R17: 0 | T17: =T16+1 -> 13 | U17: =IF(AND(AA16>0,AA16<31),AA16+1,0) -> 25 | V17: 26 | W17: 27 | X17: 28 | Y17: 29 | Z17: 30 | AA17: 31
B18: =IF(C18=0,0,B17+1) -> 0 | C18: =IF(AND(I17>0,I17<31),I17+1,0) -> 0 | D18: 0 | E18: 0 | F18: 0 | G18: 0 | H18: 0 | I18: 0 | K18: =IF(L18=0,0,K17+1) -> 0 | L18: =IF(AND(R17>0,R17<$L$2),R17+1,0) -> 0 | M18: 0 | N18: 0 | O18: 0 | P18: 0 | Q18: 0 | R18: 0 | T18: =IF(U18=0,0,T17+1) -> 0 | U18: =IF(AND(AA17>0,AA17<31),AA17+1,0) -> 0 | V18: 0 | W18: 0 | X18: 0 | Y18: 0 | Z18: 0 | AA18: 0
B19: أفريل | K19: ماي | T19: جوان
B20: الأسابع | C20: الأحد | D20: الإثنين | E20: الثلاثاء | F20: الإربعاء | G20: الخميس | H20: الجمعة | I20: السبت | K20: الأسابع | L20: الأحد | M20: الإثنين | N20: الثلاثاء | O20: الإربعاء | P20: الخميس | Q20: الجمعة | R20: السبت | T20: الأسابع | U20: الأحد | V20: الإثنين | W20: الثلاثاء | X20: الإربعاء | Y20: الخميس | Z20: الجمعة | AA20: السبت
B21: =IF(T18>0,T18,T17+1) -> 14 | C21: =IF($C$4=1,1,0) -> 1 | D21: =IF($D$4=1,1, IF(C21>0,C21+1, 0)) -> 2 | E21: =IF($E$4=1,1, IF(D21>0,D21+1, 0)) -> 3 | F21: =IF($F$4=1,1, IF(E21>0,E21+1, 0)) -> 4 | G21: =IF($G$4=1,1, IF(F21>0,F21+1, 0)) -> 5 | H21: =IF($H$4=1,1, IF(G21>0,G21+1, 0)) -> 6 | I21: =IF($I$4=1,1, IF(H21>0,H21+1, 0)) -> 7 | K21: =IF(B26>0,B25+1,B25) -> 18 | L21: =IF($L$4=1,1,0) -> 0 | M21: =IF($M$4=1,1, IF(L21>0,L21+1, 0)) -> 0 | N21: =IF($N$4=1,1, IF(M21>0,M21+1, 0)) -> 1 | O21: =IF($O$4=1,1, IF(N21>0,N21+1, 0)) -> 2 | P21: =IF($P$4=1,1, IF(O21>0,O21+1, 0)) -> 3 | Q21: =IF($Q$4=1,1, IF(P21>0,P21+1, 0)) -> 4 | R21: =IF($R$4=1,1, IF(Q21>0,Q21+1, 0)) -> 5 | T21: =IF(K26>0,K25+1,K25) -> 22 | U21: =IF($U$4=1,1,0) -> 0 | V21: =IF($V$4=1,1, IF(U21>0,U21+1, 0)) -> 0 | W21: =IF($W$4=1,1, IF(V21>0,V21+1, 0)) -> 0 | X21: =IF($X$4=1,1, IF(W21>0,W21+1, 0)) -> 0 | Y21: =IF($Y$4=1,1, IF(X21>0,X21+1, 0)) -> 0 | Z21: =IF($Z$4=1,1, IF(Y21>0,Y21+1, 0)) -> 1 | AA21: =IF($AA$4=1,1, IF(Z21>0,Z21+1, 0)) -> 2
B22: =B21+1 -> 15 | C22: =IF(AND(I21>0,I21<30),I21+1,0) -> 8 | D22: =IF(AND(C22>0,C22<30),C22+1,0) -> 9 | E22: 10 | F22: 11 | G22: 12 | H22: 13 | I22: 14 | K22: =K21+1 -> 19 | L22: =IF(AND(R21>0,R21<31),R21+1,0) -> 6 | M22: =IF(AND(L22>0,L22<31),L22+1,0) -> 7 | N22: 8 | O22: 9 | P22: 10 | Q22: 11 | R22: 12 | T22: =T21+1 -> 23 | U22: =IF(AND(AA21>0,AA21<30),AA21+1,0) -> 3 | V22: =IF(AND(U22>0,U22<30),U22+1,0) -> 4 | W22: 5 | X22: 6 | Y22: 7 | Z22: 8 | AA22: 9
B23: =B22+1 -> 16 | C23: =IF(AND(I22>0,I22<30),I22+1,0) -> 15 | D23: 16 | E23: 17 | F23: 18 | G23: 19 | H23: 20 | I23: 21 | K23: =K22+1 -> 20 | L23: =IF(AND(R22>0,R22<31),R22+1,0) -> 13 | M23: 14 | N23: 15 | O23: 16 | P23: 17 | Q23: 18 | R23: 19 | T23: =T22+1 -> 24 | U23: =IF(AND(AA22>0,AA22<30),AA22+1,0) -> 10 | V23: 11 | W23: 12 | X23: 13 | Y23: 14 | Z23: 15 | AA23: 16
B24: =B23+1 -> 17 | C24: =IF(AND(I23>0,I23<30),I23+1,0) -> 22 | D24: 23 | E24: 24 | F24: 25 | G24: 26 | H24: 27 | I24: 28 | K24: =K23+1 -> 21 | L24: =IF(AND(R23>0,R23<31),R23+1,0) -> 20 | M24: 21 | N24: 22 | O24: 23 | P24: 24 | Q24: 25 | R24: 26 | T24: =T23+1 -> 25 | U24: =IF(AND(AA23>0,AA23<30),AA23+1,0) -> 17 | V24: 18 | W24: 19 | X24: 20 | Y24: 21 | Z24: 22 | AA24: 23
B25: =B24+1 -> 18 | C25: =IF(AND(I24>0,I24<30),I24+1,0) -> 29 | D25: 30 | E25: 0 | F25: 0 | G25: 0 | H25: 0 | I25: 0 | K25: =K24+1 -> 22 | L25: =IF(AND(R24>0,R24<31),R24+1,0) -> 27 | M25: 28 | N25: 29 | O25: 30 | P25: 31 | Q25: 0 | R25: 0 | T25: =T24+1 -> 26 | U25: =IF(AND(AA24>0,AA24<30),AA24+1,0) -> 24 | V25: 25 | W25: 26 | X25: 27 | Y25: 28 | Z25: 29 | AA25: 30
B26: =IF(C26=0,0,B25+1) -> 0 | C26: =IF(AND(I25>0,I25<30),I25+1,0) -> 0 | D26: 0 | E26: 0 | F26: 0 | G26: 0 | H26: 0 | I26: 0 | K26: =IF(L26=0,0,K25+1) -> 0 | L26: =IF(AND(R25>0,R25<31),R25+1,0) -> 0 | M26: 0 | N26: 0 | O26: 0 | P26: 0 | Q26: 0 | R26: 0 | T26: =IF(U26=0,0,T25+1) -> 0 | U26: =IF(AND(AA25>0,AA25<30),AA25+1,0) -> 0 | V26: 0 | W26: 0 | X26: 0 | Y26: 0 | Z26: 0 | AA26: 0
B27: جويلية | K27: أوت | T27: سبتمبر
B28: الأسابع | C28: الأحد | D28: الإثنين | E28: الثلاثاء | F28: الإربعاء | G28: الخميس | H28: الجمعة | I28: السبت | K28: WK | L28: الأحد | M28: الإثنين | N28: الثلاثاء | O28: الإربعاء | P28: الخميس | Q28: الجمعة | R28: السبت | T28: الأسابع | U28: الأحد | V28: الإثنين | W28: الثلاثاء | X28: الإربعاء | Y28: الخميس | Z28: الجمعة | AA28: السبت
B29: =IF(T26>0,T26,T25+1) -> 27 | C29: =IF($C$5=1,1,0) -> 1 | D29: =IF($D$5=1,1, IF(C29>0,C29+1, 0)) -> 2 | E29: =IF($E$5=1,1, IF(D29>0,D29+1, 0)) -> 3 | F29: =IF($F$5=1,1, IF(E29>0,E29+1, 0)) -> 4 | G29: =IF($G$5=1,1, IF(F29>0,F29+1, 0)) -> 5 | H29: =IF($H$5=1,1, IF(G29>0,G29+1, 0)) -> 6 | I29: =IF($I$5=1,1, IF(H29>0,H29+1, 0)) -> 7 | K29: =IF(B34>0,B33+1,B33) -> 31 | L29: =IF($L$5=1,1,0) -> 0 | M29: =IF($M$5=1,1, IF(L29>0,L29+1, 0)) -> 0 | N29: =IF($N$5=1,1, IF(M29>0,M29+1, 0)) -> 0 | O29: =IF($O$5=1,1, IF(N29>0,N29+1, 0)) -> 1 | P29: =IF($P$5=1,1, IF(O29>0,O29+1, 0)) -> 2 | Q29: =IF($Q$5=1,1, IF(P29>0,P29+1, 0)) -> 3 | R29: =IF($R$5=1,1, IF(Q29>0,Q29+1, 0)) -> 4 | T29: =IF(K34>0,K33+1,K33) -> 35 | U29: =IF($U$5=1,1,0) -> 0 | V29: =IF($V$5=1,1, IF(U29>0,U29+1, 0)) -> 0 | W29: =IF($W$5=1,1, IF(V29>0,V29+1, 0)) -> 0 | X29: =IF($X$5=1,1, IF(W29>0,W29+1, 0)) -> 0 | Y29: =IF($Y$5=1,1, IF(X29>0,X29+1, 0)) -> 0 | Z29: =IF($Z$5=1,1, IF(Y29>0,Y29+1, 0)) -> 0 | AA29: =IF($AA$5=1,1, IF(Z29>0,Z29+1, 0)) -> 1
B30: =B29+1 -> 28 | C30: =IF(AND(I29>0,I29<31),I29+1,0) -> 8 | D30: =IF(AND(C30>0,C30<31),C30+1,0) -> 9 | E30: 10 | F30: 11 | G30: 12 | H30: 13 | I30: 14 | K30: =K29+1 -> 32 | L30: =IF(AND(R29>0,R29<31),R29+1,0) -> 5 | M30: =IF(AND(L30>0,L30<31),L30+1,0) -> 6 | N30: 7 | O30: 8 | P30: 9 | Q30: 10 | R30: 11 | T30: =T29+1 -> 36 | U30: =IF(AND(AA29>0,AA29<30),AA29+1,0) -> 2 | V30: =IF(AND(U30>0,U30<30),U30+1,0) -> 3 | W30: 4 | X30: 5 | Y30: 6 | Z30: 7 | AA30: 8
B31: =B30+1 -> 29 | C31: =IF(AND(I30>0,I30<31),I30+1,0) -> 15 | D31: 16 | E31: 17 | F31: 18 | G31: 19 | H31: 20 | I31: 21 | K31: =K30+1 -> 33 | L31: =IF(AND(R30>0,R30<31),R30+1,0) -> 12 | M31: 13 | N31: 14 | O31: 15 | P31: 16 | Q31: 17 | R31: 18 | T31: =T30+1 -> 37 | U31: =IF(AND(AA30>0,AA30<30),AA30+1,0) -> 9 | V31: 10 | W31: 11 | X31: 12 | Y31: 13 | Z31: 14 | AA31: 15
B32: =B31+1 -> 30 | C32: =IF(AND(I31>0,I31<31),I31+1,0) -> 22 | D32: 23 | E32: 24 | F32: 25 | G32: 26 | H32: 27 | I32: 28 | K32: =K31+1 -> 34 | L32: =IF(AND(R31>0,R31<31),R31+1,0) -> 19 | M32: 20 | N32: 21 | O32: 22 | P32: 23 | Q32: 24 | R32: 25 | T32: =T31+1 -> 38 | U32: =IF(AND(AA31>0,AA31<30),AA31+1,0) -> 16 | V32: 17 | W32: 18 | X32: 19 | Y32: 20 | Z32: 21 | AA32: 22
B33: =B32+1 -> 31 | C33: =IF(AND(I32>0,I32<31),I32+1,0) -> 29 | D33: 30 | E33: 31 | F33: 0 | G33: 0 | H33: 0 | I33: 0 | K33: =K32+1 -> 35 | L33: =IF(AND(R32>0,R32<31),R32+1,0) -> 26 | M33: 27 | N33: 28 | O33: 29 | P33: 30 | Q33: 31 | R33: 0 | T33: =T32+1 -> 39 | U33: =IF(AND(AA32>0,AA32<30),AA32+1,0) -> 23 | V33: 24 | W33: 25 | X33: 26 | Y33: 27 | Z33: 28 | AA33: 29
B34: =IF(C34=0,0,B33+1) -> 0 | C34: =IF(AND(I33>0,I33<31),I33+1,0) -> 0 | D34: 0 | E34: 0 | F34: 0 | G34: 0 | H34: 0 | I34: 0 | K34: =IF(L34=0,0,K33+1) -> 0 | L34: =IF(AND(R33>0,R33<31),R33+1,0) -> 0 | M34: 0 | N34: 0 | O34: 0 | P34: 0 | Q34: 0 | R34: 0 | T34: =IF(U34=0,0,T33+1) -> 40 | U34: =IF(AND(AA33>0,AA33<30),AA33+1,0) -> 30 | V34: 0 | W34: 0 | X34: 0 | Y34: 0 | Z34: 0 | AA34: 0
B35: أكتوبر | K35: نوفمبر | T35: ديسمبر
B36: الأسابع | C36: الأحد | D36: الإثنين | E36: الثلاثاء | F36: الإربعاء | G36: الخميس | H36: الجمعة | I36: السبت | K36: الأسابع | L36: الأحد | M36: الإثنين | N36: الثلاثاء | O36: الإربعاء | P36: الخميس | Q36: الجمعة | R36: السبت | T36: الأسابع | U36: الأحد | V36: الإثنين | W36: الثلاثاء | X36: الإربعاء | Y36: الخميس | Z36: الجمعة | AA36: السبت
B37: =IF(T34>0,T34,T33+1) -> 40 | C37: =IF($C$6=1,1,0) -> 0 | D37: =IF($D$6=1,1, IF(C37>0,C37+1, 0)) -> 1 | E37: =IF($E$6=1,1, IF(D37>0,D37+1, 0)) -> 2 | F37: =IF($F$6=1,1, IF(E37>0,E37+1, 0)) -> 3 | G37: =IF($G$6=1,1, IF(F37>0,F37+1, 0)) -> 4 | H37: =IF($H$6=1,1, IF(G37>0,G37+1, 0)) -> 5 | I37: =IF($I$6=1,1, IF(H37>0,H37+1, 0)) -> 6 | K37: =IF(B42>0,B41+1,B41) -> 44 | L37: =IF($L$6=1,1,0) -> 0 | M37: =IF($M$6=1,1, IF(L37>0,L37+1, 0)) -> 0 | N37: =IF($N$6=1,1, IF(M37>0,M37+1, 0)) -> 0 | O37: =IF($O$6=1,1, IF(N37>0,N37+1, 0)) -> 0 | P37: =IF($P$6=1,1, IF(O37>0,O37+1, 0)) -> 1 | Q37: =IF($Q$6=1,1, IF(P37>0,P37+1, 0)) -> 2 | R37: =IF($R$6=1,1, IF(Q37>0,Q37+1, 0)) -> 3 | T37: =IF(K42>0,K41+1,K41) -> 48 | U37: =IF($U$6=1,1,0) -> 0 | V37: =IF($V$6=1,1, IF(U37>0,U37+1, 0)) -> 0 | W37: =IF($W$6=1,1, IF(V37>0,V37+1, 0)) -> 0 | X37: =IF($X$6=1,1, IF(W37>0,W37+1, 0)) -> 0 | Y37: =IF($Y$6=1,1, IF(X37>0,X37+1, 0)) -> 0 | Z37: =IF($Z$6=1,1, IF(Y37>0,Y37+1, 0)) -> 0 | AA37: =IF($AA$6=1,1, IF(Z37>0,Z37+1, 0)) -> 1
B38: =B37+1 -> 41 | C38: =IF(AND(I37>0,I37<31),I37+1,0) -> 7 | D38: =IF(AND(C38>0,C38<31),C38+1,0) -> 8 | E38: 9 | F38: 10 | G38: 11 | H38: 12 | I38: 13 | K38: =K37+1 -> 45 | L38: =IF(AND(R37>0,R37<30),R37+1,0) -> 4 | M38: =IF(AND(L38>0,L38<30),L38+1,0) -> 5 | N38: 6 | O38: 7 | P38: 8 | Q38: 9 | R38: 10 | T38: =T37+1 -> 49 | U38: =IF(AND(AA37>0,AA37<31),AA37+1,0) -> 2 | V38: =IF(AND(U38>0,U38<31),U38+1,0) -> 3 | W38: 4 | X38: 5 | Y38: 6 | Z38: 7 | AA38: 8
B39: =B38+1 -> 42 | C39: =IF(AND(I38>0,I38<31),I38+1,0) -> 14 | D39: 15 | E39: 16 | F39: 17 | G39: 18 | H39: 19 | I39: 20 | K39: =K38+1 -> 46 | L39: =IF(AND(R38>0,R38<30),R38+1,0) -> 11 | M39: 12 | N39: 13 | O39: 14 | P39: 15 | Q39: 16 | R39: 17 | T39: =T38+1 -> 50 | U39: =IF(AND(AA38>0,AA38<31),AA38+1,0) -> 9 | V39: 10 | W39: 11 | X39: 12 | Y39: 13 | Z39: 14 | AA39: 15
B40: =B39+1 -> 43 | C40: =IF(AND(I39>0,I39<31),I39+1,0) -> 21 | D40: 22 | E40: 23 | F40: 24 | G40: 25 | H40: 26 | I40: 27 | K40: =K39+1 -> 47 | L40: =IF(AND(R39>0,R39<30),R39+1,0) -> 18 | M40: 19 | N40: 20 | O40: 21 | P40: 22 | Q40: 23 | R40: 24 | T40: =T39+1 -> 51 | U40: =IF(AND(AA39>0,AA39<31),AA39+1,0) -> 16 | V40: 17 | W40: 18 | X40: 19 | Y40: 20 | Z40: 21 | AA40: 22
B41: =B40+1 -> 44 | C41: =IF(AND(I40>0,I40<31),I40+1,0) -> 28 | D41: 29 | E41: 30 | F41: 31 | G41: 0 | H41: 0 | I41: 0 | K41: =K40+1 -> 48 | L41: =IF(AND(R40>0,R40<30),R40+1,0) -> 25 | M41: 26 | N41: 27 | O41: 28 | P41: 29 | Q41: 30 | R41: 0 | T41: =T40+1 -> 52 | U41: =IF(AND(AA40>0,AA40<31),AA40+1,0) -> 23 | V41: 24 | W41: 25 | X41: 26 | Y41: 27 | Z41: 28 | AA41: 29
B42: =IF(C42=0,0,B41+1) -> 0 | C42: =IF(AND(I41>0,I41<31),I41+1,0) -> 0 | D42: 0 | E42: 0 | F42: 0 | G42: 0 | H42: 0 | I42: 0 | K42: =IF(L42=0,0,K41+1) -> 0 | L42: =IF(AND(R41>0,R41<30),R41+1,0) -> 0 | M42: 0 | N42: 0 | O42: 0 | P42: 0 | Q42: 0 | R42: 0 | T42: =IF(U42=0,0,T41+1) -> 53 | U42: =IF(AND(AA41>0,AA41<31),AA41+1,0) -> 30 | V42: 31 | W42: 0 | X42: 0 | Y42: 0 | Z42: 0 | AA42: 0

Sheet ورقة20
K4: 2001
E11: =DATE(K4,1,1) -> 2001-01-01 | H11: =DATE(K4,2,1) -> 2001-02-01 | K11: =DATE(K4,3,1) -> 2001-03-01 | N11: =DATE(K4,4,1) -> 2001-04-01 | Q11: =DATE(K4,5,1) -> 2001-05-01 | T11: =DATE(K4,6,1) -> 2001-06-01
E12: المواعيد والمناسبات | H12: المواعيد والمناسبات | K12: المواعيد والمناسبات | N12: المواعيد والمناسبات | Q12: المواعيد والمناسبات | T12: المواعيد والمناسبات
D14: =DATE(K4,1,1) -> 2001-01-01 | G14: =DATE(K4,2,1) -> 2001-02-01 | J14: =DATE(K4,3,1) -> 2001-03-01 | M14: =DATE(K4,4,1) -> 2001-04-01 | P14: =DATE(K4,5,1) -> 2001-05-01 | S14: =DATE(K4,6,1) -> 2001-06-01
D15: =D14+1 -> 2001-01-02 | G15: =G14+1 -> 2001-02-02 | J15: =J14+1 -> 2001-03-02 | M15: =M14+1 -> 2001-04-02 | P15: =P14+1 -> 2001-05-02 | S15: =S14+1 -> 2001-06-02
D16: =D15+1 -> 2001-01-03 | G16: =G15+1 -> 2001-02-03 | J16: 2001-03-03 | M16: =M15+1 -> 2001-04-03 | P16: =P15+1 -> 2001-05-03 | S16: =S15+1 -> 2001-06-03
D17: =D16+1 -> 2001-01-04 | G17: 2001-02-04 | J17: 2001-03-04 | M17: 2001-04-04 | P17: 2001-05-04 | S17: 2001-06-04
D18: 2001-01-05 | G18: 2001-02-05 | J18: 2001-03-05 | M18: 2001-04-05 | P18: 2001-05-05 | S18: 2001-06-05
D19: 2001-01-06 | G19: 2001-02-06 | J19: 2001-03-06 | M19: 2001-04-06 | P19: 2001-05-06 | S19: 2001-06-06
D20: 2001-01-07 | G20: 2001-02-07 | J20: 2001-03-07 | M20: 2001-04-07 | P20: 2001-05-07 | S20: 2001-06-07
D21: 2001-01-08 | G21: 2001-02-08 | J21: 2001-03-08 | M21: 2001-04-08 | P21: 2001-05-08 | S21: 2001-06-08
D22: 2001-01-09 | G22: 2001-02-09 | J22: 2001-03-09 | M22: 2001-04-09 | P22: 2001-05-09 | S22: 2001-06-09
D23: 2001-01-10 | G23: 2001-02-10 | J23: 2001-03-10 | M23: 2001-04-10 | P23: 2001-05-10 | S23: 2001-06-10
D24: 2001-01-11 | G24: 2001-02-11 | J24: 2001-03-11 | M24: 2001-04-11 | P24: 2001-05-11 | S24: 2001-06-11
D25: 2001-01-12 | G25: 2001-02-12 | J25: 2001-03-12 | M25: 2001-04-12 | P25: 2001-05-12 | S25: 2001-06-12
D26: 2001-01-13 | G26: 2001-02-13 | J26: 2001-03-13 | M26: 2001-04-13 | P26: 2001-05-13 | S26: 2001-06-13
D27: 2001-01-14 | G27: 2001-02-14 | J27: 2001-03-14 | M27: 2001-04-14 | P27: 2001-05-14 | S27: 2001-06-14
D28: 2001-01-15 | G28: 2001-02-15 | J28: 2001-03-15 | M28: 2001-04-15 | P28: 2001-05-15 | S28: 2001-06-15
D29: 2001-01-16 | G29: 2001-02-16 | J29: 2001-03-16 | M29: 2001-04-16 | P29: 2001-05-16 | S29: 2001-06-16
D30: 2001-01-17 | G30: 2001-02-17 | J30: 2001-03-17 | M30: 2001-04-17 | P30: 2001-05-17 | S30: 2001-06-17
D31: 2001-01-18 | G31: 2001-02-18 | J31: 2001-03-18 | M31: 2001-04-18 | P31: 2001-05-18 | S31: 2001-06-18
D32: 2001-01-19 | G32: 2001-02-19 | J32: 2001-03-19 | M32: 2001-04-19 | P32: 2001-05-19 | S32: 2001-06-19
D33: 2001-01-20 | G33: 2001-02-20 | J33: 2001-03-20 | M33: 2001-04-20 | P33: 2001-05-20 | S33: 2001-06-20
D34: 2001-01-21 | G34: 2001-02-21 | J34: 2001-03-21 | M34: 2001-04-21 | P34: 2001-05-21 | S34: 2001-06-21
D35: 2001-01-22 | G35: 2001-02-22 | J35: 2001-03-22 | M35: 2001-04-22 | P35: 2001-05-22 | S35: 2001-06-22
D36: 2001-01-23 | G36: 2001-02-23 | J36: 2001-03-23 | M36: 2001-04-23 | P36: 2001-05-23 | S36: 2001-06-23
D37: 2001-01-24 | G37: 2001-02-24 | J37: 2001-03-24 | M37: 2001-04-24 | P37: 2001-05-24 | S37: 2001-06-24
D38: 2001-01-25 | G38: 2001-02-25 | J38: 2001-03-25 | M38: 2001-04-25 | P38: 2001-05-25 | S38: 2001-06-25
D39: 2001-01-26 | G39: 2001-02-26 | J39: 2001-03-26 | M39: 2001-04-26 | P39: 2001-05-26 | S39: 2001-06-26
D40: 2001-01-27 | G40: 2001-02-27 | J40: 2001-03-27 | M40: 2001-04-27 | P40: 2001-05-27 | S40: 2001-06-27
D41: 2001-01-28 | G41: 2001-02-28 | J41: 2001-03-28 | M41: 2001-04-28 | P41: 2001-05-28 | S41: 2001-06-28
D42: 2001-01-29 | G42: =IF(DAY(G41+1)=29,G14+28,"") ->  | J42: 2001-03-29 | M42: 2001-04-29 | P42: 2001-05-29 | S42: 2001-06-29
D43: 2001-01-30 | J43: 2001-03-30 | M43: 2001-04-30 | P43: 2001-05-30 | S43: 2001-06-30
D44: 2001-01-31 | J44: 2001-03-31 | P44: 2001-05-31
E51: =DATE(K4,7,1) -> 2001-07-01 | H51: =DATE(K4,8,1) -> 2001-08-01 | K51: =DATE(K4,9,1) -> 2001-09-01 | N51: =DATE(K4,10,1) -> 2001-10-01 | Q51: =DATE(K4,11,1) -> 2001-11-01 | T51: =DATE(K4,12,1) -> 2001-12-01
E52: المواعيد والمناسبات | H52: المواعيد والمناسبات | K52: المواعيد والمناسبات | N52: المواعيد والمناسبات | Q52: المواعيد والمناسبات | T52: المواعيد والمناسبات
D54: =DATE(K4,7,1) -> 2001-07-01 | G54: =DATE(K4,8,1) -> 2001-08-01 | J54: =DATE(K4,9,1) -> 2001-09-01 | M54: =DATE(K4,10,1) -> 2001-10-01 | P54: =DATE(K4,11,1) -> 2001-11-01 | S54: =DATE(K4,12,1) -> 2001-12-01
D55: =D54+1 -> 2001-07-02 | G55: =G54+1 -> 2001-08-02 | J55: =J54+1 -> 2001-09-02 | M55: =M54+1 -> 2001-10-02 | P55: =P54+1 -> 2001-11-02 | S55: =S54+1 -> 2001-12-02
D56: =D55+1 -> 2001-07-03 | G56: =G55+1 -> 2001-08-03 | J56: =J55+1 -> 2001-09-03 | M56: =M55+1 -> 2001-10-03 | P56: =P55+1 -> 2001-11-03 | S56: =S55+1 -> 2001-12-03
D57: 2001-07-04 | G57: 2001-08-04 | J57: 2001-09-04 | M57: 2001-10-04 | P57: 2001-11-04 | S57: 2001-12-04
D58: 2001-07-05 | G58: 2001-08-05 | J58: 2001-09-05 | M58: 2001-10-05 | P58: 2001-11-05 | S58: 2001-12-05
D59: 2001-07-06 | G59: 2001-08-06 | J59: 2001-09-06 | M59: 2001-10-06 | P59: 2001-11-06 | S59: 2001-12-06
D60: 2001-07-07 | G60: 2001-08-07 | J60: 2001-09-07 | M60: 2001-10-07 | P60: 2001-11-07 | S60: 2001-12-07
D61: 2001-07-08 | G61: 2001-08-08 | J61: 2001-09-08 | M61: 2001-10-08 | P61: 2001-11-08 | S61: 2001-12-08
D62: 2001-07-09 | G62: 2001-08-09 | J62: 2001-09-09 | M62: 2001-10-09 | P62: 2001-11-09 | S62: 2001-12-09
D63: 2001-07-10 | G63: 2001-08-10 | J63: 2001-09-10 | M63: 2001-10-10 | P63: 2001-11-10 | S63: 2001-12-10
D64: 2001-07-11 | G64: 2001-08-11 | J64: 2001-09-11 | M64: 2001-10-11 | P64: 2001-11-11 | S64: 2001-12-11
D65: 2001-07-12 | G65: 2001-08-12 | J65: 2001-09-12 | M65: 2001-10-12 | P65: 2001-11-12 | S65: 2001-12-12
D66: 2001-07-13 | G66: 2001-08-13 | J66: 2001-09-13 | M66: 2001-10-13 | P66: 2001-11-13 | S66: 2001-12-13
D67: 2001-07-14 | G67: 2001-08-14 | J67: 2001-09-14 | M67: 2001-10-14 | P67: 2001-11-14 | S67: 2001-12-14
D68: 2001-07-15 | G68: 2001-08-15 | J68: 2001-09-15 | M68: 2001-10-15 | P68: 2001-11-15 | S68: 2001-12-15
D69: 2001-07-16 | G69: 2001-08-16 | J69: 2001-09-16 | M69: 2001-10-16 | P69: 2001-11-16 | S69: 2001-12-16
D70: 2001-07-17 | G70: 2001-08-17 | J70: 2001-09-17 | M70: 2001-10-17 | P70: 2001-11-17 | S70: 2001-12-17
D71: 2001-07-18 | G71: 2001-08-18 | J71: 2001-09-18 | M71: 2001-10-18 | P71: 2001-11-18 | S71: 2001-12-18
D72: 2001-07-19 | G72: 2001-08-19 | J72: 2001-09-19 | M72: 2001-10-19 | P72: 2001-11-19 | S72: 2001-12-19
D73: 2001-07-20 | G73: 2001-08-20 | J73: 2001-09-20 | M73: 2001-10-20 | P73: 2001-11-20 | S73: 2001-12-20
D74: 2001-07-21 | G74: 2001-08-21 | J74: 2001-09-21 | M74: 2001-10-21 | P74: 2001-11-21 | S74: 2001-12-21
D75: 2001-07-22 | G75: 2001-08-22 | J75: 2001-09-22 | M75: 2001-10-22 | P75: 2001-11-22 | S75: 2001-12-22
D76: 2001-07-23 | G76: 2001-08-23 | J76: 2001-09-23 | M76: 2001-10-23 | P76: 2001-11-23 | S76: 2001-12-23
D77: 2001-07-24 | G77: 2001-08-24 | J77: 2001-09-24 | M77: 2001-10-24 | P77: 2001-11-24 | S77: 2001-12-24
D78: 2001-07-25 | G78: 2001-08-25 | J78: 2001-09-25 | M78: 2001-10-25 | P78: 2001-11-25 | S78: 2001-12-25
D79: 2001-07-26 | G79: 2001-08-26 | J79: 2001-09-26 | M79: 2001-10-26 | P79: 2001-11-26 | S79: 2001-12-26
D80: 2001-07-27 | G80: 2001-08-27 | J80: 2001-09-27 | M80: 2001-10-27 | P80: 2001-11-27 | S80: 2001-12-27
D81: 2001-07-28 | G81: 2001-08-28 | J81: 2001-09-28 | M81: 2001-10-28 | P81: 2001-11-28 | S81: 2001-12-28
D82: 2001-07-29 | G82: 2001-08-29 | J82: 2001-09-29 | M82: 2001-10-29 | P82: 2001-11-29 | S82: 2001-12-29
D83: 2001-07-30 | G83: 2001-08-30 | J83: 2001-09-30 | M83: 2001-10-30 | P83: 2001-11-30 | S83: 2001-12-30
D84: 2001-07-31 | G84: 2001-08-31 | M84: 2001-10-31 | S84: 2001-12-31
E86: =SUM(E54:E84) -> 0 | F86: =SUM(F54:F84) -> 0 | H86: =SUM(H54:H84) -> 0 | I86: =SUM(I54:I84) -> 0 | K86: =SUM(K54:K83) -> 0 | L86: =SUM(L54:L83) -> 0 | N86: =SUM(N54:N84) -> 0 | O86: =SUM(O54:O84) -> 0 | Q86: =SUM(Q54:Q83) -> 0 | R86: =SUM(R54:R83) -> 0 | T86: =SUM(T54:T84) -> 0 | U86: =SUM(U54:U84) -> 0

Sheet Salim (hidden)
Z1: القسم مختصر
Z2: 3هط1
A4: رقم التسجيل | B4: الرقم التسلسلي | C4: الإسم | D4: اللقب | E4: السنة | F4: الشعبة | G4: القسم | H4: القسم مختصر | I4: تاريخ الميلاد | J4: مكان الميلاد | K4: الجنس | L4: إسم الأب | M4: العنوان | N4: أول يوم غياب | O4: إشعار1 | P4: رقمــه | Q4: إشعار2 | R4: رقمــه | S4: إعـــــذار | T4: رقمـــه | U4: الشطـــب | V4: حركة التلاميذ | W4: تاريخ الدخول | X4: تاريخ الحروج
A5: 529 | B5: 529 | C5: مراد 529 | D5: فريدة529 | E5: ثالثة | F5: تقني رياضي | G5: 1 | H5: 3هط1 | I5: 12/2/2528 | J5: البياضة | K5: ذ | L5: محمد علي529 | M5: حي الإزدهار - البياضة | O5: 2019-07-25 | P5: 529 | Q5: 2019-08-22 | R5: 529 | S5: 2020-06-17 | T5: 529 | AD5: =INDEX(ALL!$E$6:$E$1500,MATCH(H5,ALL!$H$6:$H$13500,0))&" "&INDEX(ALL!$F$6:$F$1500,MATCH(H5,ALL!$H$6:$H$1500,0)) -> ثالثة تقني رياضي
A6: 530 | B6: 530 | C6: مراد 530 | D6: فريدة530 | E6: ثالثة | F6: تقني رياضي | G6: 1 | H6: 3هط1 | I6: 12/2/2529 | J6: البياضة | K6: ذ | L6: محمد علي530 | M6: حي السلام -البياضة | O6: 2019-07-26 | P6: 530 | Q6: 2019-08-23 | R6: 530 | S6: 2020-06-18 | T6: 530
A7: 531 | B7: 531 | C7: مراد 531 | D7: فريدة531 | E7: ثالثة | F7: تقني رياضي | G7: 1 | H7: 3هط1 | I7: 12/2/2530 | J7: البياضة | K7: ذ | L7: محمد علي531 | M7: حي الإزدهار - البياضة | O7: 2019-07-27 | P7: 531 | Q7: 2019-08-24 | R7: 531 | S7: 2020-06-19 | T7: 531
A8: 532 | B8: 532 | C8: مراد 532 | D8: فريدة532 | E8: ثالثة | F8: تقني رياضي | G8: 1 | H8: 3هط1 | I8: 12/2/2531 | J8: الوادي | K8: ذ | L8: محمد علي532 | M8: حي السلام -البياضة | O8: 2019-07-28 | P8: 532 | Q8: 2019-08-25 | R8: 532 | S8: 2020-06-20 | T8: 532
A9: 533 | B9: 533 | C9: مراد 533 | D9: فريدة533 | E9: ثالثة | F9: تقني رياضي | G9: 1 | H9: 3هط1 | I9: 12/2/2532 | J9: الوادي | K9: ذ | L9: محمد علي533 | M9: حي الإزدهار - البياضة | O9: 2019-07-29 | P9: 533 | Q9: 2019-08-26 | R9: 533 | S9: 2020-06-21 | T9: 533
A10: 534 | B10: 534 | C10: مراد 534 | D10: فريدة534 | E10: ثالثة | F10: تقني رياضي | G10: 1 | H10: 3هط1 | I10: 12/2/2533 | J10: البياضة | K10: ذ | L10: محمد علي534 | M10: حي السلام -البياضة | O10: 2019-07-30 | P10: 534 | Q10: 2019-08-27 | R10: 534 | S10: 2020-06-22 | T10: 534
A11: 535 | B11: 535 | C11: مراد 535 | D11: فريدة535 | E11: ثالثة | F11: تقني رياضي | G11: 1 | H11: 3هط1 | I11: 12/2/2534 | J11: البياضة | K11: ذ | L11: محمد علي535 | M11: حي الإزدهار - البياضة | O11: 2019-07-31 | P11: 535 | Q11: 2019-08-28 | R11: 535 | S11: 2020-06-23 | T11: 535
A12: 536 | B12: 536 | C12: مراد 536 | D12: فريدة536 | E12: ثالثة | F12: تقني رياضي | G12: 1 | H12: 3هط1 | I12: 12/2/2535 | J12: البياضة | K12: ذ | L12: محمد علي536 | M12: حي السلام -البياضة | O12: 2019-08-01 | P12: 536 | Q12: 2019-08-29 | R12: 536 | S12: 2020-06-24 | T12: 536
A13: 537 | B13: 537 | C13: مراد 537 | D13: فريدة537 | E13: ثالثة | F13: تقني رياضي | G13: 1 | H13: 3هط1 | I13: 12/2/2536 | J13: البياضة | K13: ذ | L13: محمد علي537 | M13: حي الإزدهار - البياضة | O13: 2019-08-02 | P13: 537 | Q13: 2019-08-30 | R13: 537 | S13: 2020-06-25 | T13: 537
A14: 538 | B14: 538 | C14: مراد 538 | D14: فريدة538 | E14: ثالثة | F14: تقني رياضي | G14: 1 | H14: 3هط1 | I14: 12/2/2537 | J14: البياضة | K14: ذ | L14: محمد علي538 | M14: حي السلام -البياضة | O14: 2019-08-03 | P14: 538 | Q14: 2019-08-31 | R14: 538 | S14: 2020-06-26 | T14: 538
A15: 539 | B15: 539 | C15: مراد 539 | D15: فريدة539 | E15: ثالثة | F15: تقني رياضي | G15: 1 | H15: 3هط1 | I15: 12/2/2538 | J15: البياضة | K15: ذ | L15: محمد علي539 | M15: حي الإزدهار - البياضة | O15: 2019-08-04 | P15: 539 | Q15: 2019-09-01 | R15: 539 | S15: 2020-06-27 | T15: 539
A16: 540 | B16: 540 | C16: مراد 540 | D16: فريدة540 | E16: ثالثة | F16: تقني رياضي | G16: 1 | H16: 3هط1 | I16: 12/2/2539 | J16: البياضة | K16: ذ | L16: محمد علي540 | M16: حي السلام -البياضة | O16: 2019-08-05 | P16: 540 | Q16: 2019-09-02 | R16: 540 | S16: 2020-06-28 | T16: 540
A17: 541 | B17: 541 | C17: مراد 541 | D17: فريدة541 | E17: ثالثة | F17: تقني رياضي | G17: 1 | H17: 3هط1 | I17: 12/2/2540 | J17: الوادي | K17: ذ | L17: محمد علي541 | M17: حي الإزدهار - البياضة | O17: 2019-08-06 | P17: 541 | Q17: 2019-09-03 | R17: 541 | S17: 2020-06-29 | T17: 541
A18: 542 | B18: 542 | C18: مراد 542 | D18: فريدة542 | E18: ثالثة | F18: تقني رياضي | G18: 1 | H18: 3هط1 | I18: 12/2/2541 | J18: البياضة | K18: ذ | L18: محمد علي542 | M18: حي السلام -البياضة | O18: 2019-08-07 | P18: 542 | Q18: 2019-09-04 | R18: 542 | S18: 2020-06-30 | T18: 542
A19: 543 | B19: 543 | C19: مراد 543 | D19: فريدة543 | E19: ثالثة | F19: تقني رياضي | G19: 1 | H19: 3هط1 | I19: 12/2/2542 | J19: الوادي | K19: ذ | L19: محمد علي543 | M19: حي الإزدهار - البياضة | O19: 2019-08-08 | P19: 543 | Q19: 2019-09-05 | R19: 543 | S19: 2020-07-01 | T19: 543
